{"text_format":"1","workbook":"xlsx","n_sheets":27,"sheets":["Vejledning til brug af ark","Kodefinder","Adm.ark specialer","Delkursusleder 1","(Evt. delkursusleder 2)","Honorarlønnet 1","Honorarlønnet 2","Honorarlønnet 3","Honorarlønnet 4","Honorarlønnet 5","Honorarlønnet 6","Honorarlønnet 7","Honorarlønnet 8","Honorarlønnet 9","Honorarlønnet 10","Honorarlønnet 11","Honorarlønnet 12","Honorarlønnet 13","Honorarlønnet 14","Honorarlønnet 15","Sekretær","Samlingsark","Hovedkursusleder","SST, økonomi","Lønadm.","Lønadm_backup","Adm.ark satser"],"not_rendered":{"charts":0,"images":1,"macros":1,"external_links":0,"defined_names":48,"comments":0,"pivot_tables":0},"unopened":[],"bounds":{"document_bytes":16777216,"sheet_cells":100000,"rows_first":2000,"rows_last":500,"rows_between":2000,"halvings":0,"cell_chars":16384,"cell_head_chars":4096},"cells_cut":0,"cells_raw":0,"read":"whole","date_system":"1900"}

{"sheet":"Vejledning til brug af ark","index":0,"n_rows":14,"n_cols":24,"rows_kept":14,"cut":false,"hidden":false,"merged":[[6,15,6,23],[11,20,11,21],[12,20,12,21],[13,20,13,21]]}
["Sådan udfyldes arket:",null,null,null,null,null,null,null,null,null,null,null,null,null,null,"Spørgsmål og svar",null,null,null,null,null,null,null,"vers. 40"]
[null,null,null,null,null,null,null,null,null,null,null,null,null,null,null,null,null,null,null,null,null,null,null,"2025-10-31"]
[null,null,null,null,null,null,null,null,null,null,null,null,null,null,null,"Mere end 15 undervisere? Udfyld 2 selvstændige dokumenter med bemærkning"]
[null,null,null,null,null,null,null,null,null,null,null,null,null,null,null,"Mere end 2 delkursusleder eller mere end 1 sekretær? Udfyld 2 selvstændige dokumenter med bemærkning"]
[null,null,null,null,null,null,null,null,null,null,null,null,null,null,null,"Skal alle faneblade udfyldes? Nej, kun de grønne faneblade må udfyldes."]
[null,null,null,null,null,null,null,null,null,null,null,null,null,null,null,"Hvilket format skal excelarket sendes i? Arket skal sendes som vedhæftet excel-fil, må IKKE konverteres til pdf"]
[null,null,null,null,null,null,null,null,null,null,null,null,null,null,null,"Probemer med filstørrelse? Hvis den endelige fil er for stor til Outlook (20 mb) anbefales du at dele filen med din institutions fildelingssystem eller at ZIP-komprimere filen."]
[]
[null,null,null,null,null,null,null,null,null,null,null,null,null,null,null,"Telefonliste"]
[null,null,null,null,null,null,null,null,null,null,null,null,null,null,null,"Hvis du oplever problemer med at benytte arket er du velkommen til at kontakte"]
[]
[null,null,null,null,null,null,null,null,null,null,null,null,null,null,null,"Maiken Bjerg, Sundhedsstyrelsen",null,null,null,"mail:","maib@sst.dk",null,"tlf:","20 26 66 81"]
[null,null,null,null,null,null,null,null,null,null,null,null,null,null,null,"Oskar Reeh, Sundhedsstyrelsen",null,null,null,"mail:","osre@sst.dk",null,"tlf:","21 27 99 85"]
[null,null,null,null,null,null,null,null,null,null,null,null,null,null,null,"Specialespecifikke Postkasse",null,null,null,"mail:","specialespecifikke@sst.dk",null,"tlf:","72 22 74 00"]

{"sheet":"Kodefinder","index":1,"n_rows":789,"n_cols":14,"rows_kept":789,"cut":false,"hidden":true,"merged":[]}
["Indsæt data fra opdateringsark i række A og B, så opdaters resten af arket automatisk."]
["Du skal altså kun opdatere dette ark når der findes nye kurser. Det opdateres i samme omgang som \"Adm.ark specialer\""]
["Den nemmeste måde er at vælge al data i kolonne A:B, slette det og indsætte det nye. På den måde er du sikker på at undgå duplikater"]
[]
[]
["Kursus-nummer","Kursusnavn","hjælpekolonne","Nummer","Speciale","Speciale_",null,null,"FINDER"]
[25101,"ØST29 modul 13",{"$f":"IF(LEN(A7)=5,LEFT(A7,3),LEFT(A7,4))","v":"251"},{"$f":"INDEX(J:J,MATCH(C7,I:I,0))","v":100},{"$f":"INDEX(K:K,MATCH(D7,J:J,0))","v":"Almen Medicin, Kbh"},{"$f":"INDEX(L:L,MATCH(E7,K:K,0))","v":"Almen_Medicin_Kbh"},null,null,"251",100,"Almen Medicin, Kbh","Almen_Medicin_Kbh",null,{"$f":"IFERROR(INDEX(A:A,MATCH(#REF!,B:B,0)),\"Der findes flere kurser med samme navn. Du skal manuelt vælge kursusnummer\")","v":"Der findes flere kurser med samme navn. Du skal manuelt vælge kursusnummer"}]
[25102,"ØST29 modul 14",{"$f":"IF(LEN(A8)=5,LEFT(A8,3),LEFT(A8,4))","v":"251"},100,"Almen Medicin, Kbh","Almen_Medicin_Kbh",null,null,"252",200,"Almen Medicin, Odense","Almen_Medicin_Odense"]
[25103,"ØST29 modul 15","251",100,"Almen Medicin, Kbh","Almen_Medicin_Kbh",null,null,"253",300,"Almen Medicin, Århus","Almen_Medicin_Aarhus"]
[25104,"ØST29 modul 16","251",100,"Almen Medicin, Kbh","Almen_Medicin_Kbh",null,null,"254",400,"Anæstesiologi","Anæstesiologi"]
[25105,"ØST30 modul 11","251",100,"Almen Medicin, Kbh","Almen_Medicin_Kbh",null,null,"255",500,"Arbejdsmedicin","Arbejdsmedicin"]
[25106,"ØST30 modul 12","251",100,"Almen Medicin, Kbh","Almen_Medicin_Kbh",null,null,"256",600,"Børne- og ungdomspsykiatri","Børne_og_ungdomspsykiatri"]
[25107,"ØST30 modul 13","251",100,"Almen Medicin, Kbh","Almen_Medicin_Kbh",null,null,"257",700,"Dermato-venerologi","Dermato_venerologi"]
[25108,"ØST30 modul 14","251",100,"Almen Medicin, Kbh","Almen_Medicin_Kbh",null,null,"258",800,"Diagnostisk radiologi","Diagnostisk_radiologi"]
[25109,"ØST30 modul 15","251",100,"Almen Medicin, Kbh","Almen_Medicin_Kbh",null,null,"259",900,"Gynækologi og obstetrik","Gynækologi_og_obstetrik"]
[25110,"ØST30 modul 16","251",100,"Almen Medicin, Kbh","Almen_Medicin_Kbh",null,null,"2510",1000,"IM: Endokrinologi","IM_Endokrinologi"]
[25111,"ØST31 modul 10","251",100,"Almen Medicin, Kbh","Almen_Medicin_Kbh",null,null,"2511",1100,"IM: Fælleskurser","IM_Fælleskurser"]
[25112,"ØST31 modul 11","251",100,"Almen Medicin, Kbh","Almen_Medicin_Kbh",null,null,"2512",1200,"IM: Gastroenterologi og Hepatologi","IM_Gastroenterologi_og_Hepatologi"]
[25113,"ØST31 modul 12","251",100,"Almen Medicin, Kbh","Almen_Medicin_Kbh",null,null,"2513",1300,"IM: Geriatri","IM_Geriatri"]
[25114,"ØST31 modul 13","251",100,"Almen Medicin, Kbh","Almen_Medicin_Kbh",null,null,"2514",1400,"IM: Hæmatologi","IM_Hæmatologi"]
[25115,"ØST31 modul 14","251",100,"Almen Medicin, Kbh","Almen_Medicin_Kbh",null,null,"2515",1500,"IM: Infektionsmedicin","IM_Infektionsmedicin"]
[25116,"ØST31 modul 15","251",100,"Almen Medicin, Kbh","Almen_Medicin_Kbh",null,null,"2516",1600,"IM: Kardiologi","IM_Kardiologi"]
[25117,"ØST31 modul 16","251",100,"Almen Medicin, Kbh","Almen_Medicin_Kbh",null,null,"2517",1700,"IM: Lungesygdomme","IM_Lungesygdomme"]
[25118,"ØST32 modul 10","251",100,"Almen Medicin, Kbh","Almen_Medicin_Kbh",null,null,"2518",1800,"IM: Nefrologi","IM_Nefrologi"]
[25119,"ØST32 modul 11","251",100,"Almen Medicin, Kbh","Almen_Medicin_Kbh",null,null,"2519",1900,"IM: Reumatologi","IM_Reumatologi"]
[25120,"ØST32 modul 12","251",100,"Almen Medicin, Kbh","Almen_Medicin_Kbh",null,null,"2520",2000,"Karkirurgi","Karkirurgi"]
[25121,"ØST32 modul 13","251",100,"Almen Medicin, Kbh","Almen_Medicin_Kbh",null,null,"2521",2100,"Kirurgi","Kirurgi"]
[25122,"ØST32 modul 14","251",100,"Almen Medicin, Kbh","Almen_Medicin_Kbh",null,null,"2522",2200,"Kir. færdighedskurser, KBH, Odense og Århus","Kir._færdighedskurser_KBH_Odense_og_Århus"]
[25123,"ØST32 modul 15","251",100,"Almen Medicin, Kbh","Almen_Medicin_Kbh",null,null,"2524",2400,"Klinisk Biokemi","Klinisk_Biokemi"]
[25124,"ØST32 modul 16","251",100,"Almen Medicin, Kbh","Almen_Medicin_Kbh",null,null,"2525",2500,"Klinisk Farmakologi","Klinisk_Farmakologi"]
[25125,"ØST32X modul 10","251",100,"Almen Medicin, Kbh","Almen_Medicin_Kbh",null,null,"2526",2600,"Klinisk Fysiologi og Nuklearmedicin","Klinisk_Fysiologi_og_Nuklearmedicin"]
[25126,"ØST32X modul 11","251",100,"Almen Medicin, Kbh","Almen_Medicin_Kbh",null,null,"2527",2700,"Klinisk Genetik","Klinisk_Genetik"]
[25127,"ØST32X modul 12","251",100,"Almen Medicin, Kbh","Almen_Medicin_Kbh",null,null,"2528",2800,"Klinisk Immunologi","Klinisk_Immunologi"]
[25128,"ØST32X modul 13","251",100,"Almen Medicin, Kbh","Almen_Medicin_Kbh",null,null,"2529",2900,"Klinisk Mikrobiologi","Klinisk_Mikrobiologi"]
[25129,"ØST32X modul 14",{"$f":"IF(LEN(A35)=5,LEFT(A35,3),LEFT(A35,4))","v":"251"},100,"Almen Medicin, Kbh","Almen_Medicin_Kbh"]
[25130,"ØST32X modul 15","251",100,"Almen Medicin, Kbh","Almen_Medicin_Kbh",null,null,"2530",3000,"Klinisk Onkologi","Klinisk_Onkologi"]
[25131,"ØST32X modul 16","251",100,"Almen Medicin, Kbh","Almen_Medicin_Kbh",null,null,"2531",3100,"Neurokirurgi","Neurokirurgi"]
[25132,"ØST33 modul 10","251",100,"Almen Medicin, Kbh","Almen_Medicin_Kbh",null,null,"2532",3200,"Neurologi","Neurologi"]
[25133,"ØST33 modul 11","251",100,"Almen Medicin, Kbh","Almen_Medicin_Kbh",null,null,"2533",3300,"Oftalmologi","Oftalmologi"]
[25134,"ØST33 modul 12","251",100,"Almen Medicin, Kbh","Almen_Medicin_Kbh",null,null,"2534",3400,"Ortopædisk kirurgi","Ortopædisk_kirurgi"]
[25135,"ØST34 modul 10","251",100,"Almen Medicin, Kbh","Almen_Medicin_Kbh",null,null,"2535",3500,"Oto-rhino-laryngologi","Oto_rhino_laryngologi"]
[25136,"ØST37 modul 09","251",100,"Almen Medicin, Kbh","Almen_Medicin_Kbh",null,null,"2536",3600,"Patologisk anatomi og cytologi","Patologisk_anatomi_og_cytologi"]
[25137,"ØST38 modul 09","251",100,"Almen Medicin, Kbh","Almen_Medicin_Kbh",null,null,"2537",3700,"Plastikkirurgi","Plastikkirurgi"]
[25138,"ØST38X modul 09","251",100,"Almen Medicin, Kbh","Almen_Medicin_Kbh",null,null,"2538",3800,"Psykiatri","Psykiatri"]
[25139,"ØST39 modul 08","251",100,"Almen Medicin, Kbh","Almen_Medicin_Kbh",null,null,"2539",3900,"Pædiatri","Pædiatri"]
[25140,"ØST39 modul 09",{"$f":"IF(LEN(A46)=5,LEFT(A46,3),LEFT(A46,4))","v":"251"},100,"Almen Medicin, Kbh","Almen_Medicin_Kbh"]
[25141,"ØST40 modul 08","251",100,"Almen Medicin, Kbh","Almen_Medicin_Kbh",null,null,"2540",4000,"Retsmedicin","Retsmedicin"]
[25142,"ØST40 modul 09",{"$f":"IF(LEN(A48)=5,LEFT(A48,3),LEFT(A48,4))","v":"251"},100,"Almen Medicin, Kbh","Almen_Medicin_Kbh"]
[25143,"ØST40X modul 08","251",100,"Almen Medicin, Kbh","Almen_Medicin_Kbh",null,null,"2541",4100,"Samfundsmedicin","Samfundsmedicin"]
[25144,"ØST40X modul 09",{"$f":"IF(LEN(A50)=5,LEFT(A50,3),LEFT(A50,4))","v":"251"},100,"Almen Medicin, Kbh","Almen_Medicin_Kbh"]
[25145,"ØST41 modul 07","251",100,"Almen Medicin, Kbh","Almen_Medicin_Kbh",null,null,"2542",4200,"Thoraxkirurgi","Thoraxkirurgi"]
[25146,"ØST41 modul 08",{"$f":"IF(LEN(A52)=5,LEFT(A52,3),LEFT(A52,4))","v":"251"},100,"Almen Medicin, Kbh","Almen_Medicin_Kbh"]
[25147,"ØST42 modul 07","251",100,"Almen Medicin, Kbh","Almen_Medicin_Kbh",null,null,"2543",4300,"Urologi","Urologi"]
[25148,"ØST42 modul 08",{"$f":"IF(LEN(A54)=5,LEFT(A54,3),LEFT(A54,4))","v":"251"},100,"Almen Medicin, Kbh","Almen_Medicin_Kbh"]
[25149,"ØST42X modul 04","251",100,"Almen Medicin, Kbh","Almen_Medicin_Kbh",null,null,"2544",4400,"SOL","SOL_2"]
[25150,"ØST42X modul 07","251",100,"Almen Medicin, Kbh","Almen_Medicin_Kbh",null,null,null,4400,"SOL","SOL_2"]
[25151,"ØST42X modul 08",{"$f":"IF(LEN(A57)=5,LEFT(A57,3),LEFT(A57,4))","v":"251"},100,"Almen Medicin, Kbh","Almen_Medicin_Kbh"]
[25152,"ØST43 modul 04","251",100,"Almen Medicin, Kbh","Almen_Medicin_Kbh",null,null,"2546",4600,"Tand-, mund- og kæbekirurgi","Tand_mund_og_kæbekirurgi"]
[25153,"ØST43 modul 06","251",100,"Almen Medicin, Kbh","Almen_Medicin_Kbh",null,null,"2547",4700,"Ortodonti","Ortodonti"]
[25154,"ØST43 modul 07",{"$f":"IF(LEN(A60)=5,LEFT(A60,3),LEFT(A60,4))","v":"251"},100,"Almen Medicin, Kbh","Almen_Medicin_Kbh"]
[25155,"ØST44 modul 04","251",100,"Almen Medicin, Kbh","Almen_Medicin_Kbh",null,null,"2550",5000,"Kir. Færdighedskursus operativ gynækologi","Færdighedskurser_operativ_gynækologi"]
[25156,"ØST44 modul 05","251",100,"Almen Medicin, Kbh","Almen_Medicin_Kbh",null,null,"2551",5100,"Kir. Færdighedskursus otopædisk kirurgi","Færdighedskurser_ort._kir."]
[25157,"ØST44 modul 06","251",100,"Almen Medicin, Kbh","Almen_Medicin_Kbh",null,null,"2560",6000,"Akutmedicin","Akutmedicin"]
[25158,"ØST44 modul 07",{"$f":"IF(LEN(A64)=5,LEFT(A64,3),LEFT(A64,4))","v":"251"},100,"Almen Medicin, Kbh","Almen_Medicin_Kbh"]
[25159,"ØST44X modul 03","251",100,"Almen Medicin, Kbh","Almen_Medicin_Kbh",null,null,null,"","",""]
[25160,"ØST44X modul 04","251",100,"Almen Medicin, Kbh","Almen_Medicin_Kbh"]
[25161,"ØST44X modul 05","251",100,"Almen Medicin, Kbh","Almen_Medicin_Kbh"]
[25162,"ØST44X modul 06","251",100,"Almen Medicin, Kbh","Almen_Medicin_Kbh"]
[25163,"ØST44X modul 07",{"$f":"IF(LEN(A69)=5,LEFT(A69,3),LEFT(A69,4))","v":"251"},100,"Almen Medicin, Kbh","Almen_Medicin_Kbh"]
[25164,"ØST45 modul 01","251",100,"Almen Medicin, Kbh","Almen_Medicin_Kbh"]
[25165,"ØST45 modul 02","251",{"$f":"INDEX(J:J,MATCH(C71,I:I,0))","v":100},{"$f":"INDEX(K:K,MATCH(D71,J:J,0))","v":"Almen Medicin, Kbh"},{"$f":"INDEX(L:L,MATCH(E71,K:K,0))","v":"Almen_Medicin_Kbh"}]
[25166,"ØST45 modul 03","251",100,"Almen Medicin, Kbh","Almen_Medicin_Kbh"]
[25167,"ØST45 modul 04","251",100,"Almen Medicin, Kbh","Almen_Medicin_Kbh"]
[25168,"ØST45 modul 05","251",100,"Almen Medicin, Kbh","Almen_Medicin_Kbh"]
[25169,"ØST45 modul 06",{"$f":"IF(LEN(A75)=5,LEFT(A75,3),LEFT(A75,4))","v":"251"},100,"Almen Medicin, Kbh","Almen_Medicin_Kbh"]
[25170,"ØST46 modul 01","251",100,"Almen Medicin, Kbh","Almen_Medicin_Kbh"]
[25171,"ØST46 modul 02","251",100,"Almen Medicin, Kbh","Almen_Medicin_Kbh"]
[25172,"ØST46 modul 03","251",100,"Almen Medicin, Kbh","Almen_Medicin_Kbh"]
[25173,"ØST46 modul 04","251",100,"Almen Medicin, Kbh","Almen_Medicin_Kbh"]
[25174,"ØST46 modul 05",{"$f":"IF(LEN(A80)=5,LEFT(A80,3),LEFT(A80,4))","v":"251"},100,"Almen Medicin, Kbh","Almen_Medicin_Kbh"]
[25175,"ØST46 modul 06","251",100,"Almen Medicin, Kbh","Almen_Medicin_Kbh"]
[25176,"ØST46X modul 01","251",100,"Almen Medicin, Kbh","Almen_Medicin_Kbh"]
[25177,"ØST46X modul 02","251",100,"Almen Medicin, Kbh","Almen_Medicin_Kbh"]
[25178,"ØST46X modul 03","251",100,"Almen Medicin, Kbh","Almen_Medicin_Kbh"]
[25179,"ØST46X modul 04","251",100,"Almen Medicin, Kbh","Almen_Medicin_Kbh"]
[25180,"ØST46X modul 05","251",100,"Almen Medicin, Kbh","Almen_Medicin_Kbh"]
[25181,"ØST46X modul 06","251",100,"Almen Medicin, Kbh","Almen_Medicin_Kbh"]
[25182,"ØST47 modul 01","251",100,"Almen Medicin, Kbh","Almen_Medicin_Kbh"]
[25183,"ØST47 modul 02",{"$f":"IF(LEN(A89)=5,LEFT(A89,3),LEFT(A89,4))","v":"251"},100,"Almen Medicin, Kbh","Almen_Medicin_Kbh"]
[25184,"ØST47 modul 03","251",100,"Almen Medicin, Kbh","Almen_Medicin_Kbh"]
[25185,"ØST47 modul 04","251",100,"Almen Medicin, Kbh","Almen_Medicin_Kbh"]
[25186,"ØST47 modul 05","251",100,"Almen Medicin, Kbh","Almen_Medicin_Kbh"]
[25187,"ØST48 modul 01","251",100,"Almen Medicin, Kbh","Almen_Medicin_Kbh"]
[25188,"ØST48 modul 02","251",100,"Almen Medicin, Kbh","Almen_Medicin_Kbh"]
[25189,"ØST48 modul 03","251",100,"Almen Medicin, Kbh","Almen_Medicin_Kbh"]
[25190,"ØST48X modul 01","251",100,"Almen Medicin, Kbh","Almen_Medicin_Kbh"]
[25191,"ØST48X modul 02","251",100,"Almen Medicin, Kbh","Almen_Medicin_Kbh"]
[25201,"SYD 2021-1","252",200,"Almen Medicin, Odense","Almen_Medicin_Odense"]
[25202,"SYD 2021-2","252",200,"Almen Medicin, Odense","Almen_Medicin_Odense"]
[25203,"SYD 2021-3","252",200,"Almen Medicin, Odense","Almen_Medicin_Odense"]
[25203,"SYD 2021-3","252",200,"Almen Medicin, Odense","Almen_Medicin_Odense"]
[25204,"SYD 2021-4","252",200,"Almen Medicin, Odense","Almen_Medicin_Odense"]
[25204,"SYD 2021-4","252",200,"Almen Medicin, Odense","Almen_Medicin_Odense"]
[25205,"SYD 2022-1","252",200,"Almen Medicin, Odense","Almen_Medicin_Odense"]
[25206,"SYD 2022-2","252",200,"Almen Medicin, Odense","Almen_Medicin_Odense"]
[25207,"SYD 2022-3 FT","252",200,"Almen Medicin, Odense","Almen_Medicin_Odense"]
[25207,"SYD 2022-3 FT","252",200,"Almen Medicin, Odense","Almen_Medicin_Odense"]
[25208,"SYD 2022-4 FT","252",200,"Almen Medicin, Odense","Almen_Medicin_Odense"]
[25208,"SYD 2022-4 FT","252",200,"Almen Medicin, Odense","Almen_Medicin_Odense"]
[25209,"SYD 2023-1","252",200,"Almen Medicin, Odense","Almen_Medicin_Odense"]
[25210,"SYD 2023-2","252",200,"Almen Medicin, Odense","Almen_Medicin_Odense"]
[25211,"SYD 2023-3","252",200,"Almen Medicin, Odense","Almen_Medicin_Odense"]
[25211,"SYD 2023-3","252",200,"Almen Medicin, Odense","Almen_Medicin_Odense"]
[25212,"SYD 2023-4","252",200,"Almen Medicin, Odense","Almen_Medicin_Odense"]
[25212,"SYD 2023-4","252",200,"Almen Medicin, Odense","Almen_Medicin_Odense"]
[25213,"SYD 2023-5","252",200,"Almen Medicin, Odense","Almen_Medicin_Odense"]
[25213,"SYD 2023-5","252",200,"Almen Medicin, Odense","Almen_Medicin_Odense"]
[25214,"SYD 2024-1","252",200,"Almen Medicin, Odense","Almen_Medicin_Odense"]
[25214,"SYD 2024-1","252",200,"Almen Medicin, Odense","Almen_Medicin_Odense"]
[25215,"SYD 2024-2","252",200,"Almen Medicin, Odense","Almen_Medicin_Odense"]
[25215,"SYD 2024-2","252",200,"Almen Medicin, Odense","Almen_Medicin_Odense"]
[25216,"SYD 2024-3","252",200,"Almen Medicin, Odense","Almen_Medicin_Odense"]
[25216,"SYD 2024-3","252",200,"Almen Medicin, Odense","Almen_Medicin_Odense"]
[25217,"SYD 2024-4","252",200,"Almen Medicin, Odense","Almen_Medicin_Odense"]
[25217,"SYD 2024-4","252",200,"Almen Medicin, Odense","Almen_Medicin_Odense"]
[25218,"SYD 2025-1","252",200,"Almen Medicin, Odense","Almen_Medicin_Odense"]
[25218,"SYD 2025-1","252",200,"Almen Medicin, Odense","Almen_Medicin_Odense"]
[25219,"SYD 2025-2","252",200,"Almen Medicin, Odense","Almen_Medicin_Odense"]
[25219,"SYD 2025-2","252",200,"Almen Medicin, Odense","Almen_Medicin_Odense"]
[25220,"SYD 2025-3","252",200,"Almen Medicin, Odense","Almen_Medicin_Odense"]
[25221,"SYD 2025-4","252",200,"Almen Medicin, Odense","Almen_Medicin_Odense"]
[25301,"Nord48","253",300,"Almen Medicin, Århus","Almen_Medicin_Aarhus"]
[25302,"Nord47","253",300,"Almen Medicin, Århus","Almen_Medicin_Aarhus"]
[25303,"Nord46","253",300,"Almen Medicin, Århus","Almen_Medicin_Aarhus"]
[25303,"Nord46","253",{"$f":"INDEX(J:J,MATCH(C135,I:I,0))","v":300},{"$f":"INDEX(K:K,MATCH(D135,J:J,0))","v":"Almen Medicin, Århus"},{"$f":"INDEX(L:L,MATCH(E135,K:K,0))","v":"Almen_Medicin_Aarhus"}]
[25304,"Nord45","253",300,"Almen Medicin, Århus","Almen_Medicin_Aarhus"]
[25304,"Nord45","253",300,"Almen Medicin, Århus","Almen_Medicin_Aarhus"]
[25305,"Nord44","253",300,"Almen Medicin, Århus","Almen_Medicin_Aarhus"]
[25306,"Nord43","253",300,"Almen Medicin, Århus","Almen_Medicin_Aarhus"]
[25307,"Nord42","253",300,"Almen Medicin, Århus","Almen_Medicin_Aarhus"]
[25308,"Nord41","253",300,"Almen Medicin, Århus","Almen_Medicin_Aarhus"]
[25308,"Nord41","253",300,"Almen Medicin, Århus","Almen_Medicin_Aarhus"]
[25309,"Nord40","253",300,"Almen Medicin, Århus","Almen_Medicin_Aarhus"]
[25309,"Nord40","253",300,"Almen Medicin, Århus","Almen_Medicin_Aarhus"]
[25310,"Nord39","253",300,"Almen Medicin, Århus","Almen_Medicin_Aarhus"]
[25310,"Nord39","253",300,"Almen Medicin, Århus","Almen_Medicin_Aarhus"]
[25311,"Nord38","253",300,"Almen Medicin, Århus","Almen_Medicin_Aarhus"]
[25311,"Nord38","253",300,"Almen Medicin, Århus","Almen_Medicin_Aarhus"]
[25312,"Nord37","253",300,"Almen Medicin, Århus","Almen_Medicin_Aarhus"]
[25313,"Nord36","253",300,"Almen Medicin, Århus","Almen_Medicin_Aarhus"]
[25313,"Nord36","253",300,"Almen Medicin, Århus","Almen_Medicin_Aarhus"]
[25314,"Nord35","253",300,"Almen Medicin, Århus","Almen_Medicin_Aarhus"]
[25315,"Nord34","253",300,"Almen Medicin, Århus","Almen_Medicin_Aarhus"]
[25316,"Nord33",{"$f":"IF(LEN(A154)=5,LEFT(A154,3),LEFT(A154,4))","v":"253"},300,"Almen Medicin, Århus","Almen_Medicin_Aarhus"]
[25317,"Nord32","253",300,"Almen Medicin, Århus","Almen_Medicin_Aarhus"]
[25317,"Nord32","253",300,"Almen Medicin, Århus","Almen_Medicin_Aarhus"]
[25318,"Nord31","253",300,"Almen Medicin, Århus","Almen_Medicin_Aarhus"]
[25318,"Nord31","253",300,"Almen Medicin, Århus","Almen_Medicin_Aarhus"]
[25319,"Nord30","253",300,"Almen Medicin, Århus","Almen_Medicin_Aarhus"]
[25319,"Nord30","253",300,"Almen Medicin, Århus","Almen_Medicin_Aarhus"]
[25320,"Nord29","253",300,"Almen Medicin, Århus","Almen_Medicin_Aarhus"]
[25321,"Nord28","253",300,"Almen Medicin, Århus","Almen_Medicin_Aarhus"]
[25401,"Luftvejshåndtering","254",400,"Anæstesiologi","Anæstesiologi"]
[25402,"Avanceret Intensiv terapi","254",400,"Anæstesiologi","Anæstesiologi"]
[25403,"Obstetrisk anæstesi og det nyfødte barn - Aarhus","254",400,"Anæstesiologi","Anæstesiologi"]
[25404,"Ultralyd ","254",400,"Anæstesiologi","Anæstesiologi"]
[25405,"Anæstesi ","254",400,"Anæstesiologi","Anæstesiologi"]
[25406,"Intensiv terapi -NORD & SYD - Aalborg","254",400,"Anæstesiologi","Anæstesiologi"]
[25407,"Intensiv terapi - ØST","254",400,"Anæstesiologi","Anæstesiologi"]
[25408,"Pædiatrisk anæstesi  - Aarhus","254",400,"Anæstesiologi","Anæstesiologi"]
[25409,"Klinisk beslutningstagning ","254",400,"Anæstesiologi","Anæstesiologi"]
[25410,"Akutte og kroniske smerter","254",400,"Anæstesiologi","Anæstesiologi"]
[25411,"Neuro, traume, præhospital","254",400,"Anæstesiologi","Anæstesiologi"]
[25412,"Patientsikkerhed og kom.","254",400,"Anæstesiologi","Anæstesiologi"]
[25413,"Luftvejshåndtering","254",400,"Anæstesiologi","Anæstesiologi"]
[25414,"Avanceret Intensiv terapi","254",400,"Anæstesiologi","Anæstesiologi"]
[25415,"Anæstesi ","254",400,"Anæstesiologi","Anæstesiologi"]
[25416,"Intensiv terapi - ØST","254",400,"Anæstesiologi","Anæstesiologi"]
[25417,"Intensiv terapi -Nord og Syd- odense","254",400,"Anæstesiologi","Anæstesiologi"]
[25418,"Obstetrisk anæstesi og det nyfødte barn - Kbh","254",400,"Anæstesiologi","Anæstesiologi"]
[25419,"Klinisk beslutningstagning ","254",400,"Anæstesiologi","Anæstesiologi"]
[25420,"Ultralyd ","254",400,"Anæstesiologi","Anæstesiologi"]
[25421,"Akutte og kroniske smerter","254",400,"Anæstesiologi","Anæstesiologi"]
[25422,"Pædiatrisk anæstesi","254",400,"Anæstesiologi","Anæstesiologi"]
[25423,"Patientsikkerhed og kom.","254",400,"Anæstesiologi","Anæstesiologi"]
[25424,"Neuro, traume, præhospital","254",400,"Anæstesiologi","Anæstesiologi"]
[25501,"Klinisk arbejdsmedicin","255",500,"Arbejdsmedicin","Arbejdsmedicin"]
[25502,"Eksponerings-, årsags- og risikovurdering, modul 1 (tox)","255",500,"Arbejdsmedicin","Arbejdsmedicin"]
[25503,"Eksponerings-, årsags- og risikovurdering, modul 2","255",500,"Arbejdsmedicin","Arbejdsmedicin"]
[25601,"ADHD, Komorbiditet og differentialdiagnostik","256",600,"Børne- og ungdomspsykiatri","Børne_og_ungdomspsykiatri"]
[25602,"Farmakologisk behandling af ADHD (Psykofarmakologi 2)","256",600,"Børne- og ungdomspsykiatri","Børne_og_ungdomspsykiatri"]
[25603,"Retspsykiatri","256",600,"Børne- og ungdomspsykiatri","Børne_og_ungdomspsykiatri"]
[25604,"Adfærds- og personlighedsforstyrrelser","256",600,"Børne- og ungdomspsykiatri","Børne_og_ungdomspsykiatri"]
[25605,"Misbrug","256",600,"Børne- og ungdomspsykiatri","Børne_og_ungdomspsykiatri"]
[25606,"Teoretisk kursus psykopatologi","256",600,"Børne- og ungdomspsykiatri","Børne_og_ungdomspsykiatri"]
[25607,"Autismespektrumforstyrrelser, generelle udviklingsforstyrrelser og sjældne neuropsykiatriske lidelser","256",600,"Børne- og ungdomspsykiatri","Børne_og_ungdomspsykiatri"]
[25608,"Psykofarmakologi, interaktion og bivirkninger (Psykofarmakologi 1)","256",600,"Børne- og ungdomspsykiatri","Børne_og_ungdomspsykiatri"]
[25609,"Belastningsreaktioner og PTSD","256",600,"Børne- og ungdomspsykiatri","Børne_og_ungdomspsykiatri"]
[25610,"Seksualitet og seksuelle overgreb","256",{"$f":"INDEX(J:J,MATCH(C199,I:I,0))","v":600},{"$f":"INDEX(K:K,MATCH(D199,J:J,0))","v":"Børne- og ungdomspsykiatri"},{"$f":"INDEX(L:L,MATCH(E199,K:K,0))","v":"Børne_og_ungdomspsykiatri"}]
[25611,"Teoretisk kursus udviklingspsykopatologi","256",600,"Børne- og ungdomspsykiatri","Børne_og_ungdomspsykiatri"]
[25612,"Affektive lidelser",{"$f":"IF(LEN(A201)=5,LEFT(A201,3),LEFT(A201,4))","v":"256"},600,"Børne- og ungdomspsykiatri","Børne_og_ungdomspsykiatri"]
[25613,"Spædbarnspsykiatri ","256",600,"Børne- og ungdomspsykiatri","Børne_og_ungdomspsykiatri"]
[25615,"Skizofreni","256",600,"Børne- og ungdomspsykiatri","Børne_og_ungdomspsykiatri"]
[25616,"OCD, tics og Tourette","256",600,"Børne- og ungdomspsykiatri","Børne_og_ungdomspsykiatri"]
[25617,"Angst og psykosomatik","256",600,"Børne- og ungdomspsykiatri","Børne_og_ungdomspsykiatri"]
[25701,"Den geriatriske patient og lokalbehandling (delkursus 1)","257",700,"Dermato-venerologi","Dermato_venerologi"]
[25702,"Kursus i basal dermatologi (Øst) (delkursus 0)","257",700,"Dermato-venerologi","Dermato_venerologi"]
[25703,"Den kløende patient og pædiatri (delkursus 2)","257",700,"Dermato-venerologi","Dermato_venerologi"]
[25705,"Venerologi og anogenitale sygdomme (delkursus 3)","257",700,"Dermato-venerologi","Dermato_venerologi"]
[25706,"Den akutte patient og lægemiddelreaktioner (delkursus 4)","257",700,"Dermato-venerologi","Dermato_venerologi"]
[25707,"Hudens tumorer (delkursus 5)","257",700,"Dermato-venerologi","Dermato_venerologi"]
[25801,"Abdominal radiologi","258",800,"Diagnostisk radiologi","Diagnostisk_radiologi"]
[25802,"Fysik og radiobiologi","258",800,"Diagnostisk radiologi","Diagnostisk_radiologi"]
[25803,"Kar og interventionsradiologi","258",800,"Diagnostisk radiologi","Diagnostisk_radiologi"]
[25804,"Mammaradiologi","258",800,"Diagnostisk radiologi","Diagnostisk_radiologi"]
[25805,"Muskuloskeletal radiologi","258",800,"Diagnostisk radiologi","Diagnostisk_radiologi"]
[25806,"Neuroradiologi","258",800,"Diagnostisk radiologi","Diagnostisk_radiologi"]
[25807,"Pædiatrisk radiologi","258",800,"Diagnostisk radiologi","Diagnostisk_radiologi"]
[25808,"Thorax radiologi","258",800,"Diagnostisk radiologi","Diagnostisk_radiologi"]
[25809,"Onkoradiologi",{"$f":"IF(LEN(A220)=5,LEFT(A220,3),LEFT(A220,4))","v":"258"},800,"Diagnostisk radiologi","Diagnostisk_radiologi"]
[25810,"Teknik og strålebeskyttelse","258",800,"Diagnostisk radiologi","Diagnostisk_radiologi"]
[25811,"Urogenital radiologi","258",800,"Diagnostisk radiologi","Diagnostisk_radiologi"]
[25898,"kursusdag for delkursusledere","258",800,"Diagnostisk radiologi","Diagnostisk_radiologi"]
[25901,"Intrapartal obstetrik","259",900,"Gynækologi og obstetrik","Gynækologi_og_obstetrik"]
[25902,"Urogynækologi","259",900,"Gynækologi og obstetrik","Gynækologi_og_obstetrik"]
[25903,"Benign gynækologi","259",900,"Gynækologi og obstetrik","Gynækologi_og_obstetrik"]
[25904,"Reproduktionsmedicin","259",900,"Gynækologi og obstetrik","Gynækologi_og_obstetrik"]
[25905,"Kommunikation A","259",900,"Gynækologi og obstetrik","Gynækologi_og_obstetrik"]
[25906,"Endokrin gynækologi","259",900,"Gynækologi og obstetrik","Gynækologi_og_obstetrik"]
[25907,"Føtalmedicin","259",900,"Gynækologi og obstetrik","Gynækologi_og_obstetrik"]
[25908,"Gynækologisk onkologi","259",900,"Gynækologi og obstetrik","Gynækologi_og_obstetrik"]
[25909,"Antepartal obstetrik","259",900,"Gynækologi og obstetrik","Gynækologi_og_obstetrik"]
[25910,"Kommunikation B","259",900,"Gynækologi og obstetrik","Gynækologi_og_obstetrik"]
[25911,"Kursus for delkursusledere","259",900,"Gynækologi og obstetrik","Gynækologi_og_obstetrik"]
[251001,"Laboratorieteknik","2510",1000,"IM: Endokrinologi","IM_Endokrinologi"]
[251002,"Diabetes og ernæringsbetingede sygdomme","2510",1000,"IM: Endokrinologi","IM_Endokrinologi"]
[251003,"Thyroideasygdomme","2510",1000,"IM: Endokrinologi","IM_Endokrinologi"]
[251004,"Hypofysesygdomme","2510",1000,"IM: Endokrinologi","IM_Endokrinologi"]
[251005,"Knogle- og calciummetaboliske sygdomme","2510",1000,"IM: Endokrinologi","IM_Endokrinologi"]
[251101,"Akut medicin, Nord - Maj","2511",1100,"IM: Fælleskurser","IM_Fælleskurser"]
[251102,"Akut medicin, Syd - Maj","2511",1100,"IM: Fælleskurser","IM_Fælleskurser"]
[251103,"Akut medicin, Øst - Maj","2511",1100,"IM: Fælleskurser","IM_Fælleskurser"]
[251104,"Akut medicin, Nord - November","2511",1100,"IM: Fælleskurser","IM_Fælleskurser"]
[251105,"Akut medicin, Syd - November","2511",1100,"IM: Fælleskurser","IM_Fælleskurser"]
[251106,"Akut medicin, Øst - November","2511",1100,"IM: Fælleskurser","IM_Fælleskurser"]
[251107,"De 8 selskabers kursusdag, Nord - Maj","2511",1100,"IM: Fælleskurser","IM_Fælleskurser"]
[251108,"De 8 selskabers kursusdag, Syd - Maj","2511",1100,"IM: Fælleskurser","IM_Fælleskurser"]
[251109,"De 8 selskabers kursusdag, Øst - Maj","2511",1100,"IM: Fælleskurser","IM_Fælleskurser"]
[251110,"De 8 selskabers kursusdag, Nord - November","2511",1100,"IM: Fælleskurser","IM_Fælleskurser"]
[251111,"De 8 selskabers kursusdag, Syd - November","2511",1100,"IM: Fælleskurser","IM_Fælleskurser"]
[251112,"De 8 selskabers kursusdag, Øst - November","2511",1100,"IM: Fælleskurser","IM_Fælleskurser"]
[251113,"Rationel farmakoterapi, Nord - Maj","2511",1100,"IM: Fælleskurser","IM_Fælleskurser"]
[251114,"Rationel farmakoterapi, Syd - Maj","2511",1100,"IM: Fælleskurser","IM_Fælleskurser"]
[251115,"Rationel farmakoterapi, Øst - Maj","2511",1100,"IM: Fælleskurser","IM_Fælleskurser"]
[251116,"Rationel farmakoterapi, Nord - November","2511",1100,"IM: Fælleskurser","IM_Fælleskurser"]
[251117,"Rationel farmakoterapi, Syd - November","2511",1100,"IM: Fælleskurser","IM_Fælleskurser"]
[251118,"Rationel farmakoterapi, Øst - November","2511",1100,"IM: Fælleskurser","IM_Fælleskurser"]
[251119,"Neurologi for intern medicinere, Nord - Maj","2511",1100,"IM: Fælleskurser","IM_Fælleskurser"]
[251120,"Neurologi for intern medicinere, Syd - Maj","2511",1100,"IM: Fælleskurser","IM_Fælleskurser"]
[251121,"Neurologi for intern medicinere, Øst - Maj","2511",1100,"IM: Fælleskurser","IM_Fælleskurser"]
[251122,"Neurologi for intern medicinere, Nord - November","2511",1100,"IM: Fælleskurser","IM_Fælleskurser"]
[251123,"Neurologi for intern medicinere, Syd - November",{"$f":"IF(LEN(A262)=5,LEFT(A262,3),LEFT(A262,4))","v":"2511"},1100,"IM: Fælleskurser","IM_Fælleskurser"]
[251124,"Neurologi for intern medicinere, Øst - November","2511",{"$f":"INDEX(J:J,MATCH(C263,I:I,0))","v":1100},{"$f":"INDEX(K:K,MATCH(D263,J:J,0))","v":"IM: Fælleskurser"},{"$f":"INDEX(L:L,MATCH(E263,K:K,0))","v":"IM_Fælleskurser"}]
[251125,"Psykiatri for intern medicinere, Nord - Maj","2511",1100,"IM: Fælleskurser","IM_Fælleskurser"]
[251126,"Psykiatri for intern medicinere, Syd - Maj","2511",1100,"IM: Fælleskurser","IM_Fælleskurser"]
[251127,"Psykiatri for intern medicinere, Øst - Maj","2511",1100,"IM: Fælleskurser","IM_Fælleskurser"]
[251128,"Psykiatri for intern medicinere, Nord - November","2511",1100,"IM: Fælleskurser","IM_Fælleskurser"]
[251129,"Psykiatri for intern medicinere, Syd - November",{"$f":"IF(LEN(A268)=5,LEFT(A268,3),LEFT(A268,4))","v":"2511"},1100,"IM: Fælleskurser","IM_Fælleskurser"]
[251130,"Psykiatri for intern medicinere, Øst - November","2511",1100,"IM: Fælleskurser","IM_Fælleskurser"]
[251131,"Rationel klinisk beslutningsteori, Nord - Maj","2511",1100,"IM: Fælleskurser","IM_Fælleskurser"]
[251132,"Rationel klinisk beslutningsteori, Syd - Maj","2511",1100,"IM: Fælleskurser","IM_Fælleskurser"]
[251133,"Rationel klinisk beslutningsteori, Øst - Maj","2511",1100,"IM: Fælleskurser","IM_Fælleskurser"]
[251134,"Rationel klinisk beslutningsteori, Nord - November","2511",1100,"IM: Fælleskurser","IM_Fælleskurser"]
[251135,"Rationel klinisk beslutningsteori, Syd - November","2511",1100,"IM: Fælleskurser","IM_Fælleskurser"]
[251136,"Rationel klinisk beslutningsteori, Øst - November","2511",1100,"IM: Fælleskurser","IM_Fælleskurser"]
[251137,"Onkologi for intern medicinere, Nord - Maj","2511",1100,"IM: Fælleskurser","IM_Fælleskurser"]
[251138,"Onkologi for intern medicinere, Syd - Maj","2511",1100,"IM: Fælleskurser","IM_Fælleskurser"]
[251139,"Onkologi for intern medicinere, Øst - Maj","2511",1100,"IM: Fælleskurser","IM_Fælleskurser"]
[251140,"Onkologi for intern medicinere, Nord - November","2511",1100,"IM: Fælleskurser","IM_Fælleskurser"]
[251141,"Onkologi for intern medicinere, Syd - November","2511",1100,"IM: Fælleskurser","IM_Fælleskurser"]
[251142,"Onkologi for intern medicinere, Øst - November","2511",1100,"IM: Fælleskurser","IM_Fælleskurser"]
[251143,"Den terminale patient, palliativ behandling, Nord - Maj","2511",1100,"IM: Fælleskurser","IM_Fælleskurser"]
[251144,"Den terminale patient, palliativ behandling, Syd - Maj","2511",1100,"IM: Fælleskurser","IM_Fælleskurser"]
[251145,"Den terminale patient, palliativ behandling, Øst - Maj","2511",1100,"IM: Fælleskurser","IM_Fælleskurser"]
[251146,"Den terminale patient, palliativ behandling, Nord - November","2511",1100,"IM: Fælleskurser","IM_Fælleskurser"]
[251147,"Den terminale patient, palliativ behandling, Syd - November","2511",1100,"IM: Fælleskurser","IM_Fælleskurser"]
[251148,"Den terminale patient, palliativ behandling, Øst - November",{"$f":"IF(LEN(A287)=5,LEFT(A287,3),LEFT(A287,4))","v":"2511"},1100,"IM: Fælleskurser","IM_Fælleskurser"]
[251149,"Den ældre patient, Nord - Maj","2511",1100,"IM: Fælleskurser","IM_Fælleskurser"]
[251150,"Den ældre patient, Syd - Maj","2511",1100,"IM: Fælleskurser","IM_Fælleskurser"]
[251151,"Den ældre patient, Øst - Maj","2511",1100,"IM: Fælleskurser","IM_Fælleskurser"]
[251152,"Den ældre patient, Nord - November","2511",1100,"IM: Fælleskurser","IM_Fælleskurser"]
[251153,"Den ældre patient, Syd - November","2511",1100,"IM: Fælleskurser","IM_Fælleskurser"]
[251154,"Den ældre patient, Øst - November","2511",1100,"IM: Fælleskurser","IM_Fælleskurser"]
[251197,"DSIM kursusudvalg","2511",1100,"IM: Fælleskurser","IM_Fælleskurser"]
[251198,"DSIM kursusudvalgsmøde","2511",1100,"IM: Fælleskurser","IM_Fælleskurser"]
[251201,"Gastrointestinal endoskopi","2512",1200,"IM: Gastroenterologi og Hepatologi","IM_Gastroenterologi_og_Hepatologi"]
[251202,"Hepatologi","2512",1200,"IM: Gastroenterologi og Hepatologi","IM_Gastroenterologi_og_Hepatologi"]
[251203,"Avanceret gastroenterologi og hepatologi","2512",1200,"IM: Gastroenterologi og Hepatologi","IM_Gastroenterologi_og_Hepatologi"]
[251301,"Geriatriske sygdomme 1, hjerte, lunge, endo","2513",1300,"IM: Geriatri","IM_Geriatri"]
[251302,"Den Geriatriske Ekspert","2513",1300,"IM: Geriatri","IM_Geriatri"]
[251303,"Kursusplanlægning","2513",1300,"IM: Geriatri","IM_Geriatri"]
[251401,"Lavmaligne lymfeproliferative sygdomme","2514",1400,"IM: Hæmatologi","IM_Hæmatologi"]
[251402,"Højmaligne lymfeproliferative sygdomme","2514",1400,"IM: Hæmatologi","IM_Hæmatologi"]
[251403,"M-komponent sygdomme","2514",1400,"IM: Hæmatologi","IM_Hæmatologi"]
[251405,"Kommunikation i hæmatologi","2514",1400,"IM: Hæmatologi","IM_Hæmatologi"]
[251501,"Teoretisk kursus i mikrobiologi","2515",1500,"IM: Infektionsmedicin","IM_Infektionsmedicin"]
[251502,"HIV infektion","2515",1500,"IM: Infektionsmedicin","IM_Infektionsmedicin"]
[251504,"Tropemedicinsk kursus","2515",1500,"IM: Infektionsmedicin","IM_Infektionsmedicin"]
[251601,"TEE simulation","2516",1600,"IM: Kardiologi","IM_Kardiologi"]
[251602,"TEE simulation","2516",1600,"IM: Kardiologi","IM_Kardiologi"]
[251603,"ÅR 1 KURSUS (HU1)","2516",1600,"IM: Kardiologi","IM_Kardiologi"]
[251604,"ÅR 2 KURSUS (HU2)","2516",1600,"IM: Kardiologi","IM_Kardiologi"]
[251605,"ÅR 3 KURSUS (HU3)","2516",1600,"IM: Kardiologi","IM_Kardiologi"]
[251606,"ÅR 4 KURSUS (HU4)","2516",1600,"IM: Kardiologi","IM_Kardiologi"]
[251607,"ÅR 5 KURSUS (HU5)","2516",1600,"IM: Kardiologi","IM_Kardiologi"]
[251701,"Kursus i Klinisk respirationsfysiologi","2517",1700,"IM: Lungesygdomme","IM_Lungesygdomme"]
[251702,"Kursus i KOL og NIV","2517",1700,"IM: Lungesygdomme","IM_Lungesygdomme"]
[251703,"Kursus i Astma","2517",1700,"IM: Lungesygdomme","IM_Lungesygdomme"]
[251704,"Kursus i Allergi ","2517",1700,"IM: Lungesygdomme","IM_Lungesygdomme"]
[251705,"Kursus i Pulmonale infektioner ","2517",1700,"IM: Lungesygdomme","IM_Lungesygdomme"]
[251706,"Kursus i Infiltratudredning, pleuraeffusioner, mesotheliom og hæmoptyse ","2517",1700,"IM: Lungesygdomme","IM_Lungesygdomme"]
[251707,"Kursus i Invasiv diagnostik ","2517",1700,"IM: Lungesygdomme","IM_Lungesygdomme"]
[251708,"Kursus i Interstitielle Lungesygdomme ","2517",1700,"IM: Lungesygdomme","IM_Lungesygdomme"]
[251801,"Akut og kronisk glomerulonephritis, HUS og TTP","2518",1800,"IM: Nefrologi","IM_Nefrologi"]
[251802,"Kursus i Nyrefysiologi","2518",1800,"IM: Nefrologi","IM_Nefrologi"]
[251803,"Dialysebehandling og plasmaferese","2518",1800,"IM: Nefrologi","IM_Nefrologi"]
[251901,"Delkursus 1 - Inflammatoriske lidelser 1","2519",{"$f":"INDEX(J:J,MATCH(C327,I:I,0))","v":1900},{"$f":"INDEX(K:K,MATCH(D327,J:J,0))","v":"IM: Reumatologi"},{"$f":"INDEX(L:L,MATCH(E327,K:K,0))","v":"IM_Reumatologi"}]
[251902,"Delkursus 2 - Inflammatoriske lidelser 2","2519",1900,"IM: Reumatologi","IM_Reumatologi"]
[251903,"Delkursus 3 - Den patologiske underekstremitet og degenerative rygsygdomme","2519",1900,"IM: Reumatologi","IM_Reumatologi"]
[251904,"Delkursus 4 - Den patologiske overekstremitet","2519",1900,"IM: Reumatologi","IM_Reumatologi"]
[251905,"Delkursus 5 - Vaskulit og bindevævssygdomme","2519",1900,"IM: Reumatologi","IM_Reumatologi"]
[251906,"Delkursus 6 - Komplekse reumatologiske tilstande","2519",1900,"IM: Reumatologi","IM_Reumatologi"]
[251907,"USU-møder ","2519",1900,"IM: Reumatologi","IM_Reumatologi"]
[252001,"Supraaortikale lidelser","2520",2000,"Karkirurgi","Karkirurgi"]
[252002,"Basalt ultralydskursus","2520",2000,"Karkirurgi","Karkirurgi"]
[252003,"Kursus i mesenterial iskæmi","2520",2000,"Karkirurgi","Karkirurgi"]
[252004,"Kursus i anæstesiologi ","2520",2000,"Karkirurgi","Karkirurgi"]
[252005,"ENHANCE OPEN","2520",2000,"Karkirurgi","Karkirurgi"]
[252006,"ENHANCE EVAR","2520",2000,"Karkirurgi","Karkirurgi"]
[252007,"ENHANCE PAD Århus","2520",2000,"Karkirurgi","Karkirurgi"]
[252007,"ENHANCE PAD Kbh","2520",2000,"Karkirurgi","Karkirurgi"]
[252101,"Mammakursus, Aarhus","2521",2100,"Kirurgi","Kirurgi"]
[252102,"Teoretisk fælleskirurgisk kursus","2521",2100,"Kirurgi","Kirurgi"]
[252103,"Den kirurgiske kræftpatient","2521",2100,"Kirurgi","Kirurgi"]
[252104,"Avanceret kirurgisk endoskopi, Kbh","2521",2100,"Kirurgi","Kirurgi"]
[252105,"Den akutte kirurgiske patient","2521",2100,"Kirurgi","Kirurgi"]
[252106,"Børnekirurgi","2521",2100,"Kirurgi","Kirurgi"]
[252107,"Traumatologi Aarhus","2521",2100,"Kirurgi","Kirurgi"]
[252108,"Den akutte patient Aarhus","2521",2100,"Kirurgi","Kirurgi"]
[252109,"Avanceret kirurgisk endoskopi, ","2521",2100,"Kirurgi","Kirurgi"]
[252110,"Mammakursus, Aarhus Efterår",{"$f":"IF(LEN(A351)=5,LEFT(A351,3),LEFT(A351,4))","v":"2521"},2100,"Kirurgi","Kirurgi"]
[252111,"Teoretisk fælleskirurgisk kursus Efterår","2521",2100,"Kirurgi","Kirurgi"]
[252113,"Den kirurgiske kræftpatient Aarhus","2521",2100,"Kirurgi","Kirurgi"]
[252114,"traumatologi Odense","2521",2100,"Kirurgi","Kirurgi"]
[252115,"Børnekirurgi Efterår","2521",2100,"Kirurgi","Kirurgi"]
[252201,"Praktisk fælleskirurgisk kursus,Århus","2522",2200,"Kir. færdighedskurser, KBH, Odense og Århus","Kir._færdighedskurser_KBH_Odense_og_Århus"]
[252202,"Praktisk fælleskirurgisk kursus,Odense","2522",2200,"Kir. færdighedskurser, KBH, Odense og Århus","Kir._færdighedskurser_KBH_Odense_og_Århus"]
[252203,"Laparoskopisk kirurgi, København","2522",2200,"Kir. færdighedskurser, KBH, Odense og Århus","Kir._færdighedskurser_KBH_Odense_og_Århus"]
[252204,"Åben kirurgi,København","2522",2200,"Kir. færdighedskurser, KBH, Odense og Århus","Kir._færdighedskurser_KBH_Odense_og_Århus"]
[252205,"Åben kirurgi, Odense","2522",2200,"Kir. færdighedskurser, KBH, Odense og Århus","Kir._færdighedskurser_KBH_Odense_og_Århus"]
[252206,"Praktisk fælleskirurgisk kursus,København","2522",2200,"Kir. færdighedskurser, KBH, Odense og Århus","Kir._færdighedskurser_KBH_Odense_og_Århus"]
[252207,"Laparoskopisk kursus, Århus","2522",2200,"Kir. færdighedskurser, KBH, Odense og Århus","Kir._færdighedskurser_KBH_Odense_og_Århus"]
[252208,"Praktisk fælleskirurgisk kursus, Århus","2522",2200,"Kir. færdighedskurser, KBH, Odense og Århus","Kir._færdighedskurser_KBH_Odense_og_Århus"]
[252209,"Åben kirurgi, Århus","2522",2200,"Kir. færdighedskurser, KBH, Odense og Århus","Kir._færdighedskurser_KBH_Odense_og_Århus"]
[252210,"Praktisk fælleskirurgisk kursus, København","2522",2200,"Kir. færdighedskurser, KBH, Odense og Århus","Kir._færdighedskurser_KBH_Odense_og_Århus"]
[252211,"Laparoskopisk kirurgi, Odense","2522",2200,"Kir. færdighedskurser, KBH, Odense og Århus","Kir._færdighedskurser_KBH_Odense_og_Århus"]
[252401,"Klinisk Biokemisk Farmakologi og Toksikologi","2524",2400,"Klinisk Biokemi","Klinisk_Biokemi"]
[252402,"Nordisk kursus i klinisk biokemi","2524",2400,"Klinisk Biokemi","Klinisk_Biokemi"]
[252403,"Projektledelse og metodevalidering","2524",2400,"Klinisk Biokemi","Klinisk_Biokemi"]
[252501,"Farmakoøkonomi","2525",2500,"Klinisk Farmakologi","Klinisk_Farmakologi"]
[252502,"Farmakodynamik","2525",2500,"Klinisk Farmakologi","Klinisk_Farmakologi"]
[252503,"Farmakoepidemiologi","2525",2500,"Klinisk Farmakologi","Klinisk_Farmakologi"]
[252504,"Lægemiddelbivirkninger og forgiftninger","2525",2500,"Klinisk Farmakologi","Klinisk_Farmakologi"]
[252601,"Isotopteknik 1 - \"Radioaktive isotoper og ioniserende stråling\" (Kbh)","2526",2600,"Klinisk Fysiologi og Nuklearmedicin","Klinisk_Fysiologi_og_Nuklearmedicin"]
[252602,"Metodekursus 1 (Videregående isotopkursus)","2526",2600,"Klinisk Fysiologi og Nuklearmedicin","Klinisk_Fysiologi_og_Nuklearmedicin"]
[252603,"Bevægeapparatets patofysiologi og infektion/inflammation","2526",2600,"Klinisk Fysiologi og Nuklearmedicin","Klinisk_Fysiologi_og_Nuklearmedicin"]
[252604,"Kardiovaskulær patofysiologi ","2526",2600,"Klinisk Fysiologi og Nuklearmedicin","Klinisk_Fysiologi_og_Nuklearmedicin"]
[252605,"Endokrin og mave-tarmkanalens patofysiologi","2526",2600,"Klinisk Fysiologi og Nuklearmedicin","Klinisk_Fysiologi_og_Nuklearmedicin"]
[252701,"Klinisk Genetik 1","2527",2700,"Klinisk Genetik","Klinisk_Genetik"]
[252702,"Kursus i molekylærgenetik","2527",2700,"Klinisk Genetik","Klinisk_Genetik"]
[252703,"Genetisk rådgivning og kommunikation","2527",2700,"Klinisk Genetik","Klinisk_Genetik"]
[252801,"Praktisk kursus i immunologiske metoder","2528",2800,"Klinisk Immunologi","Klinisk_Immunologi"]
[252802,"Donorkriterier og donorscreening ","2528",2800,"Klinisk Immunologi","Klinisk_Immunologi"]
[252803,"Produktion og anvendelse af blodkomponenter (SoHO) samt blødning og hæmostase","2528",2800,"Klinisk Immunologi","Klinisk_Immunologi"]
[252901,"Kursus i molekylærbiologi","2529",2900,"Klinisk Mikrobiologi","Klinisk_Mikrobiologi"]
[252902,"Kursus i bioinformatik","2529",2900,"Klinisk Mikrobiologi","Klinisk_Mikrobiologi"]
[253001,"Radioterapi","2530",3000,"Klinisk Onkologi","Klinisk_Onkologi"]
[253002,"Kommunikation","2530",3000,"Klinisk Onkologi","Klinisk_Onkologi"]
[253003,"Medicinsk Kræftbehandling","2530",3000,"Klinisk Onkologi","Klinisk_Onkologi"]
[253004,"Onkologiske Sygdomme","2530",3000,"Klinisk Onkologi","Klinisk_Onkologi"]
[253005,"Intern Medicin & Komorbiditet","2530",{"$f":"INDEX(J:J,MATCH(C391,I:I,0))","v":3000},{"$f":"INDEX(K:K,MATCH(D391,J:J,0))","v":"Klinisk Onkologi"},{"$f":"INDEX(L:L,MATCH(E391,K:K,0))","v":"Klinisk_Onkologi"}]
[253006,"Understøttende Behandling","2530",3000,"Klinisk Onkologi","Klinisk_Onkologi"]
[253007,"MDT","2530",3000,"Klinisk Onkologi","Klinisk_Onkologi"]
[253101,"Færdighedskursus","2531",3100,"Neurokirurgi","Neurokirurgi"]
[253102,"Internationale kurser, SNS/EANS","2531",3100,"Neurokirurgi","Neurokirurgi"]
[253201,"Neuromuskulære sygdomme I ","2532",3200,"Neurologi","Neurologi"]
[253202,"Neuromuskulære sygdomme 2","2532",3200,"Neurologi","Neurologi"]
[253203,"Neuroonkologi","2532",3200,"Neurologi","Neurologi"]
[253204,"Anfaldsfænomener og søvn","2532",3200,"Neurologi","Neurologi"]
[253205,"Klinisk neurologi 1 ","2532",3200,"Neurologi","Neurologi"]
[253206,"Neuroinflammation","2532",3200,"Neurologi","Neurologi"]
[253207,"Klinisk neurologi 2","2532",3200,"Neurologi","Neurologi"]
[253208,"Demens og neuropsykologi","2532",3200,"Neurologi","Neurologi"]
[253209,"Cerebrovaskulære sygdomme","2532",3200,"Neurologi","Neurologi"]
[253210,"Klinisk neurologi 1 Efterår","2532",3200,"Neurologi","Neurologi"]
[253301,"I1, Vejle","2533",3300,"Oftalmologi","Oftalmologi"]
[253302,"I1, Kbh",{"$f":"IF(LEN(A407)=5,LEFT(A407,3),LEFT(A407,4))","v":"2533"},3300,"Oftalmologi","Oftalmologi"]
[253303,"HB2","2533",3300,"Oftalmologi","Oftalmologi"]
[253304,"HB3, Ålborg","2533",3300,"Oftalmologi","Oftalmologi"]
[253305,"HB3, Kbh","2533",3300,"Oftalmologi","Oftalmologi"]
[253306,"HB4","2533",3300,"Oftalmologi","Oftalmologi"]
[253307,"HK5","2533",3300,"Oftalmologi","Oftalmologi"]
[253308,"HK6","2533",3300,"Oftalmologi","Oftalmologi"]
[253309,"HK7","2533",3300,"Oftalmologi","Oftalmologi"]
[253310,"HK8",{"$f":"IF(LEN(A415)=5,LEFT(A415,3),LEFT(A415,4))","v":"2533"},3300,"Oftalmologi","Oftalmologi"]
[253311,"HK9","2533",3300,"Oftalmologi","Oftalmologi"]
[253312,"HK10",{"$f":"IF(LEN(A417)=5,LEFT(A417,3),LEFT(A417,4))","v":"2533"},3300,"Oftalmologi","Oftalmologi"]
[253313,"HK11, Ålborg","2533",3300,"Oftalmologi","Oftalmologi"]
[253314,"HK11, Kbh","2533",3300,"Oftalmologi","Oftalmologi"]
[253316,"HK13","2533",3300,"Oftalmologi","Oftalmologi"]
[253401,"Protesekirurgi","2534",3400,"Ortopædisk kirurgi","Ortopædisk_kirurgi"]
[253402,"Børneortopædi","2534",3400,"Ortopædisk kirurgi","Ortopædisk_kirurgi"]
[253403,"Idrætstraumatologi","2534",3400,"Ortopædisk kirurgi","Ortopædisk_kirurgi"]
[253404,"Rygkirurgi","2534",3400,"Ortopædisk kirurgi","Ortopædisk_kirurgi"]
[253405,"Introduktion forår","2534",3400,"Ortopædisk kirurgi","Ortopædisk_kirurgi"]
[253406,"Håndkirurgi","2534",3400,"Ortopædisk kirurgi","Ortopædisk_kirurgi"]
[253407,"Ort. Kir. Statistik og Forskningsmetodologi",{"$f":"IF(LEN(A427)=5,LEFT(A427,3),LEFT(A427,4))","v":"2534"},3400,"Ortopædisk kirurgi","Ortopædisk_kirurgi"]
[253408,"Traumatologi I","2534",3400,"Ortopædisk kirurgi","Ortopædisk_kirurgi"]
[253409,"Traumatologi II","2534",3400,"Ortopædisk kirurgi","Ortopædisk_kirurgi"]
[253410,"Tumorkirurgi","2534",3400,"Ortopædisk kirurgi","Ortopædisk_kirurgi"]
[253411,"Fod / Ankel Kirurgi","2534",3400,"Ortopædisk kirurgi","Ortopædisk_kirurgi"]
[253412,"Introduktion efterår","2534",3400,"Ortopædisk kirurgi","Ortopædisk_kirurgi"]
[253413,"Infektionskirurgi efterår","2534",3400,"Ortopædisk kirurgi","Ortopædisk_kirurgi"]
[253414,"Skulder / Albue Kirurgi","2534",3400,"Ortopædisk kirurgi","Ortopædisk_kirurgi"]
[253501,"Mellemøret","2535",3500,"Oto-rhino-laryngologi","Oto_rhino_laryngologi"]
[253502,"Næse- og bihuler","2535",3500,"Oto-rhino-laryngologi","Oto_rhino_laryngologi"]
[253503,"Billeddiagnostik","2535",3500,"Oto-rhino-laryngologi","Oto_rhino_laryngologi"]
[253504,"Hoved-Hals kirurgi","2535",3500,"Oto-rhino-laryngologi","Oto_rhino_laryngologi"]
[253505,"Endoskopi","2535",3500,"Oto-rhino-laryngologi","Oto_rhino_laryngologi"]
[253506,"Praksis","2535",3500,"Oto-rhino-laryngologi","Oto_rhino_laryngologi"]
[253507,"Audiologi","2535",3500,"Oto-rhino-laryngologi","Oto_rhino_laryngologi"]
[253508,"Paraklinik","2535",3500,"Oto-rhino-laryngologi","Oto_rhino_laryngologi"]
[253509,"Vestibulogi",{"$f":"IF(LEN(A443)=5,LEFT(A443,3),LEFT(A443,4))","v":"2535"},3500,"Oto-rhino-laryngologi","Oto_rhino_laryngologi"]
[253601,"Introduktionskursus","2536",3600,"Patologisk anatomi og cytologi","Patologisk_anatomi_og_cytologi"]
[253602,"Diagnostiske metoder","2536",3600,"Patologisk anatomi og cytologi","Patologisk_anatomi_og_cytologi"]
[253603,"Gastrointestinal patologi","2536",3600,"Patologisk anatomi og cytologi","Patologisk_anatomi_og_cytologi"]
[253604,"Mammapatologi","2536",3600,"Patologisk anatomi og cytologi","Patologisk_anatomi_og_cytologi"]
[253605,"Uro- nyre- og testispatologi","2536",3600,"Patologisk anatomi og cytologi","Patologisk_anatomi_og_cytologi"]
[253606,"Gynækopatologi","2536",3600,"Patologisk anatomi og cytologi","Patologisk_anatomi_og_cytologi"]
[253607,"Nedre luftvejes patologi","2536",3600,"Patologisk anatomi og cytologi","Patologisk_anatomi_og_cytologi"]
[253608,"Molekylærpatologi","2536",3600,"Patologisk anatomi og cytologi","Patologisk_anatomi_og_cytologi"]
[253609,"Øvre luftvejes patologi","2536",3600,"Patologisk anatomi og cytologi","Patologisk_anatomi_og_cytologi"]
[253610,"Dermatopatologi","2536",3600,"Patologisk anatomi og cytologi","Patologisk_anatomi_og_cytologi"]
[253611,"Hæmatopatologi","2536",3600,"Patologisk anatomi og cytologi","Patologisk_anatomi_og_cytologi"]
[253612,"CNS- og muskepatologi","2536",{"$f":"INDEX(J:J,MATCH(C455,I:I,0))","v":3600},{"$f":"INDEX(K:K,MATCH(D455,J:J,0))","v":"Patologisk anatomi og cytologi"},{"$f":"INDEX(L:L,MATCH(E455,K:K,0))","v":"Patologisk_anatomi_og_cytologi"}]
[253613,"Lever- og pancreaspatologi","2536",3600,"Patologisk anatomi og cytologi","Patologisk_anatomi_og_cytologi"]
[253614,"Knogle- bløddelspatologi","2536",3600,"Patologisk anatomi og cytologi","Patologisk_anatomi_og_cytologi"]
[253701,"Nordisk Kursus I Misdannelser","2537",3700,"Plastikkirurgi","Plastikkirurgi"]
[253702,"Nordisk kursus II Traume ","2537",3700,"Plastikkirurgi","Plastikkirurgi"]
[253703,"Nordisk kursus III Cancer","2537",3700,"Plastikkirurgi","Plastikkirurgi"]
[253704,"Nordisk kursus IV Æstetisk","2537",3700,"Plastikkirurgi","Plastikkirurgi"]
[253705,"Mikrokirurgi","2537",3700,"Plastikkirurgi","Plastikkirurgi"]
[253706,"ATLS","2537",3700,"Plastikkirurgi","Plastikkirurgi"]
[253707,"Hovedkursusledermøder","2537",3700,"Plastikkirurgi","Plastikkirurgi"]
[253801,"Ældrepsykiatri ","2538",3800,"Psykiatri","Psykiatri"]
[253802,"Psykiatriens organisatoriske og sociale aspekter ","2538",3800,"Psykiatri","Psykiatri"]
[253803,"Teoretisk grundlag for psykoterapi ","2538",3800,"Psykiatri","Psykiatri"]
[253804,"I Psykopatologi ","2538",3800,"Psykiatri","Psykiatri"]
[253805,"Neuropsykiatri ","2538",3800,"Psykiatri","Psykiatri"]
[253806,"Børne- og ungdomspsyk. lidelser med forløb ind i voksenalderen (1 dag) ","2538",3800,"Psykiatri","Psykiatri"]
[253807,"Oligofreni ","2538",3800,"Psykiatri","Psykiatri"]
[253808,"III Psykopatologi ","2538",3800,"Psykiatri","Psykiatri"]
[253809,"Ældrepsykiatri ","2538",3800,"Psykiatri","Psykiatri"]
[253810,"Misbrug (2 dage) ","2538",3800,"Psykiatri","Psykiatri"]
[253811,"Erklæringsudstedelse (1 dag) ","2538",3800,"Psykiatri","Psykiatri"]
[253812,"II Psykopatologi ","2538",3800,"Psykiatri","Psykiatri"]
[253813,"Børne- og ungdomspsyk. lidelser med forløb ind i voksenalderen (1 dag) ","2538",3800,"Psykiatri","Psykiatri"]
[253814,"Oligofreni ","2538",3800,"Psykiatri","Psykiatri"]
[253815,"Biologiske behandlingsmetoder ","2538",3800,"Psykiatri","Psykiatri"]
[253816,"Retspsykiatri ","2538",3800,"Psykiatri","Psykiatri"]
[253817,"Psykiatriens organisatoriske og sociale aspekter Efterår","2538",3800,"Psykiatri","Psykiatri"]
[253818,"Teoretisk grundlag for psykoterapi Efterår","2538",3800,"Psykiatri","Psykiatri"]
[253819,"I Psykopatologi Efterår",{"$f":"IF(LEN(A483)=5,LEFT(A483,3),LEFT(A483,4))","v":"2538"},3800,"Psykiatri","Psykiatri"]
[253820,"Neuropsykiatri Efterår","2538",3800,"Psykiatri","Psykiatri"]
[253821,"Misbrug (2 dage) Efterår","2538",3800,"Psykiatri","Psykiatri"]
[253822,"Erklæringsudstedelse (1 dag) Efterår","2538",3800,"Psykiatri","Psykiatri"]
[253823,"III Psykopatologi Efterår","2538",3800,"Psykiatri","Psykiatri"]
[253824,"II Psykopatologi Efterår","2538",3800,"Psykiatri","Psykiatri"]
[253825,"Biologiske behandlingsmetoder Efterår","2538",3800,"Psykiatri","Psykiatri"]
[253826,"Retspsykiatri Efterår","2538",3800,"Psykiatri","Psykiatri"]
[253901,"Neuropæditari","2539",3900,"Pædiatri","Pædiatri"]
[253902,"Socialpædiatri","2539",3900,"Pædiatri","Pædiatri"]
[253903,"Neonatologi og børnekirurgi","2539",3900,"Pædiatri","Pædiatri"]
[253904,"Børnepsykiatri","2539",3900,"Pædiatri","Pædiatri"]
[253905,"Akut pædiatri","2539",3900,"Pædiatri","Pædiatri"]
[253906,"Genetik","2539",3900,"Pædiatri","Pædiatri"]
[253907,"Pulmonologi og allergologi","2539",3900,"Pædiatri","Pædiatri"]
[253908,"Endokrinologi","2539",3900,"Pædiatri","Pædiatri"]
[253909,"Infektionspædiatri, immunologi og reumatologi","2539",3900,"Pædiatri","Pædiatri"]
[253910,"Nefrologi og urologisk børnekirurgi","2539",3900,"Pædiatri","Pædiatri"]
[253911,"Gastroenterologi og ernæring ","2539",3900,"Pædiatri","Pædiatri"]
[253912,"Pædiatrisk hæmotologi og onkologi ","2539",3900,"Pædiatri","Pædiatri"]
[253913,"Tværgående pædiatri","2539",3900,"Pædiatri","Pædiatri"]
[253914,"Ungdomsmedicin","2539",3900,"Pædiatri","Pædiatri"]
[253915,"Børnekardiologi","2539",3900,"Pædiatri","Pædiatri"]
[254001,"Retsgenetik, kriminalteknik og findesteder","2540",4000,"Retsmedicin","Retsmedicin"]
[254002,"Retsmedicinsk radiologi og obduktionsteknik","2540",4000,"Retsmedicin","Retsmedicin"]
[254101,"International Sundhed","2541",4100,"Samfundsmedicin","Samfundsmedicin"]
[254102,"Sundhedsfremme, forebyggelse og rehabilitering","2541",4100,"Samfundsmedicin","Samfundsmedicin"]
[254103,"Projektledelse","2541",4100,"Samfundsmedicin","Samfundsmedicin"]
[254104,"Ledelse i sundhedsvæsenet","2541",4100,"Samfundsmedicin","Samfundsmedicin"]
[254105,"Sundhedsøkonomi","2541",4100,"Samfundsmedicin","Samfundsmedicin"]
[254201,"EACTS: Fundamentals in Coronary Artery diseases","2542",4200,"Thoraxkirurgi","Thoraxkirurgi"]
[254202,"EACTS: Fundamentals in Valvular Heart diseases","2542",4200,"Thoraxkirurgi","Thoraxkirurgi"]
[254203,"EACTS: Fundamentals in Thoracic diseases","2542",4200,"Thoraxkirurgi","Thoraxkirurgi"]
[254204,"Perfusions kursus","2542",4200,"Thoraxkirurgi","Thoraxkirurgi"]
[254205,"ATLS","2542",4200,"Thoraxkirurgi","Thoraxkirurgi"]
[254206,"Billeddiagnostisk kursus","2542",4200,"Thoraxkirurgi","Thoraxkirurgi"]
[254207,"Internat VVU","2542",{"$f":"INDEX(J:J,MATCH(C519,I:I,0))","v":4200},{"$f":"INDEX(K:K,MATCH(D519,J:J,0))","v":"Thoraxkirurgi"},{"$f":"INDEX(L:L,MATCH(E519,K:K,0))","v":"Thoraxkirurgi"}]
[254208,"Erstatnings kursus for 244204","2542",4200,"Thoraxkirurgi","Thoraxkirurgi"]
[254301,"Urologisk radiologi","2543",4300,"Urologi","Urologi"]
[254302,"Nefrologi","2543",4300,"Urologi","Urologi"]
[254303,"Urolithiasis","2543",4300,"Urologi","Urologi"]
[254304,"Uro. Mikrobiologi","2543",4300,"Urologi","Urologi"]
[254305,"LUTS/urodynamik","2543",4300,"Urologi","Urologi"]
[254306,"LUTS/urodynamik","2543",4300,"Urologi","Urologi"]
[254307,"Uro. Onkologi","2543",4300,"Urologi","Urologi"]
[254308,"Andrologi/fertilitet","2543",4300,"Urologi","Urologi"]
[254309,"Børneurologi","2543",4300,"Urologi","Urologi"]
[254310,"Færdighedskursus endo 1","2543",4300,"Urologi","Urologi"]
[254311,"Færdighedskursus endo 2","2543",4300,"Urologi","Urologi"]
[254312,"Færdighedskursus endo 3","2543",4300,"Urologi","Urologi"]
[254313,"Færdighedskursus ULS 1","2543",4300,"Urologi","Urologi"]
[254314,"Færdighedskursus ULS 2","2543",4300,"Urologi","Urologi"]
[254315,"Simulationskursus uro.lap 1","2543",4300,"Urologi","Urologi"]
[254316,"Simulationskursus uro.lap 2","2543",4300,"Urologi","Urologi"]
[254317,"Færdighedskursus uro.lap 1","2543",4300,"Urologi","Urologi"]
[254318,"Færidghedskursus uro.lap 2","2543",4300,"Urologi","Urologi"]
[254319,"Revision af database","2543",4300,"Urologi","Urologi"]
[254320,"Færdighedskursus uro.lap 3",{"$f":"IF(LEN(A540)=5,LEFT(A540,3),LEFT(A540,4))","v":"2543"},4300,"Urologi","Urologi"]
[254601,"Respirations- og kredsløbsfysiologi","2546",4600,"Tand-, mund- og kæbekirurgi","Tand_mund_og_kæbekirurgi"]
[254602,"Forskningstræning","2546",4600,"Tand-, mund- og kæbekirurgi","Tand_mund_og_kæbekirurgi"]
[254701,"Knoglemetabolisme","2547",4700,"Ortodonti","Ortodonti"]
[254702,"Traumatologi-implantologi","2547",4700,"Ortodonti","Ortodonti"]
[254703,"Metallurgi","2547",4700,"Ortodonti","Ortodonti"]
[255001,"Operativ Gynækologi I","2550",5000,"Kir. Færdighedskursus operativ gynækologi","Færdighedskurser_operativ_gynækologi"]
[255002,"Operativ Gynækologi II","2550",5000,"Kir. Færdighedskursus operativ gynækologi","Færdighedskurser_operativ_gynækologi"]
[255101,"Ort. Kir Færdighedstræning I","2551",5100,"Kir. Færdighedskursus otopædisk kirurgi","Færdighedskurser_ort._kir."]
[255102,"Ort. Kir Færdighedstræning II","2551",5100,"Kir. Færdighedskursus otopædisk kirurgi","Færdighedskurser_ort._kir."]
[256001,"Hjertelungeredningskursus (ALS)","2560",6000,"Akutmedicin","Akutmedicin"]
[256002,"Akut radiologi for akutlæger","2560",6000,"Akutmedicin","Akutmedicin"]
[256003,"Flowmaster","2560",6000,"Akutmedicin","Akutmedicin"]
[256004,"Akutmedicinsk ultralyd øst","2560",6000,"Akutmedicin","Akutmedicin"]
[256005,"Akutmedicinsk ultralyd syd",{"$f":"IF(LEN(A554)=5,LEFT(A554,3),LEFT(A554,4))","v":"2560"},6000,"Akutmedicin","Akutmedicin"]
[256006,"Akutmedicinsk ultralyd nord","2560",6000,"Akutmedicin","Akutmedicin"]
[256007,"ABCDE","2560",6000,"Akutmedicin","Akutmedicin"]
[256008,"Akutte kirurgiske tilstande","2560",6000,"Akutmedicin","Akutmedicin"]
[256009,"Akut pædiatri","2560",6000,"Akutmedicin","Akutmedicin"]
[256010,"Traumekurset","2560",6000,"Akutmedicin","Akutmedicin"]
[256011,"Symptomer","2560",6000,"Akutmedicin","Akutmedicin"]
[256012,"Katastrofemedicin og transport ","2560",6000,"Akutmedicin","Akutmedicin"]
[null,null,"",{"$error":"#N/A"},{"$error":"#N/A"},{"$error":"#N/A"}]
[null,null,"",{"$error":"#N/A"},{"$error":"#N/A"},{"$error":"#N/A"}]
[null,null,"",{"$error":"#N/A"},{"$error":"#N/A"},{"$error":"#N/A"}]
[null,null,"",{"$error":"#N/A"},{"$error":"#N/A"},{"$error":"#N/A"}]
[null,null,"",{"$error":"#N/A"},{"$error":"#N/A"},{"$error":"#N/A"}]
[null,null,"",{"$error":"#N/A"},{"$error":"#N/A"},{"$error":"#N/A"}]
[null,null,"",{"$error":"#N/A"},{"$error":"#N/A"},{"$error":"#N/A"}]
[null,null,"",{"$error":"#N/A"},{"$error":"#N/A"},{"$error":"#N/A"}]
[null,null,"",{"$error":"#N/A"},{"$error":"#N/A"},{"$error":"#N/A"}]
[null,null,"",{"$error":"#N/A"},{"$error":"#N/A"},{"$error":"#N/A"}]
[null,null,"",{"$error":"#N/A"},{"$error":"#N/A"},{"$error":"#N/A"}]
[null,null,"",{"$error":"#N/A"},{"$error":"#N/A"},{"$error":"#N/A"}]
[null,null,"",{"$error":"#N/A"},{"$error":"#N/A"},{"$error":"#N/A"}]
[null,null,"",{"$error":"#N/A"},{"$error":"#N/A"},{"$error":"#N/A"}]
[null,null,"",{"$error":"#N/A"},{"$error":"#N/A"},{"$error":"#N/A"}]
[null,null,"",{"$error":"#N/A"},{"$error":"#N/A"},{"$error":"#N/A"}]
[null,null,"",{"$error":"#N/A"},{"$error":"#N/A"},{"$error":"#N/A"}]
[null,null,"",{"$error":"#N/A"},{"$error":"#N/A"},{"$error":"#N/A"}]
[null,null,"",{"$error":"#N/A"},{"$error":"#N/A"},{"$error":"#N/A"}]
[null,null,"",{"$error":"#N/A"},{"$error":"#N/A"},{"$error":"#N/A"}]
[null,null,"",{"$error":"#N/A"},{"$error":"#N/A"},{"$error":"#N/A"}]
[null,null,"",{"$f":"INDEX(J:J,MATCH(C583,I:I,0))","v":{"$error":"#N/A"}},{"$f":"INDEX(K:K,MATCH(D583,J:J,0))","v":{"$error":"#N/A"}},{"$f":"INDEX(L:L,MATCH(E583,K:K,0))","v":{"$error":"#N/A"}}]
[null,null,"",{"$error":"#N/A"},{"$error":"#N/A"},{"$error":"#N/A"}]
[null,null,"",{"$error":"#N/A"},{"$error":"#N/A"},{"$error":"#N/A"}]
[null,null,"",{"$error":"#N/A"},{"$error":"#N/A"},{"$error":"#N/A"}]
[null,null,"",{"$error":"#N/A"},{"$error":"#N/A"},{"$error":"#N/A"}]
[null,null,"",{"$error":"#N/A"},{"$error":"#N/A"},{"$error":"#N/A"}]
[null,null,"",{"$error":"#N/A"},{"$error":"#N/A"},{"$error":"#N/A"}]
[null,null,"",{"$error":"#N/A"},{"$error":"#N/A"},{"$error":"#N/A"}]
[null,null,"",{"$error":"#N/A"},{"$error":"#N/A"},{"$error":"#N/A"}]
[null,null,"",{"$error":"#N/A"},{"$error":"#N/A"},{"$error":"#N/A"}]
[null,null,"",{"$error":"#N/A"},{"$error":"#N/A"},{"$error":"#N/A"}]
[null,null,"",{"$error":"#N/A"},{"$error":"#N/A"},{"$error":"#N/A"}]
[null,null,"",{"$error":"#N/A"},{"$error":"#N/A"},{"$error":"#N/A"}]
[null,null,"",{"$error":"#N/A"},{"$error":"#N/A"},{"$error":"#N/A"}]
[null,null,"",{"$error":"#N/A"},{"$error":"#N/A"},{"$error":"#N/A"}]
[null,null,"",{"$error":"#N/A"},{"$error":"#N/A"},{"$error":"#N/A"}]
[null,null,"",{"$error":"#N/A"},{"$error":"#N/A"},{"$error":"#N/A"}]
[null,null,"",{"$error":"#N/A"},{"$error":"#N/A"},{"$error":"#N/A"}]
[null,null,"",{"$error":"#N/A"},{"$error":"#N/A"},{"$error":"#N/A"}]
[null,null,"",{"$error":"#N/A"},{"$error":"#N/A"},{"$error":"#N/A"}]
[null,null,"",{"$error":"#N/A"},{"$error":"#N/A"},{"$error":"#N/A"}]
[null,null,"",{"$error":"#N/A"},{"$error":"#N/A"},{"$error":"#N/A"}]
[null,null,"",{"$error":"#N/A"},{"$error":"#N/A"},{"$error":"#N/A"}]
[null,null,"",{"$error":"#N/A"},{"$error":"#N/A"},{"$error":"#N/A"}]
[null,null,"",{"$error":"#N/A"},{"$error":"#N/A"},{"$error":"#N/A"}]
[null,null,"",{"$error":"#N/A"},{"$error":"#N/A"},{"$error":"#N/A"}]
[null,null,"",{"$error":"#N/A"},{"$error":"#N/A"},{"$error":"#N/A"}]
[null,null,"",{"$error":"#N/A"},{"$error":"#N/A"},{"$error":"#N/A"}]
[null,null,"",{"$error":"#N/A"},{"$error":"#N/A"},{"$error":"#N/A"}]
[null,null,"",{"$error":"#N/A"},{"$error":"#N/A"},{"$error":"#N/A"}]
[null,null,"",{"$error":"#N/A"},{"$error":"#N/A"},{"$error":"#N/A"}]
[null,null,"",{"$error":"#N/A"},{"$error":"#N/A"},{"$error":"#N/A"}]
[null,null,"",{"$error":"#N/A"},{"$error":"#N/A"},{"$error":"#N/A"}]
[null,null,"",{"$error":"#N/A"},{"$error":"#N/A"},{"$error":"#N/A"}]
[null,null,"",{"$error":"#N/A"},{"$error":"#N/A"},{"$error":"#N/A"}]
[null,null,{"$f":"IF(LEN(A618)=5,LEFT(A618,3),LEFT(A618,4))","v":""},{"$error":"#N/A"},{"$error":"#N/A"},{"$error":"#N/A"}]
[null,null,"",{"$error":"#N/A"},{"$error":"#N/A"},{"$error":"#N/A"}]
[null,null,"",{"$error":"#N/A"},{"$error":"#N/A"},{"$error":"#N/A"}]
[null,null,"",{"$error":"#N/A"},{"$error":"#N/A"},{"$error":"#N/A"}]
[null,null,"",{"$error":"#N/A"},{"$error":"#N/A"},{"$error":"#N/A"}]
[null,null,"",{"$error":"#N/A"},{"$error":"#N/A"},{"$error":"#N/A"}]
[null,null,"",{"$error":"#N/A"},{"$error":"#N/A"},{"$error":"#N/A"}]
[null,null,"",{"$error":"#N/A"},{"$error":"#N/A"},{"$error":"#N/A"}]
[null,null,"",{"$error":"#N/A"},{"$error":"#N/A"},{"$error":"#N/A"}]
[null,null,"",{"$error":"#N/A"},{"$error":"#N/A"},{"$error":"#N/A"}]
[null,null,"",{"$error":"#N/A"},{"$error":"#N/A"},{"$error":"#N/A"}]
[null,null,"",{"$error":"#N/A"},{"$error":"#N/A"},{"$error":"#N/A"}]
[null,null,"",{"$error":"#N/A"},{"$error":"#N/A"},{"$error":"#N/A"}]
[null,null,"",{"$error":"#N/A"},{"$error":"#N/A"},{"$error":"#N/A"}]
[null,null,"",{"$error":"#N/A"},{"$error":"#N/A"},{"$error":"#N/A"}]
[null,null,"",{"$error":"#N/A"},{"$error":"#N/A"},{"$error":"#N/A"}]
[null,null,"",{"$error":"#N/A"},{"$error":"#N/A"},{"$error":"#N/A"}]
[null,null,"",{"$error":"#N/A"},{"$error":"#N/A"},{"$error":"#N/A"}]
[null,null,"",{"$error":"#N/A"},{"$error":"#N/A"},{"$error":"#N/A"}]
[null,null,"",{"$error":"#N/A"},{"$error":"#N/A"},{"$error":"#N/A"}]
[null,null,"",{"$error":"#N/A"},{"$error":"#N/A"},{"$error":"#N/A"}]
[null,null,"",{"$error":"#N/A"},{"$error":"#N/A"},{"$error":"#N/A"}]
[null,null,"",{"$error":"#N/A"},{"$error":"#N/A"},{"$error":"#N/A"}]
[null,null,"",{"$error":"#N/A"},{"$error":"#N/A"},{"$error":"#N/A"}]
[null,null,"",{"$error":"#N/A"},{"$error":"#N/A"},{"$error":"#N/A"}]
[null,null,"",{"$error":"#N/A"},{"$error":"#N/A"},{"$error":"#N/A"}]
[null,null,"",{"$error":"#N/A"},{"$error":"#N/A"},{"$error":"#N/A"}]
[null,null,"",{"$error":"#N/A"},{"$error":"#N/A"},{"$error":"#N/A"}]
[null,null,"",{"$error":"#N/A"},{"$error":"#N/A"},{"$error":"#N/A"}]
[null,null,"",{"$f":"INDEX(J:J,MATCH(C647,I:I,0))","v":{"$error":"#N/A"}},{"$f":"INDEX(K:K,MATCH(D647,J:J,0))","v":{"$error":"#N/A"}},{"$f":"INDEX(L:L,MATCH(E647,K:K,0))","v":{"$error":"#N/A"}}]
[null,null,"",{"$error":"#N/A"},{"$error":"#N/A"},{"$error":"#N/A"}]
[null,null,"",{"$error":"#N/A"},{"$error":"#N/A"},{"$error":"#N/A"}]
[null,null,"",{"$error":"#N/A"},{"$error":"#N/A"},{"$error":"#N/A"}]
[null,null,"",{"$error":"#N/A"},{"$error":"#N/A"},{"$error":"#N/A"}]
[null,null,"",{"$error":"#N/A"},{"$error":"#N/A"},{"$error":"#N/A"}]
[null,null,"",{"$error":"#N/A"},{"$error":"#N/A"},{"$error":"#N/A"}]
[null,null,"",{"$error":"#N/A"},{"$error":"#N/A"},{"$error":"#N/A"}]
[null,null,"",{"$error":"#N/A"},{"$error":"#N/A"},{"$error":"#N/A"}]
[null,null,"",{"$error":"#N/A"},{"$error":"#N/A"},{"$error":"#N/A"}]
[null,null,"",{"$error":"#N/A"},{"$error":"#N/A"},{"$error":"#N/A"}]
[null,null,"",{"$error":"#N/A"},{"$error":"#N/A"},{"$error":"#N/A"}]
[null,null,"",{"$error":"#N/A"},{"$error":"#N/A"},{"$error":"#N/A"}]
[null,null,"",{"$error":"#N/A"},{"$error":"#N/A"},{"$error":"#N/A"}]
[null,null,"",{"$error":"#N/A"},{"$error":"#N/A"},{"$error":"#N/A"}]
[null,null,"",{"$error":"#N/A"},{"$error":"#N/A"},{"$error":"#N/A"}]
[null,null,"",{"$error":"#N/A"},{"$error":"#N/A"},{"$error":"#N/A"}]
[null,null,"",{"$error":"#N/A"},{"$error":"#N/A"},{"$error":"#N/A"}]
[null,null,"",{"$error":"#N/A"},{"$error":"#N/A"},{"$error":"#N/A"}]
[null,null,"",{"$error":"#N/A"},{"$error":"#N/A"},{"$error":"#N/A"}]
[null,null,"",{"$error":"#N/A"},{"$error":"#N/A"},{"$error":"#N/A"}]
[null,null,"",{"$error":"#N/A"},{"$error":"#N/A"},{"$error":"#N/A"}]
[null,null,"",{"$error":"#N/A"},{"$error":"#N/A"},{"$error":"#N/A"}]
[null,null,"",{"$error":"#N/A"},{"$error":"#N/A"},{"$error":"#N/A"}]
[null,null,"",{"$error":"#N/A"},{"$error":"#N/A"},{"$error":"#N/A"}]
[null,null,"",{"$error":"#N/A"},{"$error":"#N/A"},{"$error":"#N/A"}]
[null,null,"",{"$error":"#N/A"},{"$error":"#N/A"},{"$error":"#N/A"}]
[null,null,"",{"$error":"#N/A"},{"$error":"#N/A"},{"$error":"#N/A"}]
[null,null,"",{"$error":"#N/A"},{"$error":"#N/A"},{"$error":"#N/A"}]
[null,null,"",{"$error":"#N/A"},{"$error":"#N/A"},{"$error":"#N/A"}]
[null,null,"",{"$error":"#N/A"},{"$error":"#N/A"},{"$error":"#N/A"}]
[null,null,"",{"$error":"#N/A"},{"$error":"#N/A"},{"$error":"#N/A"}]
[null,null,"",{"$error":"#N/A"},{"$error":"#N/A"},{"$error":"#N/A"}]
[null,null,"",{"$error":"#N/A"},{"$error":"#N/A"},{"$error":"#N/A"}]
[null,null,"",{"$error":"#N/A"},{"$error":"#N/A"},{"$error":"#N/A"}]
[null,null,{"$f":"IF(LEN(A682)=5,LEFT(A682,3),LEFT(A682,4))","v":""},{"$error":"#N/A"},{"$error":"#N/A"},{"$error":"#N/A"}]
[null,null,"",{"$error":"#N/A"},{"$error":"#N/A"},{"$error":"#N/A"}]
[null,null,"",{"$error":"#N/A"},{"$error":"#N/A"},{"$error":"#N/A"}]
[null,null,"",{"$error":"#N/A"},{"$error":"#N/A"},{"$error":"#N/A"}]
[null,null,"",{"$error":"#N/A"},{"$error":"#N/A"},{"$error":"#N/A"}]
[null,null,"",{"$error":"#N/A"},{"$error":"#N/A"},{"$error":"#N/A"}]
[null,null,"",{"$error":"#N/A"},{"$error":"#N/A"},{"$error":"#N/A"}]
[null,null,"",{"$error":"#N/A"},{"$error":"#N/A"},{"$error":"#N/A"}]
[null,null,"",{"$error":"#N/A"},{"$error":"#N/A"},{"$error":"#N/A"}]
[null,null,"",{"$error":"#N/A"},{"$error":"#N/A"},{"$error":"#N/A"}]
[null,null,"",{"$error":"#N/A"},{"$error":"#N/A"},{"$error":"#N/A"}]
[null,null,"",{"$error":"#N/A"},{"$error":"#N/A"},{"$error":"#N/A"}]
[null,null,"",{"$error":"#N/A"},{"$error":"#N/A"},{"$error":"#N/A"}]
[null,null,"",{"$error":"#N/A"},{"$error":"#N/A"},{"$error":"#N/A"}]
[null,null,"",{"$error":"#N/A"},{"$error":"#N/A"},{"$error":"#N/A"}]
[null,null,"",{"$error":"#N/A"},{"$error":"#N/A"},{"$error":"#N/A"}]
[null,null,"",{"$error":"#N/A"},{"$error":"#N/A"},{"$error":"#N/A"}]
[null,null,"",{"$error":"#N/A"},{"$error":"#N/A"},{"$error":"#N/A"}]
[null,null,"",{"$error":"#N/A"},{"$error":"#N/A"},{"$error":"#N/A"}]
[null,null,"",{"$error":"#N/A"},{"$error":"#N/A"},{"$error":"#N/A"}]
[null,null,"",{"$error":"#N/A"},{"$error":"#N/A"},{"$error":"#N/A"}]
[null,null,"",{"$error":"#N/A"},{"$error":"#N/A"},{"$error":"#N/A"}]
[null,null,"",{"$error":"#N/A"},{"$error":"#N/A"},{"$error":"#N/A"}]
[null,null,"",{"$error":"#N/A"},{"$error":"#N/A"},{"$error":"#N/A"}]
[null,null,"",{"$error":"#N/A"},{"$error":"#N/A"},{"$error":"#N/A"}]
[null,null,"",{"$error":"#N/A"},{"$error":"#N/A"},{"$error":"#N/A"}]
[null,null,"",{"$error":"#N/A"},{"$error":"#N/A"},{"$error":"#N/A"}]
[null,null,"",{"$error":"#N/A"},{"$error":"#N/A"},{"$error":"#N/A"}]
[null,null,"",{"$error":"#N/A"},{"$error":"#N/A"},{"$error":"#N/A"}]
[null,null,"",{"$f":"INDEX(J:J,MATCH(C711,I:I,0))","v":{"$error":"#N/A"}},{"$f":"INDEX(K:K,MATCH(D711,J:J,0))","v":{"$error":"#N/A"}},{"$f":"INDEX(L:L,MATCH(E711,K:K,0))","v":{"$error":"#N/A"}}]
[null,null,"",{"$error":"#N/A"},{"$error":"#N/A"},{"$error":"#N/A"}]
[null,null,"",{"$error":"#N/A"},{"$error":"#N/A"},{"$error":"#N/A"}]
[null,null,"",{"$error":"#N/A"},{"$error":"#N/A"},{"$error":"#N/A"}]
[null,null,"",{"$error":"#N/A"},{"$error":"#N/A"},{"$error":"#N/A"}]
[null,null,"",{"$error":"#N/A"},{"$error":"#N/A"},{"$error":"#N/A"}]
[null,null,"",{"$error":"#N/A"},{"$error":"#N/A"},{"$error":"#N/A"}]
[null,null,"",{"$error":"#N/A"},{"$error":"#N/A"},{"$error":"#N/A"}]
[null,null,"",{"$error":"#N/A"},{"$error":"#N/A"},{"$error":"#N/A"}]
[null,null,"",{"$error":"#N/A"},{"$error":"#N/A"},{"$error":"#N/A"}]
[null,null,"",{"$error":"#N/A"},{"$error":"#N/A"},{"$error":"#N/A"}]
[null,null,"",{"$error":"#N/A"},{"$error":"#N/A"},{"$error":"#N/A"}]
[null,null,"",{"$error":"#N/A"},{"$error":"#N/A"},{"$error":"#N/A"}]
[null,null,"",{"$error":"#N/A"},{"$error":"#N/A"},{"$error":"#N/A"}]
[null,null,"",{"$error":"#N/A"},{"$error":"#N/A"},{"$error":"#N/A"}]
[null,null,"",{"$error":"#N/A"},{"$error":"#N/A"},{"$error":"#N/A"}]
[null,null,"",{"$error":"#N/A"},{"$error":"#N/A"},{"$error":"#N/A"}]
[null,null,"",{"$error":"#N/A"},{"$error":"#N/A"},{"$error":"#N/A"}]
[null,null,"",{"$error":"#N/A"},{"$error":"#N/A"},{"$error":"#N/A"}]
[null,null,"",{"$error":"#N/A"},{"$error":"#N/A"},{"$error":"#N/A"}]
[null,null,"",{"$error":"#N/A"},{"$error":"#N/A"},{"$error":"#N/A"}]
[null,null,"",{"$error":"#N/A"},{"$error":"#N/A"},{"$error":"#N/A"}]
[null,null,"",{"$error":"#N/A"},{"$error":"#N/A"},{"$error":"#N/A"}]
[null,null,"",{"$error":"#N/A"},{"$error":"#N/A"},{"$error":"#N/A"}]
[null,null,"",{"$error":"#N/A"},{"$error":"#N/A"},{"$error":"#N/A"}]
[null,null,"",{"$error":"#N/A"},{"$error":"#N/A"},{"$error":"#N/A"}]
[null,null,"",{"$error":"#N/A"},{"$error":"#N/A"},{"$error":"#N/A"}]
[null,null,"",{"$error":"#N/A"},{"$error":"#N/A"},{"$error":"#N/A"}]
[null,null,"",{"$error":"#N/A"},{"$error":"#N/A"},{"$error":"#N/A"}]
[null,null,"",{"$error":"#N/A"},{"$error":"#N/A"},{"$error":"#N/A"}]
[null,null,"",{"$error":"#N/A"},{"$error":"#N/A"},{"$error":"#N/A"}]
[null,null,"",{"$error":"#N/A"},{"$error":"#N/A"},{"$error":"#N/A"}]
[null,null,"",{"$error":"#N/A"},{"$error":"#N/A"},{"$error":"#N/A"}]
[null,null,"",{"$error":"#N/A"},{"$error":"#N/A"},{"$error":"#N/A"}]
[null,null,"",{"$error":"#N/A"},{"$error":"#N/A"},{"$error":"#N/A"}]
[null,null,{"$f":"IF(LEN(A746)=5,LEFT(A746,3),LEFT(A746,4))","v":""},{"$error":"#N/A"},{"$error":"#N/A"},{"$error":"#N/A"}]
[null,null,"",{"$error":"#N/A"},{"$error":"#N/A"},{"$error":"#N/A"}]
[null,null,"",{"$error":"#N/A"},{"$error":"#N/A"},{"$error":"#N/A"}]
[null,null,"",{"$error":"#N/A"},{"$error":"#N/A"},{"$error":"#N/A"}]
[null,null,"",{"$error":"#N/A"},{"$error":"#N/A"},{"$error":"#N/A"}]
[null,null,"",{"$error":"#N/A"},{"$error":"#N/A"},{"$error":"#N/A"}]
[null,null,"",{"$error":"#N/A"},{"$error":"#N/A"},{"$error":"#N/A"}]
[null,null,"",{"$error":"#N/A"},{"$error":"#N/A"},{"$error":"#N/A"}]
[null,null,"",{"$error":"#N/A"},{"$error":"#N/A"},{"$error":"#N/A"}]
[null,null,"",{"$error":"#N/A"},{"$error":"#N/A"},{"$error":"#N/A"}]
[null,null,"",{"$error":"#N/A"},{"$error":"#N/A"},{"$error":"#N/A"}]
[null,null,"",{"$error":"#N/A"},{"$error":"#N/A"},{"$error":"#N/A"}]
[null,null,"",{"$error":"#N/A"},{"$error":"#N/A"},{"$error":"#N/A"}]
[null,null,"",{"$error":"#N/A"},{"$error":"#N/A"},{"$error":"#N/A"}]
[null,null,"",{"$error":"#N/A"},{"$error":"#N/A"},{"$error":"#N/A"}]
[null,null,"",{"$error":"#N/A"},{"$error":"#N/A"},{"$error":"#N/A"}]
[null,null,"",{"$error":"#N/A"},{"$error":"#N/A"},{"$error":"#N/A"}]
[null,null,"",{"$error":"#N/A"},{"$error":"#N/A"},{"$error":"#N/A"}]
[null,null,"",{"$error":"#N/A"},{"$error":"#N/A"},{"$error":"#N/A"}]
[null,null,"",{"$error":"#N/A"},{"$error":"#N/A"},{"$error":"#N/A"}]
[null,null,"",{"$error":"#N/A"},{"$error":"#N/A"},{"$error":"#N/A"}]
[null,null,"",{"$error":"#N/A"},{"$error":"#N/A"},{"$error":"#N/A"}]
[null,null,"",{"$error":"#N/A"},{"$error":"#N/A"},{"$error":"#N/A"}]
[null,null,"",{"$error":"#N/A"},{"$error":"#N/A"},{"$error":"#N/A"}]
[null,null,"",{"$error":"#N/A"},{"$error":"#N/A"},{"$error":"#N/A"}]
[null,null,"",{"$error":"#N/A"},{"$error":"#N/A"},{"$error":"#N/A"}]
[null,null,"",{"$error":"#N/A"},{"$error":"#N/A"},{"$error":"#N/A"}]
[null,null,"",{"$error":"#N/A"},{"$error":"#N/A"},{"$error":"#N/A"}]
[null,null,"",{"$error":"#N/A"},{"$error":"#N/A"},{"$error":"#N/A"}]
[null,null,"",{"$f":"INDEX(J:J,MATCH(C775,I:I,0))","v":{"$error":"#N/A"}},{"$f":"INDEX(K:K,MATCH(D775,J:J,0))","v":{"$error":"#N/A"}},{"$f":"INDEX(L:L,MATCH(E775,K:K,0))","v":{"$error":"#N/A"}}]
[null,null,"",{"$error":"#N/A"},{"$error":"#N/A"},{"$error":"#N/A"}]
[null,null,"",{"$error":"#N/A"},{"$error":"#N/A"},{"$error":"#N/A"}]
[null,null,"",{"$error":"#N/A"},{"$error":"#N/A"},{"$error":"#N/A"}]
[null,null,"",{"$error":"#N/A"},{"$error":"#N/A"},{"$error":"#N/A"}]
[null,null,"",{"$error":"#N/A"},{"$error":"#N/A"},{"$error":"#N/A"}]
[null,null,"",{"$error":"#N/A"},{"$error":"#N/A"},{"$error":"#N/A"}]
[null,null,"",{"$error":"#N/A"},{"$error":"#N/A"},{"$error":"#N/A"}]
[null,null,"",{"$error":"#N/A"},{"$error":"#N/A"},{"$error":"#N/A"}]
[null,null,"",{"$error":"#N/A"},{"$error":"#N/A"},{"$error":"#N/A"}]
[null,null,"",{"$error":"#N/A"},{"$error":"#N/A"},{"$error":"#N/A"}]
[null,null,"",{"$error":"#N/A"},{"$error":"#N/A"},{"$error":"#N/A"}]
[null,null,"",{"$error":"#N/A"},{"$error":"#N/A"},{"$error":"#N/A"}]
[null,null,"",{"$error":"#N/A"},{"$error":"#N/A"},{"$error":"#N/A"}]
[null,null,"",{"$error":"#N/A"},{"$error":"#N/A"},{"$error":"#N/A"}]

{"sheet":"Adm.ark specialer","index":2,"n_rows":93,"n_cols":151,"rows_kept":93,"cut":false,"hidden":false,"merged":[]}
["Speciale",null,"Nr.","Almen_Medicin_Kbh",null,"Nr.","Almen_Medicin_Odense",null,"Nr.","Almen_Medicin_Aarhus",null,"Nr.","Anæstesiologi",null,"Nr.","Arbejdsmedicin",null,"Nr.","Børne_og_ungdomspsykiatri",null,"Nr.","Dermato_venerologi",null,"Nr.","Diagnostisk_radiologi",null,"Nr.","Gynækologi_og_obstetrik",null,"Nr.","IM_Endokrinologi",null,"Nr.","IM_Fælleskurser",null,"Nr.","IM_Gastroenterologi_og_Hepatologi",null,"Nr.","IM_Geriatri",null,"Nr.","IM_Hæmatologi",null,"Nr.","IM_Infektionsmedicin",null,"Nr.","IM_Kardiologi",null,"Nr.","IM_Lungesygdomme",null,"Nr.","IM_Nefrologi",null,"Nr.","IM_Reumatologi",null,"Nr.","Karkirurgi",null,"Nr.","Kirurgi",null,"Nr.","Kir._færdighedskurser_KBH_Odense_og_Århus",null,"Nr.","Kir._Færdighedskurser_Århus",null,"Nr.","Klinisk_Biokemi",null,"Nr.","Klinisk_Farmakologi",null,"Nr.","Klinisk_Fysiologi_og_Nuklearmedicin",null,"Nr.","Klinisk_Genetik",null,"Nr.","Klinisk_Immunologi",null,"Nr.","Klinisk_Mikrobiologi",null,"Nr.","Klinisk_Onkologi",null,"Nr.","Neurokirurgi",null,"Nr.","Neurologi",null,"Nr.","Oftalmologi",null,"Nr.","Ortopædisk_kirurgi",null,"Nr.","Oto_rhino_laryngologi",null,"Nr.","Patologisk_anatomi_og_cytologi",null,"Nr.","Plastikkirurgi",null,"Nr.","Psykiatri",null,"Nr.","Pædiatri",null,"Nr.","Retsmedicin",null,"Nr.","Samfundsmedicin",null,"Nr.","Thoraxkirurgi",null,"Nr.","Urologi",null,"Nr.","SOL_2",null,"Nr.","Kommunallægekurser",null,"Nr.","Tand_mund_og_kæbekirurgi",null,"Nr.","Ortodonti",null,"Nr.","Færdighedskurser_operativ_gynækologi",null,"Nr.","Færdighedskurser_ort._kir.",null,"Nr.","Akutmedicin"]
["[vælg fra liste]",null,null,"[vælg fra liste]",null,null,"[vælg fra liste]",null,null,"[vælg fra liste]",null,null,"[vælg fra liste]",null,null,"[vælg fra liste]",null,null,"[vælg fra liste]",null,null,"[vælg fra liste]",null,null,"[vælg fra liste]",null,null,"[vælg fra liste]",null,null,"[vælg fra liste]",null,null,"[vælg fra liste]",null,null,"[vælg fra liste]",null,null,"[vælg fra liste]",null,null,"[vælg fra liste]",null,null,"[vælg fra liste]",null,null,"[vælg fra liste]",null,null,"[vælg fra liste]",null,null,"[vælg fra liste]",null,null,"[vælg fra liste]",null,null,"[vælg fra liste]",null,null,"[vælg fra liste]",null,null,"[vælg fra liste]",null,null,"Udgået",null,null,"[vælg fra liste]",null,null,"[vælg fra liste]",null,null,"[vælg fra liste]",null,null,"[vælg fra liste]",null,null,"[vælg fra liste]",null,null,"[vælg fra liste]",null,null,"[vælg fra liste]",null,null,"[vælg fra liste]",null,null,"[vælg fra liste]",null,null,"[vælg fra liste]",null,null,"[vælg fra liste]",null,null,"[vælg fra liste]",null,null,"[vælg fra liste]",null,null,"[vælg fra liste]",null,null,"[vælg fra liste]",null,null,"[vælg fra liste]",null,null,"[vælg fra liste]",null,null,"[vælg fra liste]",null,null,"[vælg fra liste]",null,null,"[vælg fra liste]",null,null,"[vælg fra liste]",null,null,"[vælg fra liste]",null,null,"[vælg fra liste]",null,null,"[vælg fra liste]",null,null,"[vælg fra liste]",null,null,"[vælg fra liste]",null,null,"[vælg fra liste]"]
["Akutmedicin",null,25101,"ØST29 modul 13",null,25201,"SYD 2021-1",null,25301,"Nord48",null,25401,"Luftvejshåndtering",null,25501,"Klinisk arbejdsmedicin",null,25601,"ADHD, Komorbiditet og differentialdiagnostik",null,25701,"Den geriatriske patient og lokalbehandling (delkursus 1)",null,25801,"Abdominal radiologi",null,25901,"Intrapartal obstetrik",null,251001,"Laboratorieteknik",null,251101,"Akut medicin, Nord - Maj",null,251201,"Gastrointestinal endoskopi",null,251301,"Geriatriske sygdomme 1, hjerte, lunge, endo",null,251401,"Lavmaligne lymfeproliferative sygdomme",null,251501,"Teoretisk kursus i mikrobiologi",null,251601,"TEE simulation",null,251701,"Kursus i Klinisk respirationsfysiologi"," ",251801,"Akut og kronisk glomerulonephritis, HUS og TTP"," ",251901,"Delkursus 1 - Inflammatoriske lidelser 1",null,252001,"Supraaortikale lidelser",null,252101,"Mammakursus, Aarhus",null,252201,"Praktisk fælleskirurgisk kursus,Århus",null,null,null,null,252401,"Klinisk Biokemisk Farmakologi og Toksikologi",null,252501,"Farmakoøkonomi",null,252601,"Isotopteknik 1 - \"Radioaktive isotoper og ioniserende stråling\" (Kbh)",null,252701,"Klinisk Genetik 1",null,252801,"Praktisk kursus i immunologiske metoder",null,252901,"Kursus i molekylærbiologi",null,253001,"Radioterapi",null,253101,"Færdighedskursus",null,253201,"Neuromuskulære sygdomme I ",null,253301,"I1, Vejle",null,253401,"Protesekirurgi",null,253501,"Mellemøret",null,253601,"Introduktionskursus",null,253701,"Nordisk Kursus I Misdannelser",null,253801,"Ældrepsykiatri ",null,253901,"Neuropæditari",null,254001,"Retsgenetik, kriminalteknik og findesteder",null,254101,"International Sundhed",null,254201,"EACTS: Fundamentals in Coronary Artery diseases",null,254301,"Urologisk radiologi",null,254415,"18.-20. august 2025",null,null,null,null,254601,"Respirations- og kredsløbsfysiologi",null,254701,"Knoglemetabolisme",null,255001,"Operativ Gynækologi I",null,255101,"Ort. Kir Færdighedstræning I",null,256001,"Hjertelungeredningskursus (ALS)"]
["Almen_Medicin_Aarhus",null,25102,"ØST29 modul 14",null,25202,"SYD 2021-2",null,25302,"Nord47",null,25402,"Avanceret Intensiv terapi",null,25502,"Eksponerings-, årsags- og risikovurdering, modul 1 (tox)",null,25602,"Farmakologisk behandling af ADHD (Psykofarmakologi 2)",null,25702,"Kursus i basal dermatologi (Øst) (delkursus 0)",null,25802,"Fysik og radiobiologi",null,25902,"Urogynækologi",null,251002,"Diabetes og ernæringsbetingede sygdomme",null,251102,"Akut medicin, Syd - Maj",null,251202,"Hepatologi",null,251302,"Den Geriatriske Ekspert",null,251402,"Højmaligne lymfeproliferative sygdomme",null,251502,"HIV infektion",null,251602,"TEE simulation",null,251702,"Kursus i KOL og NIV",null,251802,"Kursus i Nyrefysiologi",null,251902,"Delkursus 2 - Inflammatoriske lidelser 2",null,252002,"Basalt ultralydskursus",null,252102,"Teoretisk fælleskirurgisk kursus",null,252202,"Praktisk fælleskirurgisk kursus,Odense",null,null,null,null,252402,"Nordisk kursus i klinisk biokemi",null,252502,"Farmakodynamik",null,252602,"Metodekursus 1 (Videregående isotopkursus)",null,252702,"Kursus i molekylærgenetik",null,252802,"Donorkriterier og donorscreening ",null,252902,"Kursus i bioinformatik",null,253002,"Kommunikation",null,253102,"Internationale kurser, SNS/EANS",null,253202,"Neuromuskulære sygdomme 2",null,253302,"I1, Kbh",null,253402,"Børneortopædi",null,253502,"Næse- og bihuler",null,253602,"Diagnostiske metoder",null,253702,"Nordisk kursus II Traume ",null,253802,"Psykiatriens organisatoriske og sociale aspekter ",null,253902,"Socialpædiatri",null,254002,"Retsmedicinsk radiologi og obduktionsteknik",null,254102,"Sundhedsfremme, forebyggelse og rehabilitering",null,254202,"EACTS: Fundamentals in Valvular Heart diseases",null,254302,"Nefrologi",null,254416,"25.-27. august 2025",null,null,null,null,254602,"Forskningstræning",null,254702,"Traumatologi-implantologi",null,255002,"Operativ Gynækologi II",null,255102,"Ort. Kir Færdighedstræning II",null,256002,"Akut radiologi for akutlæger"]
["Almen_Medicin_Kbh",null,25103,"ØST29 modul 15",null,25203,"SYD 2021-3",null,25303,"Nord46",null,25403,"Obstetrisk anæstesi og det nyfødte barn - Aarhus",null,25503,"Eksponerings-, årsags- og risikovurdering, modul 2",null,25603,"Retspsykiatri",null,25703,"Den kløende patient og pædiatri (delkursus 2)",null,25803,"Kar og interventionsradiologi",null,25903,"Benign gynækologi",null,251003,"Thyroideasygdomme",null,251103,"Akut medicin, Øst - Maj",null,251203,"Avanceret gastroenterologi og hepatologi",null,251303,"Kursusplanlægning",null,251403,"M-komponent sygdomme",null,251504,"Tropemedicinsk kursus",null,251603,"ÅR 1 KURSUS (HU1)",null,251703,"Kursus i Astma",null,251803,"Dialysebehandling og plasmaferese"," ",251903,"Delkursus 3 - Den patologiske underekstremitet og degenerative rygsygdomme",null,252003,"Kursus i mesenterial iskæmi",null,252103,"Den kirurgiske kræftpatient",null,252203,"Laparoskopisk kirurgi, København",null,null,null,null,252403,"Projektledelse og metodevalidering",null,252503,"Farmakoepidemiologi",null,252603,"Bevægeapparatets patofysiologi og infektion/inflammation",null,252703,"Genetisk rådgivning og kommunikation",null,252803,"Produktion og anvendelse af blodkomponenter (SoHO) samt blødning og hæmostase",null,null,null,null,253003,"Medicinsk Kræftbehandling",null,null,null,null,253203,"Neuroonkologi",null,253303,"HB2",null,253403,"Idrætstraumatologi",null,253503,"Billeddiagnostik",null,253603,"Gastrointestinal patologi",null,253703,"Nordisk kursus III Cancer",null,253803,"Teoretisk grundlag for psykoterapi ",null,253903,"Neonatologi og børnekirurgi",null,null,null,null,254103,"Projektledelse",null,254203,"EACTS: Fundamentals in Thoracic diseases",null,254303,"Urolithiasis",null,254417,"8.-10. september 2025",null,null,null,null,null,null,null,254703,"Metallurgi",null,null,null,null,null,null,null,256003,"Flowmaster"]
["Almen_Medicin_Odense",null,25104,"ØST29 modul 16",null,25203,"SYD 2021-3",null,25303,"Nord46",null,25404,"Ultralyd ",null,null,null,null,25604,"Adfærds- og personlighedsforstyrrelser",null,25705,"Venerologi og anogenitale sygdomme (delkursus 3)",null,25804,"Mammaradiologi",null,25904,"Reproduktionsmedicin",null,251004,"Hypofysesygdomme",null,251104,"Akut medicin, Nord - November",null,null,null,null,null,null,null,251405,"Kommunikation i hæmatologi",null,null,null,null,251604,"ÅR 2 KURSUS (HU2)",null,251704,"Kursus i Allergi ",null,null,null,null,251904,"Delkursus 4 - Den patologiske overekstremitet",null,252004,"Kursus i anæstesiologi ",null,252104,"Avanceret kirurgisk endoskopi, Kbh",null,252204,"Åben kirurgi,København",null,null,null,null,null,null,null,252504,"Lægemiddelbivirkninger og forgiftninger",null,252604,"Kardiovaskulær patofysiologi ",null,null,null,null,null,null,null,null,null,null,253004,"Onkologiske Sygdomme",null,null,null,null,253204,"Anfaldsfænomener og søvn",null,253304,"HB3, Ålborg",null,253404,"Rygkirurgi",null,253504,"Hoved-Hals kirurgi",null,253604,"Mammapatologi",null,253704,"Nordisk kursus IV Æstetisk",null,253804,"I Psykopatologi ",null,253904,"Børnepsykiatri",null,null,null,null,254104,"Ledelse i sundhedsvæsenet",null,254204,"Perfusions kursus",null,254304,"Uro. Mikrobiologi",null,254418,"15.-17. september 2025",null,null,null,null,null,null,null,null,null,null,null,null,null,null,null,null,256004,"Akutmedicinsk ultralyd øst"]
["Anæstesiologi",null,25105,"ØST30 modul 11",null,25204,"SYD 2021-4",null,25304,"Nord45",null,25405,"Anæstesi ",null,null,null,null,25605,"Misbrug",null,25706,"Den akutte patient og lægemiddelreaktioner (delkursus 4)",null,25805,"Muskuloskeletal radiologi",null,25905,"Kommunikation A",null,251005,"Knogle- og calciummetaboliske sygdomme",null,251105,"Akut medicin, Syd - November",null,null,null,null,null,null,null,null,null,null,null,null,null,251605,"ÅR 3 KURSUS (HU3)",null,251705,"Kursus i Pulmonale infektioner ",null,null,null,null,251905,"Delkursus 5 - Vaskulit og bindevævssygdomme",null,252005,"ENHANCE OPEN",null,252105,"Den akutte kirurgiske patient",null,252205,"Åben kirurgi, Odense",null,null,null,null,null,null,null,null,null,null,252605,"Endokrin og mave-tarmkanalens patofysiologi",null,null,null,null,null,null,null,null,null,null,253005,"Intern Medicin & Komorbiditet",null,null,null,null,253205,"Klinisk neurologi 1 ",null,253305,"HB3, Kbh",null,253405,"Introduktion forår",null,253505,"Endoskopi",null,253605,"Uro- nyre- og testispatologi",null,253705,"Mikrokirurgi",null,253805,"Neuropsykiatri ",null,253905,"Akut pædiatri",null,null,null,null,254105,"Sundhedsøkonomi",null,254205,"ATLS",null,254305,"LUTS/urodynamik",null,254419,"29. september-1. oktober 2025",null,null,null,null,null,null,null,null,null,null,null,null,null,null,null,null,256005,"Akutmedicinsk ultralyd syd"]
["Arbejdsmedicin",null,25106,"ØST30 modul 12",null,25204,"SYD 2021-4",null,25304,"Nord45",null,25406,"Intensiv terapi -NORD & SYD - Aalborg",null,null,null,null,25606,"Teoretisk kursus psykopatologi",null,25707,"Hudens tumorer (delkursus 5)",null,25806,"Neuroradiologi",null,25906,"Endokrin gynækologi",null,null,null,null,251106,"Akut medicin, Øst - November",null,null,null,null,null,null,null,null,null,null,null,null,null,251606,"ÅR 4 KURSUS (HU4)",null,251706,"Kursus i Infiltratudredning, pleuraeffusioner, mesotheliom og hæmoptyse "," ",null,null,null,251906,"Delkursus 6 - Komplekse reumatologiske tilstande",null,252006,"ENHANCE EVAR",null,252106,"Børnekirurgi",null,252206,"Praktisk fælleskirurgisk kursus,København",null,null,null,null,null,null,null,null,null,null,null,null,null,null,null,null,null,null,null,null,null,null,253006,"Understøttende Behandling",null,null,null,null,253206,"Neuroinflammation",null,253306,"HB4",null,253406,"Håndkirurgi",null,253506,"Praksis",null,253606,"Gynækopatologi",null,253706,"ATLS",null,253806,"Børne- og ungdomspsyk. lidelser med forløb ind i voksenalderen (1 dag) ",null,253906,"Genetik",null,null,null,null,null,null,null,254206,"Billeddiagnostisk kursus",null,254306,"LUTS/urodynamik",null,254421,"27.-29. oktober 2025",null,null,null,null,null,null,null,null,null,null,null,null,null,null,null,null,256006,"Akutmedicinsk ultralyd nord"]
["Børne_og_ungdomspsykiatri",null,25107,"ØST30 modul 13",null,25205,"SYD 2022-1",null,25305,"Nord44",null,25407,"Intensiv terapi - ØST",null,null,null,null,25607,"Autismespektrumforstyrrelser, generelle udviklingsforstyrrelser og sjældne neuropsykiatriske lidelser",null,null,null,null,25807,"Pædiatrisk radiologi",null,25907,"Føtalmedicin",null,null,null,null,251107,"De 8 selskabers kursusdag, Nord - Maj",null,null,null,null,null,null,null,null,null,null,null,null,null,251607,"ÅR 5 KURSUS (HU5)",null,251707,"Kursus i Invasiv diagnostik ",null,null,null,null,251907,"USU-møder ",null,252007,"ENHANCE PAD Århus",null,252107,"Traumatologi Aarhus",null,252207,"Laparoskopisk kursus, Århus",null,null,null,null,null,null,null,null,null,null,null,null,null,null,null,null,null,null,null,null,null,null,253007,"MDT",null,null,null,null,253207,"Klinisk neurologi 2",null,253307,"HK5",null,253407,"Ort. Kir. Statistik og Forskningsmetodologi",null,253507,"Audiologi",null,253607,"Nedre luftvejes patologi",null,253707,"Hovedkursusledermøder",null,253807,"Oligofreni ",null,253907,"Pulmonologi og allergologi",null,null,null,null,null,null,null,254207,"Internat VVU",null,254307,"Uro. Onkologi",null,254423,"17.-19. november 2025",null,null,null,null,null,null,null,null,null,null,null,null,null,null,null,null,256007,"ABCDE"]
["Dermato_venerologi",null,25108,"ØST30 modul 14",null,25206,"SYD 2022-2",null,25306,"Nord43",null,25408,"Pædiatrisk anæstesi  - Aarhus",null,null,null,null,25608,"Psykofarmakologi, interaktion og bivirkninger (Psykofarmakologi 1)",null,null,null,null,25808,"Thorax radiologi",null,25908,"Gynækologisk onkologi",null,null,null,null,251108,"De 8 selskabers kursusdag, Syd - Maj",null,null,null,null,null,null,null,null,null,null,null,null,null,null,null,null,251708,"Kursus i Interstitielle Lungesygdomme "," ",null,null,null,null,null,null,252007,"ENHANCE PAD Kbh",null,252108,"Den akutte patient Aarhus",null,252208,"Praktisk fælleskirurgisk kursus, Århus",null,null,null,null,null,null,null,null,null,null,null,null,null,null,null,null,null,null,null,null,null,null,null,null,null,null,null,null,253208,"Demens og neuropsykologi",null,253308,"HK6",null,253408,"Traumatologi I",null,253508,"Paraklinik",null,253608,"Molekylærpatologi",null,null,null,null,253808,"III Psykopatologi ",null,253908,"Endokrinologi",null,null,null,null,null,null,null,254208,"Erstatnings kursus for 244204",null,254308,"Andrologi/fertilitet",null,254424,"24.-26. november 2025",null,null,null,null,null,null,null,null,null,null,null,null,null,null,null,null,256008,"Akutte kirurgiske tilstande"]
["Diagnostisk_radiologi",null,25109,"ØST30 modul 15",null,25207,"SYD 2022-3 FT",null,25307,"Nord42",null,25409,"Klinisk beslutningstagning ",null,null,null,null,25609,"Belastningsreaktioner og PTSD",null,null,null,null,25809,"Onkoradiologi",null,25909,"Antepartal obstetrik",null,null,null,null,251109,"De 8 selskabers kursusdag, Øst - Maj",null,null,null,null,null,null,null,null,null,null,null,null,null,null,null,null,null,null,null,null,null,null,null,null,null,null,null,null,252109,"Avanceret kirurgisk endoskopi, ",null,252209,"Åben kirurgi, Århus",null,null,null,null,null,null,null,null,null,null,null,null,null,null,null,null,null,null,null,null,null,null,null,null,null,null,null,null,253209,"Cerebrovaskulære sygdomme",null,253309,"HK7",null,253409,"Traumatologi II",null,253509,"Vestibulogi",null,253609,"Øvre luftvejes patologi",null,null,null,null,253809,"Ældrepsykiatri ",null,253909,"Infektionspædiatri, immunologi og reumatologi",null,null,null,null,null,null,null,null,null,null,254309,"Børneurologi",null,null,null,null,null,null,null,null,null,null,null,null,null,null,null,null,null,null,null,256009,"Akut pædiatri"]
["Færdighedskurser_operativ_gynækologi",null,25110,"ØST30 modul 16",null,25207,"SYD 2022-3 FT",null,25308,"Nord41",null,25410,"Akutte og kroniske smerter",null,null,null,null,25610,"Seksualitet og seksuelle overgreb",null,null,null,null,25810,"Teknik og strålebeskyttelse",null,25910,"Kommunikation B",null,null,null,null,251110,"De 8 selskabers kursusdag, Nord - November",null,null,null,null,null,null,null,null,null,null,null,null,null,null,null,null,null,null,null,null,null,null,null,null,null,null,null,null,252110,"Mammakursus, Aarhus Efterår",null,252210,"Praktisk fælleskirurgisk kursus, København",null,null,null,null,null,null,null,null,null,null,null,null,null,null,null,null,null,null,null,null,null,null,null,null,null,null,null,null,253210,"Klinisk neurologi 1 Efterår",null,253310,"HK8",null,253410,"Tumorkirurgi",null,null,null,null,253610,"Dermatopatologi",null,null,null,null,253810,"Misbrug (2 dage) ",null,253910,"Nefrologi og urologisk børnekirurgi",null,null,null,null,null,null,null,null,null,null,254310,"Færdighedskursus endo 1",null,null,null,null,null,null,null,null,null,null,null,null,null,null,null,null,null,null,null,256010,"Traumekurset"]
["Færdighedskurser_ort._kir.",null,25111,"ØST31 modul 10",null,25208,"SYD 2022-4 FT",null,25308,"Nord41",null,25411,"Neuro, traume, præhospital",null,null,null,null,25611,"Teoretisk kursus udviklingspsykopatologi",null,null,null,null,25811,"Urogenital radiologi",null,25911,"Kursus for delkursusledere",null,null,null,null,251111,"De 8 selskabers kursusdag, Syd - November",null,null,null,null,null,null,null,null,null,null,null,null,null,null,null,null,null,null,null,null,null,null,null,null,null,null,null,null,252111,"Teoretisk fælleskirurgisk kursus Efterår",null,252211,"Laparoskopisk kirurgi, Odense",null,null,null,null,null,null,null,null,null,null,null,null,null,null,null,null,null,null,null,null,null,null,null,null,null,null,null,null,null,null,null,253311,"HK9",null,253411,"Fod / Ankel Kirurgi",null,null,null,null,253611,"Hæmatopatologi",null,null,null,null,253811,"Erklæringsudstedelse (1 dag) ",null,253911,"Gastroenterologi og ernæring ",null,null,null,null,null,null,null,null,null,null,254311,"Færdighedskursus endo 2",null,null,null,null,null,null,null,null,null,null,null,null,null,null,null,null,null,null,null,256011,"Symptomer"]
["Gynækologi_og_obstetrik",null,25112,"ØST31 modul 11",null,25208,"SYD 2022-4 FT",null,25309,"Nord40",null,25412,"Patientsikkerhed og kom.",null,null,null,null,25612,"Affektive lidelser",null,null,null,null,25898,"kursusdag for delkursusledere",null,null,null,null,null,null,null,251112,"De 8 selskabers kursusdag, Øst - November",null,null,null,null,null,null,null,null,null,null,null,null,null,null,null,null,null,null,null,null,null,null,null,null,null,null,null,null,252113,"Den kirurgiske kræftpatient Aarhus",null,null,null,null,null,null,null,null,null,null,null,null,null,null,null,null,null,null,null,null,null,null,null,null,null,null,null,null,null,null,null,null,null,null,253312,"HK10",null,253412,"Introduktion efterår",null,null,null,null,253612,"CNS- og muskepatologi",null,null,null,null,253812,"II Psykopatologi ",null,253912,"Pædiatrisk hæmotologi og onkologi ",null,null,null,null,null,null,null,null,null,null,254312,"Færdighedskursus endo 3",null,null,null,null,null,null,null,null,null,null,null,null,null,null,null,null,null,null,null,256012,"Katastrofemedicin og transport "]
["IM_Endokrinologi",null,25113,"ØST31 modul 12",null,25209,"SYD 2023-1",null,25309,"Nord40",null,25413,"Luftvejshåndtering",null,null,null,null,25613,"Spædbarnspsykiatri ",null,null,null,null,null,null,null,null,null,null,null,null,null,251113,"Rationel farmakoterapi, Nord - Maj",null,null,null,null,null,null,null,null,null,null,null,null,null,null,null,null,null,null,null,null,null,null,null,null,null,null,null,null,252114,"traumatologi Odense",null,null,null,null,null,null,null,null,null,null,null,null,null,null,null,null,null,null,null,null,null,null,null,null,null,null,null,null,null,null,null,null,null,null,253313,"HK11, Ålborg",null,253413,"Infektionskirurgi efterår",null,null,null,null,253613,"Lever- og pancreaspatologi",null,null,null,null,253813,"Børne- og ungdomspsyk. lidelser med forløb ind i voksenalderen (1 dag) ",null,253913,"Tværgående pædiatri",null,null,null,null,null,null,null,null,null,null,254313,"Færdighedskursus ULS 1"]
["IM_Fælleskurser",null,25114,"ØST31 modul 13",null,25210,"SYD 2023-2",null,25310,"Nord39",null,25414,"Avanceret Intensiv terapi",null,null,null,null,25615,"Skizofreni",null,null,null,null,null,null,null,null,null,null,null,null,null,251114,"Rationel farmakoterapi, Syd - Maj",null,null,null,null,null,null,null,null,null,null,null,null,null,null,null,null,null,null,null,null,null,null,null,null,null,null,null,null,252115,"Børnekirurgi Efterår",null,null,null,null,null,null,null,null,null,null,null,null,null,null,null,null,null,null,null,null,null,null,null,null,null,null,null,null,null,null,null,null,null,null,253314,"HK11, Kbh",null,253414,"Skulder / Albue Kirurgi",null,null,null,null,253614,"Knogle- bløddelspatologi",null,null,null,null,253814,"Oligofreni ",null,253914,"Ungdomsmedicin",null,null,null,null,null,null,null,null,null,null,254314,"Færdighedskursus ULS 2"]
["IM_Gastroenterologi_og_Hepatologi",null,25115,"ØST31 modul 14",null,25211,"SYD 2023-3",null,25310,"Nord39",null,25415,"Anæstesi ",null,null,null,null,25616,"OCD, tics og Tourette",null,null,null,null,null,null,null,null,null,null,null,null,null,251115,"Rationel farmakoterapi, Øst - Maj",null,null,null,null,null,null,null,null,null,null,null,null,null,null,null,null,null,null,null,null,null,null,null,null,null,null,null,null,null,null,null,null,null,null,null,null,null,null,null,null,null,null,null,null,null,null,null,null,null,null,null,null,null,null,null,null,null,null,null,null,null,null,null,null,253316,"HK13",null,null,null,null,null,null,null,null,null,null,null,null,null,253815,"Biologiske behandlingsmetoder ",null,253915,"Børnekardiologi",null,null,null,null,null,null,null,null,null,null,254315,"Simulationskursus uro.lap 1"]
["IM_Geriatri",null,25116,"ØST31 modul 15",null,25211,"SYD 2023-3",null,25311,"Nord38",null,25416,"Intensiv terapi - ØST",null,null,null,null,25617,"Angst og psykosomatik",null,null,null,null,null,null,null,null,null,null,null,null,null,251116,"Rationel farmakoterapi, Nord - November",null,null,null,null,null,null,null,null,null,null,null,null,null,null,null,null,null,null,null,null,null,null,null,null,null,null,null,null,null,null,null,null,null,null,null,null,null,null,null,null,null,null,null,null,null,null,null,null,null,null,null,null,null,null,null,null,null,null,null,null,null,null,null,null,null,null,null,null,null,null,null,null,null,null,null,null,null,null,null,253816,"Retspsykiatri ",null,null,null,null,null,null,null,null,null,null,null,null,null,254316,"Simulationskursus uro.lap 2"]
["IM_Hæmatologi",null,25117,"ØST31 modul 16",null,25212,"SYD 2023-4",null,25311,"Nord38",null,25417,"Intensiv terapi -Nord og Syd- odense",null,null,null,null,null,null,null,null,null,null,null,null,null,null,null,null,null,null,null,251117,"Rationel farmakoterapi, Syd - November",null,null,null,null,null,null,null,null,null,null,null,null,null,null,null,null,null,null,null,null,null,null,null,null,null,null,null,null,null,null,null,null,null,null,null,null,null,null,null,null,null,null,null,null,null,null,null,null,null,null,null,null,null,null,null,null,null,null,null,null,null,null,null,null,null,null,null,null,null,null,null,null,null,null,null,null,null,null,null,253817,"Psykiatriens organisatoriske og sociale aspekter Efterår",null,null,null,null,null,null,null,null,null,null,null,null,null,254317,"Færdighedskursus uro.lap 1"]
["IM_Infektionsmedicin",null,25118,"ØST32 modul 10",null,25212,"SYD 2023-4",null,25312,"Nord37",null,25418,"Obstetrisk anæstesi og det nyfødte barn - Kbh",null,null,null,null,null,null,null,null,null,null,null,null,null,null,null,null,null,null,null,251118,"Rationel farmakoterapi, Øst - November",null,null,null,null,null,null,null,null,null,null,null,null,null,null,null,null,null,null,null,null,null,null,null,null,null,null,null,null,null,null,null,null,null,null,null,null,null,null,null,null,null,null,null,null,null,null,null,null,null,null,null,null,null,null,null,null,null,null,null,null,null,null,null,null,null,null,null,null,null,null,null,null,null,null,null,null,null,null,null,253818,"Teoretisk grundlag for psykoterapi Efterår",null,null,null,null,null,null,null,null,null,null,null,null,null,254318,"Færidghedskursus uro.lap 2"]
["IM_Kardiologi",null,25119,"ØST32 modul 11",null,25213,"SYD 2023-5",null,25313,"Nord36",null,25419,"Klinisk beslutningstagning ",null,null,null,null,null,null,null,null,null,null,null,null,null,null,null,null,null,null,null,251119,"Neurologi for intern medicinere, Nord - Maj",null,null,null,null,null,null,null,null,null,null,null,null,null,null,null,null,null,null,null,null,null,null,null,null,null,null,null,null,null,null,null,null,null,null,null,null,null,null,null,null,null,null,null,null,null,null,null,null,null,null,null,null,null,null,null,null,null,null,null,null,null,null,null,null,null,null,null,null,null,null,null,null,null,null,null,null,null,null,null,253819,"I Psykopatologi Efterår",null,null,null,null,null,null,null,null,null,null,null,null,null,254319,"Revision af database"]
["IM_Lungesygdomme",null,25120,"ØST32 modul 12",null,25213,"SYD 2023-5",null,25313,"Nord36",null,25420,"Ultralyd ",null,null,null,null,null,null,null,null,null,null,null,null,null,null,null,null,null,null,null,251120,"Neurologi for intern medicinere, Syd - Maj",null,null,null,null,null,null,null,null,null,null,null,null,null,null,null,null,null,null,null,null,null,null,null,null,null,null,null,null,null,null,null,null,null,null,null,null,null,null,null,null,null,null,null,null,null,null,null,null,null,null,null,null,null,null,null,null,null,null,null,null,null,null,null,null,null,null,null,null,null,null,null,null,null,null,null,null,null,null,null,253820,"Neuropsykiatri Efterår",null,null,null,null,null,null,null,null,null,null,null,null,null,254320,"Færdighedskursus uro.lap 3"]
["IM_Nefrologi",null,25121,"ØST32 modul 13",null,25214,"SYD 2024-1",null,25314,"Nord35",null,25421,"Akutte og kroniske smerter",null,null,null,null,null,null,null,null,null,null,null,null,null,null,null,null,null,null,null,251121,"Neurologi for intern medicinere, Øst - Maj",null,null,null,null,null,null,null,null,null,null,null,null,null,null,null,null,null,null,null,null,null,null,null,null,null,null,null,null,null,null,null,null,null,null,null,null,null,null,null,null,null,null,null,null,null,null,null,null,null,null,null,null,null,null,null,null,null,null,null,null,null,null,null,null,null,null,null,null,null,null,null,null,null,null,null,null,null,null,null,253821,"Misbrug (2 dage) Efterår"]
["IM_Reumatologi",null,25122,"ØST32 modul 14",null,25214,"SYD 2024-1",null,25315,"Nord34",null,25422,"Pædiatrisk anæstesi",null,null,null,null,null,null,null,null,null,null,null,null,null,null,null,null,null,null,null,251122,"Neurologi for intern medicinere, Nord - November",null,null,null,null,null,null,null,null,null,null,null,null,null,null,null,null,null,null,null,null,null,null,null,null,null,null,null,null,null,null,null,null,null,null,null,null,null,null,null,null,null,null,null,null,null,null,null,null,null,null,null,null,null,null,null,null,null,null,null,null,null,null,null,null,null,null,null,null,null,null,null,null,null,null,null,null,null,null,null,253822,"Erklæringsudstedelse (1 dag) Efterår"]
["Karkirurgi",null,25123,"ØST32 modul 15",null,25215,"SYD 2024-2",null,25316,"Nord33",null,25423,"Patientsikkerhed og kom.",null,null,null,null,null,null,null,null,null,null,null,null,null,null,null,null,null,null,null,251123,"Neurologi for intern medicinere, Syd - November",null,null,null,null,null,null,null,null,null,null,null,null,null,null,null,null,null,null,null,null,null,null,null,null,null,null,null,null,null,null,null,null,null,null,null,null,null,null,null,null,null,null,null,null,null,null,null,null,null,null,null,null,null,null,null,null,null,null,null,null,null,null,null,null,null,null,null,null,null,null,null,null,null,null,null,null,null,null,null,253823,"III Psykopatologi Efterår"]
["Kir._færdighedskurser_KBH_Odense_og_Århus",null,25124,"ØST32 modul 16",null,25215,"SYD 2024-2",null,25317,"Nord32",null,25424,"Neuro, traume, præhospital",null,null,null,null,null,null,null,null,null,null,null,null,null,null,null,null,null,null,null,251124,"Neurologi for intern medicinere, Øst - November",null,null,null,null,null,null,null,null,null,null,null,null,null,null,null,null,null,null,null,null,null,null,null,null,null,null,null,null,null,null,null,null,null,null,null,null,null,null,null,null,null,null,null,null,null,null,null,null,null,null,null,null,null,null,null,null,null,null,null,null,null,null,null,null,null,null,null,null,null,null,null,null,null,null,null,null,null,null,null,253824,"II Psykopatologi Efterår"]
["Kirurgi",null,25125,"ØST32X modul 10",null,25216,"SYD 2024-3",null,25317,"Nord32",null,null,null,null,null,null,null,null,null,null,null,null,null,null,null,null,null,null,null,null,null,null,251125,"Psykiatri for intern medicinere, Nord - Maj",null,null,null,null,null,null,null,null,null,null,null,null,null,null,null,null,null,null,null,null,null,null,null,null,null,null,null,null,null,null,null,null,null,null,null,null,null,null,null,null,null,null,null,null,null,null,null,null,null,null,null,null,null,null,null,null,null,null,null,null,null,null,null,null,null,null,null,null,null,null,null,null,null,null,null,null,null,null,null,253825,"Biologiske behandlingsmetoder Efterår"]
["Klinisk_Biokemi",null,25126,"ØST32X modul 11",null,25216,"SYD 2024-3",null,25318,"Nord31",null,null,null,null,null,null,null,null,null,null,null,null,null,null,null,null,null,null,null,null,null,null,251126,"Psykiatri for intern medicinere, Syd - Maj",null,null,null,null,null,null,null,null,null,null,null,null,null,null,null,null,null,null,null,null,null,null,null,null,null,null,null,null,null,null,null,null,null,null,null,null,null,null,null,null,null,null,null,null,null,null,null,null,null,null,null,null,null,null,null,null,null,null,null,null,null,null,null,null,null,null,null,null,null,null,null,null,null,null,null,null,null,null,null,253826,"Retspsykiatri Efterår"]
["Klinisk_Farmakologi",null,25127,"ØST32X modul 12",null,25217,"SYD 2024-4",null,25318,"Nord31",null,null,null,null,null,null,null,null,null,null,null,null,null,null,null,null,null,null,null,null,null,null,251127,"Psykiatri for intern medicinere, Øst - Maj"]
["Klinisk_Fysiologi_og_Nuklearmedicin",null,25128,"ØST32X modul 13",null,25217,"SYD 2024-4",null,25319,"Nord30",null,null,null,null,null,null,null,null,null,null,null,null,null,null,null,null,null,null,null,null,null,null,251128,"Psykiatri for intern medicinere, Nord - November"]
["Klinisk_Genetik",null,25129,"ØST32X modul 14",null,25218,"SYD 2025-1",null,25319,"Nord30",null,null,null,null,null,null,null,null,null,null,null,null,null,null,null,null,null,null,null,null,null,null,251129,"Psykiatri for intern medicinere, Syd - November"]
["Klinisk_Immunologi",null,25130,"ØST32X modul 15",null,25218,"SYD 2025-1",null,25320,"Nord29",null,null,null,null,null,null,null,null,null,null,null,null,null,null,null,null,null,null,null,null,null,null,251130,"Psykiatri for intern medicinere, Øst - November"]
["Klinisk_Mikrobiologi",null,25131,"ØST32X modul 16",null,25219,"SYD 2025-2",null,25321,"Nord28",null,null,null,null,null,null,null,null,null,null,null,null,null,null,null,null,null,null,null,null,null,null,251131,"Rationel klinisk beslutningsteori, Nord - Maj"]
["Klinisk_Onkologi",null,25132,"ØST33 modul 10",null,25219,"SYD 2025-2",null,null,null,null,null,null,null,null,null,null,null,null,null,null,null,null,null,null,null,null,null,null,null,null,null,251132,"Rationel klinisk beslutningsteori, Syd - Maj"]
["Kommunallægekurser",null,25133,"ØST33 modul 11",null,25220,"SYD 2025-3",null,null,null,null,null,null,null,null,null,null,null,null,null,null,null,null,null,null,null,null,null,null,null,null,null,251133,"Rationel klinisk beslutningsteori, Øst - Maj"]
["Neurokirurgi",null,25134,"ØST33 modul 12",null,25221,"SYD 2025-4",null,null,null,null,null,null,null,null,null,null,null,null,null,null,null,null,null,null,null,null,null,null,null,null,null,251134,"Rationel klinisk beslutningsteori, Nord - November"]
["Neurologi",null,25135,"ØST34 modul 10",null,null,null,null,null,null,null,null,null,null,null,null,null,null,null,null,null,null,null,null,null,null,null,null,null,null,null,null,251135,"Rationel klinisk beslutningsteori, Syd - November"]
["Oftalmologi",null,25136,"ØST37 modul 09",null,null,null,null,null,null,null,null,null,null,null,null,null,null,null,null,null,null,null,null,null,null,null,null,null,null,null,null,251136,"Rationel klinisk beslutningsteori, Øst - November"]
["Ortodonti",null,25137,"ØST38 modul 09",null,null,null,null,null,null,null,null,null,null,null,null,null,null,null,null,null,null,null,null,null,null,null,null,null,null,null,null,251137,"Onkologi for intern medicinere, Nord - Maj"]
["Ortopædisk_kirurgi",null,25138,"ØST38X modul 09",null,null,null,null,null,null,null,null,null,null,null,null,null,null,null,null,null,null,null,null,null,null,null,null,null,null,null,null,251138,"Onkologi for intern medicinere, Syd - Maj"]
["Oto_rhino_laryngologi",null,25139,"ØST39 modul 08",null,null,null,null,null,null,null,null,null,null,null,null,null,null,null,null,null,null,null,null,null,null,null,null,null,null,null,null,251139,"Onkologi for intern medicinere, Øst - Maj"]
["Patologisk_anatomi_og_cytologi",null,25140,"ØST39 modul 09",null,null,null,null,null,null,null,null,null,null,null,null,null,null,null,null,null,null,null,null,null,null,null,null,null,null,null,null,251140,"Onkologi for intern medicinere, Nord - November"]
["Plastikkirurgi",null,25141,"ØST40 modul 08",null,null,null,null,null,null,null,null,null,null,null,null,null,null,null,null,null,null,null,null,null,null,null,null,null,null,null,null,251141,"Onkologi for intern medicinere, Syd - November"]
["Psykiatri",null,25142,"ØST40 modul 09",null,null,null,null,null,null,null,null,null,null,null,null,null,null,null,null,null,null,null,null,null,null,null,null,null,null,null,null,251142,"Onkologi for intern medicinere, Øst - November"]
["Pædiatri",null,25143,"ØST40X modul 08",null,null,null,null,null,null,null,null,null,null,null,null,null,null,null,null,null,null,null,null,null,null,null,null,null,null,null,null,251143,"Den terminale patient, palliativ behandling, Nord - Maj"]
["Retsmedicin",null,25144,"ØST40X modul 09",null,null,null,null,null,null,null,null,null,null,null,null,null,null,null,null,null,null,null,null,null,null,null,null,null,null,null,null,251144,"Den terminale patient, palliativ behandling, Syd - Maj"]
["Samfundsmedicin",null,25145,"ØST41 modul 07",null,null,null,null,null,null,null,null,null,null,null,null,null,null,null,null,null,null,null,null,null,null,null,null,null,null,null,null,251145,"Den terminale patient, palliativ behandling, Øst - Maj"]
["SOL_2",null,25146,"ØST41 modul 08",null,null,null,null,null,null,null,null,null,null,null,null,null,null,null,null,null,null,null,null,null,null,null,null,null,null,null,null,251146,"Den terminale patient, palliativ behandling, Nord - November"]
["Tand_mund_og_kæbekirurgi",null,25147,"ØST42 modul 07",null,null,null,null,null,null,null,null,null,null,null,null,null,null,null,null,null,null,null,null,null,null,null,null,null,null,null,null,251147,"Den terminale patient, palliativ behandling, Syd - November"]
["Thoraxkirurgi",null,25148,"ØST42 modul 08",null,null,null,null,null,null,null,null,null,null,null,null,null,null,null,null,null,null,null,null,null,null,null,null,null,null,null,null,251148,"Den terminale patient, palliativ behandling, Øst - November"]
["Urologi",null,25149,"ØST42X modul 04",null,null,null,null,null,null,null,null,null,null,null,null,null,null,null,null,null,null,null,null,null,null,null,null,null,null,null,null,251149,"Den ældre patient, Nord - Maj"]
[null,null,25150,"ØST42X modul 07",null,null,null,null,null,null,null,null,null,null,null,null,null,null,null,null,null,null,null,null,null,null,null,null,null,null,null,null,251150,"Den ældre patient, Syd - Maj"]
[null,null,25151,"ØST42X modul 08",null,null,null,null,null,null,null,null,null,null,null,null,null,null,null,null,null,null,null,null,null,null,null,null,null,null,null,null,251151,"Den ældre patient, Øst - Maj"]
[null,null,25152,"ØST43 modul 04",null,null,null,null,null,null,null,null,null,null,null,null,null,null,null,null,null,null,null,null,null,null,null,null,null,null,null,null,251152,"Den ældre patient, Nord - November"]
[null,null,25153,"ØST43 modul 06",null,null,null,null,null,null,null,null,null,null,null,null,null,null,null,null,null,null,null,null,null,null,null,null,null,null,null,null,251153,"Den ældre patient, Syd - November"]
[null,null,25154,"ØST43 modul 07",null,null,null,null,null,null,null,null,null,null,null,null,null,null,null,null,null,null,null,null,null,null,null,null,null,null,null,null,251154,"Den ældre patient, Øst - November"]
[null,null,25155,"ØST44 modul 04",null,null,null,null,null,null,null,null,null,null,null,null,null,null,null,null,null,null,null,null,null,null,null,null,null,null,null,null,251197,"DSIM kursusudvalg"]
[null,null,25156,"ØST44 modul 05",null,null,null,null,null,null,null,null,null,null,null,null,null,null,null,null,null,null,null,null,null,null,null,null,null,null,null,null,251198,"DSIM kursusudvalgsmøde"]
[null,null,25157,"ØST44 modul 06"]
[null,null,25158,"ØST44 modul 07"]
[null,null,25159,"ØST44X modul 03"]
[null,null,25160,"ØST44X modul 04"]
[null,null,25161,"ØST44X modul 05"]
[null,null,25162,"ØST44X modul 06"]
[null,null,25163,"ØST44X modul 07"]
[null,null,25164,"ØST45 modul 01"]
[null,null,25165,"ØST45 modul 02"]
[null,null,25166,"ØST45 modul 03"]
[null,null,25167,"ØST45 modul 04"]
[null,null,25168,"ØST45 modul 05"]
[null,null,25169,"ØST45 modul 06"]
[null,null,25170,"ØST46 modul 01"]
[null,null,25171,"ØST46 modul 02"]
[null,null,25172,"ØST46 modul 03"]
[null,null,25173,"ØST46 modul 04"]
[null,null,25174,"ØST46 modul 05"]
[null,null,25175,"ØST46 modul 06"]
[null,null,25176,"ØST46X modul 01"]
[null,null,25177,"ØST46X modul 02"]
[null,null,25178,"ØST46X modul 03"]
[null,null,25179,"ØST46X modul 04"]
[null,null,25180,"ØST46X modul 05"]
[null,null,25181,"ØST46X modul 06"]
[null,null,25182,"ØST47 modul 01"]
[null,null,25183,"ØST47 modul 02"]
[null,null,25184,"ØST47 modul 03"]
[null,null,25185,"ØST47 modul 04"]
[null,null,25186,"ØST47 modul 05"]
[null,null,25187,"ØST48 modul 01"]
[null,null,25188,"ØST48 modul 02"]
[null,null,25189,"ØST48 modul 03"]
[null,null,25190,"ØST48X modul 01"]
[null,null,25191,"ØST48X modul 02"]

{"sheet":"Delkursusleder 1","index":3,"n_rows":46,"n_cols":4,"rows_kept":46,"cut":false,"hidden":false,"merged":[[45,0,45,3],[41,0,43,3],[17,1,17,3],[0,1,0,3],[13,1,13,3],[11,1,11,3],[20,1,20,3],[39,0,39,3],[7,1,7,3],[5,1,5,3],[10,0,10,3]]}
[null,"Honorar Delkursusleder 1"]
[null,null,"       Læs mere om de specialespecifikke kurser på Sundhedsstyrelsens","hjemmeside"]
[null,"NB. Skemaet SKAL udfyldes elektronisk"]
["Udfyldes af delkursusleder inden kurset"]
[]
["Speciale:","[vælg fra liste]"]
[]
["Kursusnavn:","[vælg fra liste]"]
[]
["Kursusnummer:",{"$f":"IF(B6=\"[vælg fra liste]\",\"Kursusnummer findes automatisk efter du har indtastet speciale/kursusnavn\",IFERROR(INDEX(Kodefinder!A:A,MATCH(1,(B6=Kodefinder!F:F)*(B8=Kodefinder!B:B),0)),\"Der findes flere kurser med samme navn. Skriv selv kursusnummer i denne celle\"))","v":"Kursusnummer findes automatisk efter du har indtastet speciale/kursusnavn"}]
["Udfyldes manuelt af kursusleder hvis formlen ikke selv finder kursusnummer(se evt. arket \"Adm.ark for specialer\" til venstre for dette ark)"]
["Kursussted, by:"]
[]
["Navn delkursusleder:"]
[]
["Cpr.nr.:",null,{"$f":"IFERROR(IF(LEN(B16)>10,\"CPR-nummer ikke gyldigt - du har mere end 10 tegn med. Husk ikke at inkludere bindestreg\",IF(LEN(B16)=0,\"\",IF(LEN(B16)<10,\"CPR-nummer ikke gyldigt - Du har indtastet for få tegn\",IF(0=MOD(LEFT(B16)*4+MID(B16,2,1)*3+MID(B16,3,1)*2+MID(B16,4,1)*7+MID(B16,5,1)*6+MID(B16,6,1)*5+(MID(B16,7,1)*4+MID(B16,8,1)*3)+MID(B16,9,1)*2+MID(B16,10,1),11),\"\",\"CPR-nummer ikke gyldigt - Tjek cifrene i dit CPR igennem igen\")))),\"CPR-nummer ikke gyldigt - Et af cifrene i dit CPR er ikke et tal\")","v":""}]
["Ingen bindestreg. CPR-nummer fremgår af formellinje under tastning, hvorefter det skjules."]
["Rolle","Kursusleder"]
["Jeg sender en faktura"]
[]
["E-mail"]
[]
["Dato for første undervisningsdag DD-MM-ÅÅ:","2025-11-01",{"$f":"IF(OR(B23<D24, B23>D24+213), \"Datoen ser ud til ikke at passe i enten format eller til perioden\", \"\")","v":""},"Aktuel sats"]
[null,null,null,"2025-11-01"]
[]
[]
[]
["Udfyldes HVIS også underviser","Obligatorisk",null,"Udfyldes automatisk"]
["Antal forelæsningstimer",null,"Udgift til forelæsningstimer ",{"$f":"B29*'Adm.ark satser'!C2","v":0}]
["Antal diskussionstimer",null,"Udgift til diskussionstimer ",{"$f":"B30*'Adm.ark satser'!C3","v":0}]
["Antal medhjælper timer",null,"Udgift til medhjælpertimer",{"$f":"B31*'Adm.ark satser'!C4","v":0}]
[null,null,"Beløb i alt",{"$f":"SUM(D29+D30+D31)","v":0}]
[]
[]
[]
[]
["Udfyldes af delkursusleder"]
["Honorar"]
[null,"Fast honorar på kr. 8.000 - evt. til deling mellem flere delkursusledere"]
["Der udbetales til NemKonto. Lønsedlen sendes til din e-boks. Ved CVR./SE-nr. SKAL der sendes e-faktura til EAN nr: 5798000362147 via sundhedsstyrelsens hjemmeside."]
["Evt. bemærkninger"]
[]
[]
[]
[]
["Den nederste række i fanen Samlingsark skal kopieres med i mail til hovedkursusleder, når delkursusleder kvitterer for oplysningernes rigtighed. "]

{"sheet":"(Evt. delkursusleder 2)","index":4,"n_rows":45,"n_cols":4,"rows_kept":45,"cut":false,"hidden":false,"merged":[[30,1,30,3],[45,0,48,6],[0,1,0,3],[5,1,5,3],[9,1,9,3],[7,2,7,3],[11,1,11,3],[24,1,24,3],[26,1,26,3],[28,2,28,3]]}
[null,"Honorar Delkursusleder 2"]
[null,null,"       Læs mere om de specialespecifikke kurser på Sundhedsstyrelsens","hjemmeside"]
[null,"NB. Skemaet SKAL udfyldes elektronisk"]
["Udfyldes af evt. delkursusleder 2"]
[]
["Navn delkursusleder:"]
[]
["Cpr.nr.:",null,"Jeg sender en faktura"]
["Ingen bindestreg. CPR-nummer fremgår af formellinje under tastning, hvorefter det skjules."]
["Rolle","Kursusleder"]
[{"$f":"IFERROR(IF(LEN(B8)>10,\"CPR-nummer ikke gyldigt - du har mere end 10 tegn med. Husk ikke at inkludere bindestreg\",IF(LEN(B8)=0,\"\",IF(LEN(B8)<10,\"CPR-nummer ikke gyldigt - Du har indtastet for få tegn\",IF(0=MOD(LEFT(B8)*4+MID(B8,2,1)*3+MID(B8,3,1)*2+MID(B8,4,1)*7+MID(B8,5,1)*6+MID(B8,6,1)*5+(MID(B8,7,1)*4+MID(B8,8,1)*3)+MID(B8,9,1)*2+MID(B8,10,1),11),\"\",\"CPR-nummer ikke gyldigt - Tjek cifrene i dit CPR igennem igen\")))),\"CPR-nummer ikke gyldigt - Et af cifrene i dit CPR er ikke et tal\")","v":""}]
["E-mail"]
[]
[]
[]
[]
["Der udbetales til NemKonto. Lønsedlen sendes til din e-boks. "]
["Ved CVR./SE-nr. SKAL der sendes e-faktura til EAN nr: 5798000362147 via sundhedsstyrelsens hjemmeside"]
[]
["Udfyldes af delkursusleder",null,"Max beløb til deling mellem delkursusledere",8000]
["Honorar",null,"Total beløb for delkursusleder 1 og 2",{"$f":"A22+'Delkursusleder 1'!A39","v":0}]
[]
["Udfyldes automatisk, trækkes fra delkursuslederark"]
[]
["Speciale:",{"$f":"'Delkursusleder 1'!B6","v":"[vælg fra liste]"}]
[]
["Kursusnavn:",{"$f":"'Delkursusleder 1'!B8","v":"[vælg fra liste]"}]
[]
["Dato for første undervisningsdag DD-MM-ÅÅ:",{"$f":"'Delkursusleder 1'!B23","v":"2025-11-01"},{"$f":"'Delkursusleder 1'!C23","v":""}]
[]
["Kursussted, by:",{"$f":"'Delkursusleder 1'!B12:D12","v":0}]
[]
["Udfyldes HVIS også underviser","Obligatorisk",null,"Udfyldes automatisk"]
["Antal forelæsningstimer",null,"Udgift til forelæsningstimer ",{"$f":"B34*'Adm.ark satser'!C2","v":0}]
["Antal diskussionstimer",null,"Udgift til diskussionstimer ",{"$f":"B35*'Adm.ark satser'!C3","v":0}]
["Antal medhjælper timer",null,"Udgift til medhjælpertimer",{"$f":"B36*'Adm.ark satser'!C4","v":0}]
[null,null,"Beløb i alt",{"$f":"SUM(D34+D35+D36)","v":0}]
[]
[null,null,null,"Aktuel sats"]
[null,null,null,{"$f":"'Adm.ark satser'!G1","v":"2025-04-01"}]
[]
["Dit honorar udbetales til NemKonto. Lønsedlen sendes til din e-boks. "]
["Ved CVR./SE-nr. SKAL der sendes e-faktura til EAN nr: 5798000362147 via sundhedsstyrelsens hjemmeside."]
[]
["Evt. bemærkninger"]

{"sheet":"Honorarlønnet 1","index":5,"n_rows":30,"n_cols":7,"rows_kept":30,"cut":false,"hidden":false,"merged":[[0,1,0,4],[30,0,33,4],[1,2,1,4],[24,1,24,3],[6,2,6,3],[4,1,4,3],[8,1,8,3],[18,1,18,3],[20,1,20,3]]}
[null,"Honorar"]
[null,null,"NB. Skemaet SKAL udfyldes elektronisk"]
["Udfyldes af underviser"]
[{"$f":"IFERROR(IF(LEN(B7)>10,\"CPR-nummer ikke gyldigt - du har mere end 10 tegn med. Husk ikke at inkludere bindestreg\",IF(LEN(B7)=0,\"\",IF(LEN(B7)<10,\"CPR-nummer ikke gyldigt - Du har indtastet for få tegn\",IF(0=MOD(LEFT(B7)*4+MID(B7,2,1)*3+MID(B7,3,1)*2+MID(B7,4,1)*7+MID(B7,5,1)*6+MID(B7,6,1)*5+(MID(B7,7,1)*4+MID(B7,8,1)*3)+MID(B7,9,1)*2+MID(B7,10,1),11),\"\",\"CPR-nummer ikke gyldigt - Tjek cifrene i dit CPR igennem igen\")))),\"CPR-nummer ikke gyldigt - Et af cifrene i dit CPR er ikke et tal\")","v":""}]
["Navn:"]
[]
["Cpr.nr.:",null,"Jeg sender en faktura",null,null,null,"Ja"]
["Ingen bindestreg. CPR-nummer fremgår af formellinje under tastning, hvorefter det skjules.",null,null,null,null,null,"Nej"]
["E-mail"]
[]
["Udfyldes af underviser","Obligatorisk",null,"Udfyldes automatisk","Aktuel sats"]
["Antal forelæsningstimer",null,"Udgift til forelæsningstimer ",{"$f":"B12*'Adm.ark satser'!C2","v":0},{"$f":"'Adm.ark satser'!G1","v":"2025-04-01"}]
["Antal diskussionstimer",null,"Udgift til diskussionstimer ",{"$f":"B13*'Adm.ark satser'!C3","v":0}]
["Antal medhjælper timer",null,"Udgift til medhjælpertimer",{"$f":"B14*'Adm.ark satser'!C4","v":0}]
[null,null,"Beløb i alt",{"$f":"SUM(D12+D13+D14)","v":0}]
[]
["Udfyldes automatisk, trækkes fra delkursuslederark"]
[]
["Speciale:",{"$f":"'Delkursusleder 1'!B6","v":"[vælg fra liste]"}]
[]
["Kursusnavn:",{"$f":"'Delkursusleder 1'!B8","v":"[vælg fra liste]"}]
[]
["Dato for første undervisningsdag DD-MM-ÅÅ:",{"$f":"+'Delkursusleder 1'!B23","v":"2025-11-01"},{"$f":"'Delkursusleder 1'!C23","v":""}]
[]
["Kursussted, by:",{"$f":"'Delkursusleder 1'!B12:D12","v":0}]
[]
["Dit honorar udbetales til NemKonto. Lønsedlen sendes til din e-boks. "]
["Ved CVR./SE-nr. SKAL der sendes e-faktura til EAN nr: 5798000362147 via sundhedsstyrelsens hjemmeside."]
[]
["Evt. bemærkninger"]

{"sheet":"Honorarlønnet 2","index":6,"n_rows":30,"n_cols":7,"rows_kept":30,"cut":false,"hidden":false,"merged":[[1,2,1,4],[24,1,24,3],[30,0,33,4],[0,1,0,4],[6,2,6,3],[4,1,4,3],[8,1,8,3],[20,1,20,3],[18,1,18,3]]}
[null,"Honorar"]
[null,null,"NB. Skemaet SKAL udfyldes elektronisk"]
["Udfyldes af underviser"]
[{"$f":"IFERROR(IF(LEN(B7)>10,\"CPR-nummer ikke gyldigt - du har mere end 10 tegn med. Husk ikke at inkludere bindestreg\",IF(LEN(B7)=0,\"\",IF(LEN(B7)<10,\"CPR-nummer ikke gyldigt - Du har indtastet for få tegn\",IF(0=MOD(LEFT(B7)*4+MID(B7,2,1)*3+MID(B7,3,1)*2+MID(B7,4,1)*7+MID(B7,5,1)*6+MID(B7,6,1)*5+(MID(B7,7,1)*4+MID(B7,8,1)*3)+MID(B7,9,1)*2+MID(B7,10,1),11),\"\",\"CPR-nummer ikke gyldigt - Tjek cifrene i dit CPR igennem igen\")))),\"CPR-nummer ikke gyldigt - Et af cifrene i dit CPR er ikke et tal\")","v":""}]
["Navn:"]
[]
["Cpr.nr.:",null,"Jeg sender en faktura",null,null,null,"Ja"]
["Ingen bindestreg. CPR-nummer fremgår af formellinje under tastning, hvorefter det skjules.",null,null,null,null,null,"Nej"]
["E-mail"]
[]
["Udfyldes af underviser","Obligatorisk",null,"Udfyldes automatisk","Aktuel sats"]
["Antal forelæsningstimer",null,"Udgift til forelæsningstimer ",{"$f":"B12*'Adm.ark satser'!C2","v":0},{"$f":"'Adm.ark satser'!G1","v":"2025-04-01"}]
["Antal diskussionstimer",null,"Udgift til diskussionstimer ",{"$f":"B13*'Adm.ark satser'!C3","v":0}]
["Antal medhjælper timer",null,"Udgift til medhjælpertimer",{"$f":"B14*'Adm.ark satser'!C4","v":0}]
[null,null,"Beløb i alt",{"$f":"SUM(D12+D13+D14)","v":0}]
[]
["Udfyldes automatisk, trækkes fra delkursuslederark"]
[]
["Speciale:",{"$f":"'Delkursusleder 1'!B6","v":"[vælg fra liste]"}]
[]
["Kursusnavn:",{"$f":"'Delkursusleder 1'!B8","v":"[vælg fra liste]"}]
[]
["Dato for første undervisningsdag DD-MM-ÅÅ:",{"$f":"+'Delkursusleder 1'!B23","v":"2025-11-01"},{"$f":"'Delkursusleder 1'!C23","v":""}]
[]
["Kursussted, by:",{"$f":"'Delkursusleder 1'!B12:D12","v":0}]
[]
["Dit honorar udbetales til NemKonto. Lønsedlen sendes til din e-boks. "]
["Ved CVR./SE-nr. SKAL der sendes e-faktura til EAN nr: 5798000362147 via sundhedsstyrelsens hjemmeside."]
[]
["Evt. bemærkninger"]

{"sheet":"Honorarlønnet 3","index":7,"n_rows":30,"n_cols":5,"rows_kept":30,"cut":false,"hidden":false,"merged":[[1,2,1,4],[24,1,24,3],[30,0,33,4],[0,1,0,4],[6,2,6,3],[8,1,8,3],[4,1,4,3],[20,1,20,3],[18,1,18,3]]}
[null,"Honorar"]
[null,null,"NB. Skemaet SKAL udfyldes elektronisk"]
["Udfyldes af underviser"]
[{"$f":"IFERROR(IF(LEN(B7)>10,\"CPR-nummer ikke gyldigt - du har mere end 10 tegn med. Husk ikke at inkludere bindestreg\",IF(LEN(B7)=0,\"\",IF(LEN(B7)<10,\"CPR-nummer ikke gyldigt - Du har indtastet for få tegn\",IF(0=MOD(LEFT(B7)*4+MID(B7,2,1)*3+MID(B7,3,1)*2+MID(B7,4,1)*7+MID(B7,5,1)*6+MID(B7,6,1)*5+(MID(B7,7,1)*4+MID(B7,8,1)*3)+MID(B7,9,1)*2+MID(B7,10,1),11),\"\",\"CPR-nummer ikke gyldigt - Tjek cifrene i dit CPR igennem igen\")))),\"CPR-nummer ikke gyldigt - Et af cifrene i dit CPR er ikke et tal\")","v":""}]
["Navn:"]
[]
["Cpr.nr.:",null,"Jeg sender en faktura"]
["Ingen bindestreg. CPR-nummer fremgår af formellinje under tastning, hvorefter det skjules."]
["E-mail"]
[]
["Udfyldes af underviser","Obligatorisk",null,"Udfyldes automatisk","Aktuel sats"]
["Antal forelæsningstimer",null,"Udgift til forelæsningstimer ",{"$f":"B12*'Adm.ark satser'!C2","v":0},{"$f":"'Adm.ark satser'!G1","v":"2025-04-01"}]
["Antal diskussionstimer",null,"Udgift til diskussionstimer ",{"$f":"B13*'Adm.ark satser'!C3","v":0}]
["Antal medhjælper timer",null,"Udgift til medhjælpertimer",{"$f":"B14*'Adm.ark satser'!C4","v":0}]
[null,null,"Beløb i alt",{"$f":"SUM(D12+D13+D14)","v":0}]
[]
["Udfyldes automatisk, trækkes fra delkursuslederark"]
[]
["Speciale:",{"$f":"'Delkursusleder 1'!B6","v":"[vælg fra liste]"}]
[]
["Kursusnavn:",{"$f":"'Delkursusleder 1'!B8","v":"[vælg fra liste]"}]
[]
["Dato for første undervisningsdag DD-MM-ÅÅ:",{"$f":"+'Delkursusleder 1'!B23","v":"2025-11-01"},{"$f":"'Delkursusleder 1'!C23","v":""}]
[]
["Kursussted, by:",{"$f":"'Delkursusleder 1'!B12:D12","v":0}]
[]
["Dit honorar udbetales til NemKonto. Lønsedlen sendes til din e-boks. "]
["Ved CVR./SE-nr. SKAL der sendes e-faktura til EAN nr: 5798000362147 via sundhedsstyrelsens hjemmeside."]
[]
["Evt. bemærkninger"]

{"sheet":"Honorarlønnet 4","index":8,"n_rows":30,"n_cols":5,"rows_kept":30,"cut":false,"hidden":false,"merged":[[1,2,1,4],[24,1,24,3],[30,0,33,4],[0,1,0,4],[6,2,6,3],[20,1,20,3],[18,1,18,3],[8,1,8,3],[4,1,4,3]]}
[null,"Honorar"]
[null,null,"NB. Skemaet SKAL udfyldes elektronisk"]
["Udfyldes af underviser"]
[{"$f":"IFERROR(IF(LEN(B7)>10,\"CPR-nummer ikke gyldigt - du har mere end 10 tegn med. Husk ikke at inkludere bindestreg\",IF(LEN(B7)=0,\"\",IF(LEN(B7)<10,\"CPR-nummer ikke gyldigt - Du har indtastet for få tegn\",IF(0=MOD(LEFT(B7)*4+MID(B7,2,1)*3+MID(B7,3,1)*2+MID(B7,4,1)*7+MID(B7,5,1)*6+MID(B7,6,1)*5+(MID(B7,7,1)*4+MID(B7,8,1)*3)+MID(B7,9,1)*2+MID(B7,10,1),11),\"\",\"CPR-nummer ikke gyldigt - Tjek cifrene i dit CPR igennem igen\")))),\"CPR-nummer ikke gyldigt - Et af cifrene i dit CPR er ikke et tal\")","v":""}]
["Navn:"]
[]
["Cpr.nr.:",null,"Jeg sender en faktura"]
["Ingen bindestreg. CPR-nummer fremgår af formellinje under tastning, hvorefter det skjules."]
["E-mail"]
[]
["Udfyldes af underviser","Obligatorisk",null,"Udfyldes automatisk","Aktuel sats"]
["Antal forelæsningstimer",null,"Udgift til forelæsningstimer ",{"$f":"B12*'Adm.ark satser'!C2","v":0},{"$f":"'Adm.ark satser'!G1","v":"2025-04-01"}]
["Antal diskussionstimer",null,"Udgift til diskussionstimer ",{"$f":"B13*'Adm.ark satser'!C3","v":0}]
["Antal medhjælper timer",null,"Udgift til medhjælpertimer",{"$f":"B14*'Adm.ark satser'!C4","v":0}]
[null,null,"Beløb i alt",{"$f":"SUM(D12+D13+D14)","v":0}]
[]
["Udfyldes automatisk, trækkes fra delkursuslederark"]
[]
["Speciale:",{"$f":"'Delkursusleder 1'!B6","v":"[vælg fra liste]"}]
[]
["Kursusnavn:",{"$f":"'Delkursusleder 1'!B8","v":"[vælg fra liste]"}]
[]
["Dato for første undervisningsdag DD-MM-ÅÅ:",{"$f":"+'Delkursusleder 1'!B23","v":"2025-11-01"},{"$f":"'Delkursusleder 1'!C23","v":""}]
[]
["Kursussted, by:",{"$f":"'Delkursusleder 1'!B12:D12","v":0}]
[]
["Dit honorar udbetales til NemKonto. Lønsedlen sendes til din e-boks. "]
["Ved CVR./SE-nr. SKAL der sendes e-faktura til EAN nr: 5798000362147 via sundhedsstyrelsens hjemmeside."]
[]
["Evt. bemærkninger"]

{"sheet":"Honorarlønnet 5","index":9,"n_rows":30,"n_cols":5,"rows_kept":30,"cut":false,"hidden":false,"merged":[[1,2,1,4],[24,1,24,3],[30,0,33,4],[0,1,0,4],[6,2,6,3],[20,1,20,3],[18,1,18,3],[8,1,8,3],[4,1,4,3]]}
[null,"Honorar"]
[null,null,"NB. Skemaet SKAL udfyldes elektronisk"]
["Udfyldes af underviser"]
[{"$f":"IFERROR(IF(LEN(B7)>10,\"CPR-nummer ikke gyldigt - du har mere end 10 tegn med. Husk ikke at inkludere bindestreg\",IF(LEN(B7)=0,\"\",IF(LEN(B7)<10,\"CPR-nummer ikke gyldigt - Du har indtastet for få tegn\",IF(0=MOD(LEFT(B7)*4+MID(B7,2,1)*3+MID(B7,3,1)*2+MID(B7,4,1)*7+MID(B7,5,1)*6+MID(B7,6,1)*5+(MID(B7,7,1)*4+MID(B7,8,1)*3)+MID(B7,9,1)*2+MID(B7,10,1),11),\"\",\"CPR-nummer ikke gyldigt - Tjek cifrene i dit CPR igennem igen\")))),\"CPR-nummer ikke gyldigt - Et af cifrene i dit CPR er ikke et tal\")","v":""}]
["Navn:"]
[]
["Cpr.nr.:",null,"Jeg sender en faktura"]
["Ingen bindestreg. CPR-nummer fremgår af formellinje under tastning, hvorefter det skjules."]
["E-mail"]
[]
["Udfyldes af underviser","Obligatorisk",null,"Udfyldes automatisk","Aktuel sats"]
["Antal forelæsningstimer",null,"Udgift til forelæsningstimer ",{"$f":"B12*'Adm.ark satser'!C2","v":0},{"$f":"'Adm.ark satser'!G1","v":"2025-04-01"}]
["Antal diskussionstimer",null,"Udgift til diskussionstimer ",{"$f":"B13*'Adm.ark satser'!C3","v":0}]
["Antal medhjælper timer",null,"Udgift til medhjælpertimer",{"$f":"B14*'Adm.ark satser'!C4","v":0}]
[null,null,"Beløb i alt",{"$f":"SUM(D12+D13+D14)","v":0}]
[]
["Udfyldes automatisk, trækkes fra delkursuslederark"]
[]
["Speciale:",{"$f":"'Delkursusleder 1'!B6","v":"[vælg fra liste]"}]
[]
["Kursusnavn:",{"$f":"'Delkursusleder 1'!B8","v":"[vælg fra liste]"}]
[]
["Dato for første undervisningsdag DD-MM-ÅÅ:",{"$f":"+'Delkursusleder 1'!B23","v":"2025-11-01"},{"$f":"'Delkursusleder 1'!C23","v":""}]
[]
["Kursussted, by:",{"$f":"'Delkursusleder 1'!B12:D12","v":0}]
[]
["Dit honorar udbetales til NemKonto. Lønsedlen sendes til din e-boks. "]
["Ved CVR./SE-nr. SKAL der sendes e-faktura til EAN nr: 5798000362147 via sundhedsstyrelsens hjemmeside."]
[]
["Evt. bemærkninger"]

{"sheet":"Honorarlønnet 6","index":10,"n_rows":30,"n_cols":5,"rows_kept":30,"cut":false,"hidden":false,"merged":[[1,2,1,4],[24,1,24,3],[30,0,33,4],[0,1,0,4],[6,2,6,3],[20,1,20,3],[18,1,18,3],[8,1,8,3],[4,1,4,3]]}
[null,"Honorar"]
[null,null,"NB. Skemaet SKAL udfyldes elektronisk"]
["Udfyldes af underviser"]
[{"$f":"IFERROR(IF(LEN(B7)>10,\"CPR-nummer ikke gyldigt - du har mere end 10 tegn med. Husk ikke at inkludere bindestreg\",IF(LEN(B7)=0,\"\",IF(LEN(B7)<10,\"CPR-nummer ikke gyldigt - Du har indtastet for få tegn\",IF(0=MOD(LEFT(B7)*4+MID(B7,2,1)*3+MID(B7,3,1)*2+MID(B7,4,1)*7+MID(B7,5,1)*6+MID(B7,6,1)*5+(MID(B7,7,1)*4+MID(B7,8,1)*3)+MID(B7,9,1)*2+MID(B7,10,1),11),\"\",\"CPR-nummer ikke gyldigt - Tjek cifrene i dit CPR igennem igen\")))),\"CPR-nummer ikke gyldigt - Et af cifrene i dit CPR er ikke et tal\")","v":""}]
["Navn:"]
[]
["Cpr.nr.:",null,"Jeg sender en faktura"]
["Ingen bindestreg. CPR-nummer fremgår af formellinje under tastning, hvorefter det skjules."]
["E-mail"]
[]
["Udfyldes af underviser","Obligatorisk",null,"Udfyldes automatisk","Aktuel sats"]
["Antal forelæsningstimer",null,"Udgift til forelæsningstimer ",{"$f":"B12*'Adm.ark satser'!C2","v":0},{"$f":"'Adm.ark satser'!G1","v":"2025-04-01"}]
["Antal diskussionstimer",null,"Udgift til diskussionstimer ",{"$f":"B13*'Adm.ark satser'!C3","v":0}]
["Antal medhjælper timer",null,"Udgift til medhjælpertimer",{"$f":"B14*'Adm.ark satser'!C4","v":0}]
[null,null,"Beløb i alt",{"$f":"SUM(D12+D13+D14)","v":0}]
[]
["Udfyldes automatisk, trækkes fra delkursuslederark"]
[]
["Speciale:",{"$f":"'Delkursusleder 1'!B6","v":"[vælg fra liste]"}]
[]
["Kursusnavn:",{"$f":"'Delkursusleder 1'!B8","v":"[vælg fra liste]"}]
[]
["Dato for første undervisningsdag DD-MM-ÅÅ:",{"$f":"+'Delkursusleder 1'!B23","v":"2025-11-01"},{"$f":"'Delkursusleder 1'!C23","v":""}]
[]
["Kursussted, by:",{"$f":"'Delkursusleder 1'!B12:D12","v":0}]
[]
["Dit honorar udbetales til NemKonto. Lønsedlen sendes til din e-boks. "]
["Ved CVR./SE-nr. SKAL der sendes e-faktura til EAN nr: 5798000362147 via sundhedsstyrelsens hjemmeside."]
[]
["Evt. bemærkninger"]

{"sheet":"Honorarlønnet 7","index":11,"n_rows":30,"n_cols":5,"rows_kept":30,"cut":false,"hidden":false,"merged":[[1,2,1,4],[24,1,24,3],[30,0,33,4],[0,1,0,4],[6,2,6,3],[20,1,20,3],[18,1,18,3],[8,1,8,3],[4,1,4,3]]}
[null,"Honorar"]
[null,null,"NB. Skemaet SKAL udfyldes elektronisk"]
["Udfyldes af underviser"]
[{"$f":"IFERROR(IF(LEN(B7)>10,\"CPR-nummer ikke gyldigt - du har mere end 10 tegn med. Husk ikke at inkludere bindestreg\",IF(LEN(B7)=0,\"\",IF(LEN(B7)<10,\"CPR-nummer ikke gyldigt - Du har indtastet for få tegn\",IF(0=MOD(LEFT(B7)*4+MID(B7,2,1)*3+MID(B7,3,1)*2+MID(B7,4,1)*7+MID(B7,5,1)*6+MID(B7,6,1)*5+(MID(B7,7,1)*4+MID(B7,8,1)*3)+MID(B7,9,1)*2+MID(B7,10,1),11),\"\",\"CPR-nummer ikke gyldigt - Tjek cifrene i dit CPR igennem igen\")))),\"CPR-nummer ikke gyldigt - Et af cifrene i dit CPR er ikke et tal\")","v":""}]
["Navn:"]
[]
["Cpr.nr.:",null,"Jeg sender en faktura"]
["Ingen bindestreg. CPR-nummer fremgår af formellinje under tastning, hvorefter det skjules."]
["E-mail"]
[]
["Udfyldes af underviser","Obligatorisk",null,"Udfyldes automatisk","Aktuel sats"]
["Antal forelæsningstimer",null,"Udgift til forelæsningstimer ",{"$f":"B12*'Adm.ark satser'!C2","v":0},{"$f":"'Adm.ark satser'!G1","v":"2025-04-01"}]
["Antal diskussionstimer",null,"Udgift til diskussionstimer ",{"$f":"B13*'Adm.ark satser'!C3","v":0}]
["Antal medhjælper timer",null,"Udgift til medhjælpertimer",{"$f":"B14*'Adm.ark satser'!C4","v":0}]
[null,null,"Beløb i alt",{"$f":"SUM(D12+D13+D14)","v":0}]
[]
["Udfyldes automatisk, trækkes fra delkursuslederark"]
[]
["Speciale:",{"$f":"'Delkursusleder 1'!B6","v":"[vælg fra liste]"}]
[]
["Kursusnavn:",{"$f":"'Delkursusleder 1'!B8","v":"[vælg fra liste]"}]
[]
["Dato for første undervisningsdag DD-MM-ÅÅ:",{"$f":"+'Delkursusleder 1'!B23","v":"2025-11-01"},{"$f":"'Delkursusleder 1'!C23","v":""}]
[]
["Kursussted, by:",{"$f":"'Delkursusleder 1'!B12:D12","v":0}]
[]
["Dit honorar udbetales til NemKonto. Lønsedlen sendes til din e-boks. "]
["Ved CVR./SE-nr. SKAL der sendes e-faktura til EAN nr: 5798000362147 via sundhedsstyrelsens hjemmeside."]
[]
["Evt. bemærkninger"]

{"sheet":"Honorarlønnet 8","index":12,"n_rows":30,"n_cols":5,"rows_kept":30,"cut":false,"hidden":false,"merged":[[1,2,1,4],[24,1,24,3],[30,0,33,4],[0,1,0,4],[6,2,6,3],[20,1,20,3],[18,1,18,3],[8,1,8,3],[4,1,4,3]]}
[null,"Honorar"]
[null,null,"NB. Skemaet SKAL udfyldes elektronisk"]
["Udfyldes af underviser"]
[{"$f":"IFERROR(IF(LEN(B7)>10,\"CPR-nummer ikke gyldigt - du har mere end 10 tegn med. Husk ikke at inkludere bindestreg\",IF(LEN(B7)=0,\"\",IF(LEN(B7)<10,\"CPR-nummer ikke gyldigt - Du har indtastet for få tegn\",IF(0=MOD(LEFT(B7)*4+MID(B7,2,1)*3+MID(B7,3,1)*2+MID(B7,4,1)*7+MID(B7,5,1)*6+MID(B7,6,1)*5+(MID(B7,7,1)*4+MID(B7,8,1)*3)+MID(B7,9,1)*2+MID(B7,10,1),11),\"\",\"CPR-nummer ikke gyldigt - Tjek cifrene i dit CPR igennem igen\")))),\"CPR-nummer ikke gyldigt - Et af cifrene i dit CPR er ikke et tal\")","v":""}]
["Navn:"]
[]
["Cpr.nr.:",null,"Jeg sender en faktura"]
["Ingen bindestreg. CPR-nummer fremgår af formellinje under tastning, hvorefter det skjules."]
["E-mail"]
[]
["Udfyldes af underviser","Obligatorisk",null,"Udfyldes automatisk","Aktuel sats"]
["Antal forelæsningstimer",null,"Udgift til forelæsningstimer ",{"$f":"B12*'Adm.ark satser'!C2","v":0},{"$f":"'Adm.ark satser'!G1","v":"2025-04-01"}]
["Antal diskussionstimer",null,"Udgift til diskussionstimer ",{"$f":"B13*'Adm.ark satser'!C3","v":0}]
["Antal medhjælper timer",null,"Udgift til medhjælpertimer",{"$f":"B14*'Adm.ark satser'!C4","v":0}]
[null,null,"Beløb i alt",{"$f":"SUM(D12+D13+D14)","v":0}]
[]
["Udfyldes automatisk, trækkes fra delkursuslederark"]
[]
["Speciale:",{"$f":"'Delkursusleder 1'!B6","v":"[vælg fra liste]"}]
[]
["Kursusnavn:",{"$f":"'Delkursusleder 1'!B8","v":"[vælg fra liste]"}]
[]
["Dato for første undervisningsdag DD-MM-ÅÅ:",{"$f":"+'Delkursusleder 1'!B23","v":"2025-11-01"},{"$f":"'Delkursusleder 1'!C23","v":""}]
[]
["Kursussted, by:",{"$f":"'Delkursusleder 1'!B12:D12","v":0}]
[]
["Dit honorar udbetales til NemKonto. Lønsedlen sendes til din e-boks. "]
["Ved CVR./SE-nr. SKAL der sendes e-faktura til EAN nr: 5798000362147 via sundhedsstyrelsens hjemmeside."]
[]
["Evt. bemærkninger"]

{"sheet":"Honorarlønnet 9","index":13,"n_rows":30,"n_cols":5,"rows_kept":30,"cut":false,"hidden":false,"merged":[[1,2,1,4],[24,1,24,3],[30,0,33,4],[0,1,0,4],[6,2,6,3],[20,1,20,3],[18,1,18,3],[8,1,8,3],[4,1,4,3]]}
[null,"Honorar"]
[null,null,"NB. Skemaet SKAL udfyldes elektronisk"]
["Udfyldes af underviser"]
[{"$f":"IFERROR(IF(LEN(B7)>10,\"CPR-nummer ikke gyldigt - du har mere end 10 tegn med. Husk ikke at inkludere bindestreg\",IF(LEN(B7)=0,\"\",IF(LEN(B7)<10,\"CPR-nummer ikke gyldigt - Du har indtastet for få tegn\",IF(0=MOD(LEFT(B7)*4+MID(B7,2,1)*3+MID(B7,3,1)*2+MID(B7,4,1)*7+MID(B7,5,1)*6+MID(B7,6,1)*5+(MID(B7,7,1)*4+MID(B7,8,1)*3)+MID(B7,9,1)*2+MID(B7,10,1),11),\"\",\"CPR-nummer ikke gyldigt - Tjek cifrene i dit CPR igennem igen\")))),\"CPR-nummer ikke gyldigt - Et af cifrene i dit CPR er ikke et tal\")","v":""}]
["Navn:"]
[]
["Cpr.nr.:",null,"Jeg sender en faktura"]
["Ingen bindestreg. CPR-nummer fremgår af formellinje under tastning, hvorefter det skjules."]
["E-mail"]
[]
["Udfyldes af underviser","Obligatorisk",null,"Udfyldes automatisk","Aktuel sats"]
["Antal forelæsningstimer",null,"Udgift til forelæsningstimer ",{"$f":"B12*'Adm.ark satser'!C2","v":0},{"$f":"'Adm.ark satser'!G1","v":"2025-04-01"}]
["Antal diskussionstimer",null,"Udgift til diskussionstimer ",{"$f":"B13*'Adm.ark satser'!C3","v":0}]
["Antal medhjælper timer",null,"Udgift til medhjælpertimer",{"$f":"B14*'Adm.ark satser'!C4","v":0}]
[null,null,"Beløb i alt",{"$f":"SUM(D12+D13+D14)","v":0}]
[]
["Udfyldes automatisk, trækkes fra delkursuslederark"]
[]
["Speciale:",{"$f":"'Delkursusleder 1'!B6","v":"[vælg fra liste]"}]
[]
["Kursusnavn:",{"$f":"'Delkursusleder 1'!B8","v":"[vælg fra liste]"}]
[]
["Dato for første undervisningsdag DD-MM-ÅÅ:",{"$f":"+'Delkursusleder 1'!B23","v":"2025-11-01"},{"$f":"'Delkursusleder 1'!C23","v":""}]
[]
["Kursussted, by:",{"$f":"'Delkursusleder 1'!B12:D12","v":0}]
[]
["Dit honorar udbetales til NemKonto. Lønsedlen sendes til din e-boks. "]
["Ved CVR./SE-nr. SKAL der sendes e-faktura til EAN nr: 5798000362147 via sundhedsstyrelsens hjemmeside."]
[]
["Evt. bemærkninger"]

{"sheet":"Honorarlønnet 10","index":14,"n_rows":30,"n_cols":5,"rows_kept":30,"cut":false,"hidden":false,"merged":[[1,2,1,4],[24,1,24,3],[30,0,33,4],[0,1,0,4],[6,2,6,3],[20,1,20,3],[18,1,18,3],[8,1,8,3],[4,1,4,3]]}
[null,"Honorar"]
[null,null,"NB. Skemaet SKAL udfyldes elektronisk"]
["Udfyldes af underviser"]
[{"$f":"IFERROR(IF(LEN(B7)>10,\"CPR-nummer ikke gyldigt - du har mere end 10 tegn med. Husk ikke at inkludere bindestreg\",IF(LEN(B7)=0,\"\",IF(LEN(B7)<10,\"CPR-nummer ikke gyldigt - Du har indtastet for få tegn\",IF(0=MOD(LEFT(B7)*4+MID(B7,2,1)*3+MID(B7,3,1)*2+MID(B7,4,1)*7+MID(B7,5,1)*6+MID(B7,6,1)*5+(MID(B7,7,1)*4+MID(B7,8,1)*3)+MID(B7,9,1)*2+MID(B7,10,1),11),\"\",\"CPR-nummer ikke gyldigt - Tjek cifrene i dit CPR igennem igen\")))),\"CPR-nummer ikke gyldigt - Et af cifrene i dit CPR er ikke et tal\")","v":""}]
["Navn:"]
[]
["Cpr.nr.:",null,"Jeg sender en faktura"]
["Ingen bindestreg. CPR-nummer fremgår af formellinje under tastning, hvorefter det skjules."]
["E-mail"]
[]
["Udfyldes af underviser","Obligatorisk",null,"Udfyldes automatisk","Aktuel sats"]
["Antal forelæsningstimer",null,"Udgift til forelæsningstimer ",{"$f":"B12*'Adm.ark satser'!C2","v":0},{"$f":"'Adm.ark satser'!G1","v":"2025-04-01"}]
["Antal diskussionstimer",null,"Udgift til diskussionstimer ",{"$f":"B13*'Adm.ark satser'!C3","v":0}]
["Antal medhjælper timer",null,"Udgift til medhjælpertimer",{"$f":"B14*'Adm.ark satser'!C4","v":0}]
[null,null,"Beløb i alt",{"$f":"SUM(D12+D13+D14)","v":0}]
[]
["Udfyldes automatisk, trækkes fra delkursuslederark"]
[]
["Speciale:",{"$f":"'Delkursusleder 1'!B6","v":"[vælg fra liste]"}]
[]
["Kursusnavn:",{"$f":"'Delkursusleder 1'!B8","v":"[vælg fra liste]"}]
[]
["Dato for første undervisningsdag DD-MM-ÅÅ:",{"$f":"+'Delkursusleder 1'!B23","v":"2025-11-01"},{"$f":"'Delkursusleder 1'!C23","v":""}]
[]
["Kursussted, by:",{"$f":"'Delkursusleder 1'!B12:D12","v":0}]
[]
["Dit honorar udbetales til NemKonto. Lønsedlen sendes til din e-boks. "]
["Ved CVR./SE-nr. SKAL der sendes e-faktura til EAN nr: 5798000362147 via sundhedsstyrelsens hjemmeside."]
[]
["Evt. bemærkninger"]

{"sheet":"Honorarlønnet 11","index":15,"n_rows":30,"n_cols":5,"rows_kept":30,"cut":false,"hidden":false,"merged":[[1,2,1,4],[24,1,24,3],[30,0,33,4],[0,1,0,4],[6,2,6,3],[20,1,20,3],[18,1,18,3],[8,1,8,3],[4,1,4,3]]}
[null,"Honorar"]
[null,null,"NB. Skemaet SKAL udfyldes elektronisk"]
["Udfyldes af underviser"]
[{"$f":"IFERROR(IF(LEN(B7)>10,\"CPR-nummer ikke gyldigt - du har mere end 10 tegn med. Husk ikke at inkludere bindestreg\",IF(LEN(B7)=0,\"\",IF(LEN(B7)<10,\"CPR-nummer ikke gyldigt - Du har indtastet for få tegn\",IF(0=MOD(LEFT(B7)*4+MID(B7,2,1)*3+MID(B7,3,1)*2+MID(B7,4,1)*7+MID(B7,5,1)*6+MID(B7,6,1)*5+(MID(B7,7,1)*4+MID(B7,8,1)*3)+MID(B7,9,1)*2+MID(B7,10,1),11),\"\",\"CPR-nummer ikke gyldigt - Tjek cifrene i dit CPR igennem igen\")))),\"CPR-nummer ikke gyldigt - Et af cifrene i dit CPR er ikke et tal\")","v":""}]
["Navn:"]
[]
["Cpr.nr.:",null,"Jeg sender en faktura"]
["Ingen bindestreg. CPR-nummer fremgår af formellinje under tastning, hvorefter det skjules."]
["E-mail"]
[]
["Udfyldes af underviser","Obligatorisk",null,"Udfyldes automatisk","Aktuel sats"]
["Antal forelæsningstimer",null,"Udgift til forelæsningstimer ",{"$f":"B12*'Adm.ark satser'!C2","v":0},{"$f":"'Adm.ark satser'!G1","v":"2025-04-01"}]
["Antal diskussionstimer",null,"Udgift til diskussionstimer ",{"$f":"B13*'Adm.ark satser'!C3","v":0}]
["Antal medhjælper timer",null,"Udgift til medhjælpertimer",{"$f":"B14*'Adm.ark satser'!C4","v":0}]
[null,null,"Beløb i alt",{"$f":"SUM(D12+D13+D14)","v":0}]
[]
["Udfyldes automatisk, trækkes fra delkursuslederark"]
[]
["Speciale:",{"$f":"'Delkursusleder 1'!B6","v":"[vælg fra liste]"}]
[]
["Kursusnavn:",{"$f":"'Delkursusleder 1'!B8","v":"[vælg fra liste]"}]
[]
["Dato for første undervisningsdag DD-MM-ÅÅ:",{"$f":"+'Delkursusleder 1'!B23","v":"2025-11-01"},{"$f":"'Delkursusleder 1'!C23","v":""}]
[]
["Kursussted, by:",{"$f":"'Delkursusleder 1'!B12:D12","v":0}]
[]
["Dit honorar udbetales til NemKonto. Lønsedlen sendes til din e-boks. "]
["Ved CVR./SE-nr. SKAL der sendes e-faktura til EAN nr: 5798000362147 via sundhedsstyrelsens hjemmeside."]
[]
["Evt. bemærkninger"]

{"sheet":"Honorarlønnet 12","index":16,"n_rows":30,"n_cols":5,"rows_kept":30,"cut":false,"hidden":false,"merged":[[1,2,1,4],[24,1,24,3],[30,0,33,4],[0,1,0,4],[6,2,6,3],[20,1,20,3],[18,1,18,3],[8,1,8,3],[4,1,4,3]]}
[null,"Honorar"]
[null,null,"NB. Skemaet SKAL udfyldes elektronisk"]
["Udfyldes af underviser"]
[{"$f":"IFERROR(IF(LEN(B7)>10,\"CPR-nummer ikke gyldigt - du har mere end 10 tegn med. Husk ikke at inkludere bindestreg\",IF(LEN(B7)=0,\"\",IF(LEN(B7)<10,\"CPR-nummer ikke gyldigt - Du har indtastet for få tegn\",IF(0=MOD(LEFT(B7)*4+MID(B7,2,1)*3+MID(B7,3,1)*2+MID(B7,4,1)*7+MID(B7,5,1)*6+MID(B7,6,1)*5+(MID(B7,7,1)*4+MID(B7,8,1)*3)+MID(B7,9,1)*2+MID(B7,10,1),11),\"\",\"CPR-nummer ikke gyldigt - Tjek cifrene i dit CPR igennem igen\")))),\"CPR-nummer ikke gyldigt - Et af cifrene i dit CPR er ikke et tal\")","v":""}]
["Navn:"]
[]
["Cpr.nr.:",null,"Jeg sender en faktura"]
["Ingen bindestreg. CPR-nummer fremgår af formellinje under tastning, hvorefter det skjules."]
["E-mail"]
[]
["Udfyldes af underviser","Obligatorisk",null,"Udfyldes automatisk","Aktuel sats"]
["Antal forelæsningstimer",null,"Udgift til forelæsningstimer ",{"$f":"B12*'Adm.ark satser'!C2","v":0},{"$f":"'Adm.ark satser'!G1","v":"2025-04-01"}]
["Antal diskussionstimer",null,"Udgift til diskussionstimer ",{"$f":"B13*'Adm.ark satser'!C3","v":0}]
["Antal medhjælper timer",null,"Udgift til medhjælpertimer",{"$f":"B14*'Adm.ark satser'!C4","v":0}]
[null,null,"Beløb i alt",{"$f":"SUM(D12+D13+D14)","v":0}]
[]
["Udfyldes automatisk, trækkes fra delkursuslederark"]
[]
["Speciale:",{"$f":"'Delkursusleder 1'!B6","v":"[vælg fra liste]"}]
[]
["Kursusnavn:",{"$f":"'Delkursusleder 1'!B8","v":"[vælg fra liste]"}]
[]
["Dato for første undervisningsdag DD-MM-ÅÅ:",{"$f":"+'Delkursusleder 1'!B23","v":"2025-11-01"},{"$f":"'Delkursusleder 1'!C23","v":""}]
[]
["Kursussted, by:",{"$f":"'Delkursusleder 1'!B12:D12","v":0}]
[]
["Dit honorar udbetales til NemKonto. Lønsedlen sendes til din e-boks. "]
["Ved CVR./SE-nr. SKAL der sendes e-faktura til EAN nr: 5798000362147 via sundhedsstyrelsens hjemmeside."]
[]
["Evt. bemærkninger"]

{"sheet":"Honorarlønnet 13","index":17,"n_rows":30,"n_cols":5,"rows_kept":30,"cut":false,"hidden":false,"merged":[[0,1,0,4],[1,2,1,4],[24,1,24,3],[30,0,33,4],[6,2,6,3],[20,1,20,3],[18,1,18,3],[8,1,8,3],[4,1,4,3]]}
[null,"Honorar"]
[null,null,"NB. Skemaet SKAL udfyldes elektronisk"]
["Udfyldes af underviser"]
[{"$f":"IFERROR(IF(LEN(B7)>10,\"CPR-nummer ikke gyldigt - du har mere end 10 tegn med. Husk ikke at inkludere bindestreg\",IF(LEN(B7)=0,\"\",IF(LEN(B7)<10,\"CPR-nummer ikke gyldigt - Du har indtastet for få tegn\",IF(0=MOD(LEFT(B7)*4+MID(B7,2,1)*3+MID(B7,3,1)*2+MID(B7,4,1)*7+MID(B7,5,1)*6+MID(B7,6,1)*5+(MID(B7,7,1)*4+MID(B7,8,1)*3)+MID(B7,9,1)*2+MID(B7,10,1),11),\"\",\"CPR-nummer ikke gyldigt - Tjek cifrene i dit CPR igennem igen\")))),\"CPR-nummer ikke gyldigt - Et af cifrene i dit CPR er ikke et tal\")","v":""}]
["Navn:"]
[]
["Cpr.nr.:",null,"Jeg sender en faktura"]
["Ingen bindestreg. CPR-nummer fremgår af formellinje under tastning, hvorefter det skjules."]
["E-mail"]
[]
["Udfyldes af underviser","Obligatorisk",null,"Udfyldes automatisk","Aktuel sats"]
["Antal forelæsningstimer",null,"Udgift til forelæsningstimer ",{"$f":"B12*'Adm.ark satser'!C2","v":0},{"$f":"'Adm.ark satser'!G1","v":"2025-04-01"}]
["Antal diskussionstimer",null,"Udgift til diskussionstimer ",{"$f":"B13*'Adm.ark satser'!C3","v":0}]
["Antal medhjælper timer",null,"Udgift til medhjælpertimer",{"$f":"B14*'Adm.ark satser'!C4","v":0}]
[null,null,"Beløb i alt",{"$f":"SUM(D12+D13+D14)","v":0}]
[]
["Udfyldes automatisk, trækkes fra delkursuslederark"]
[]
["Speciale:",{"$f":"'Delkursusleder 1'!B6","v":"[vælg fra liste]"}]
[]
["Kursusnavn:",{"$f":"'Delkursusleder 1'!B8","v":"[vælg fra liste]"}]
[]
["Dato for første undervisningsdag DD-MM-ÅÅ:",{"$f":"+'Delkursusleder 1'!B23","v":"2025-11-01"},{"$f":"'Delkursusleder 1'!C23","v":""}]
[]
["Kursussted, by:",{"$f":"'Delkursusleder 1'!B12:D12","v":0}]
[]
["Dit honorar udbetales til NemKonto. Lønsedlen sendes til din e-boks. "]
["Ved CVR./SE-nr. SKAL der sendes e-faktura til EAN nr: 5798000362147 via sundhedsstyrelsens hjemmeside."]
[]
["Evt. bemærkninger"]

{"sheet":"Honorarlønnet 14","index":18,"n_rows":30,"n_cols":5,"rows_kept":30,"cut":false,"hidden":false,"merged":[[0,1,0,4],[1,2,1,4],[24,1,24,3],[30,0,33,4],[6,2,6,3],[4,1,4,3],[20,1,20,3],[18,1,18,3],[8,1,8,3]]}
[null,"Honorar"]
[null,null,"NB. Skemaet SKAL udfyldes elektronisk"]
["Udfyldes af underviser"]
[{"$f":"IFERROR(IF(LEN(B7)>10,\"CPR-nummer ikke gyldigt - du har mere end 10 tegn med. Husk ikke at inkludere bindestreg\",IF(LEN(B7)=0,\"\",IF(LEN(B7)<10,\"CPR-nummer ikke gyldigt - Du har indtastet for få tegn\",IF(0=MOD(LEFT(B7)*4+MID(B7,2,1)*3+MID(B7,3,1)*2+MID(B7,4,1)*7+MID(B7,5,1)*6+MID(B7,6,1)*5+(MID(B7,7,1)*4+MID(B7,8,1)*3)+MID(B7,9,1)*2+MID(B7,10,1),11),\"\",\"CPR-nummer ikke gyldigt - Tjek cifrene i dit CPR igennem igen\")))),\"CPR-nummer ikke gyldigt - Et af cifrene i dit CPR er ikke et tal\")","v":""}]
["Navn:"]
[]
["Cpr.nr.:",null,"Jeg sender en faktura"]
["Ingen bindestreg. CPR-nummer fremgår af formellinje under tastning, hvorefter det skjules."]
["E-mail"]
[]
["Udfyldes af underviser","Obligatorisk",null,"Udfyldes automatisk","Aktuel sats"]
["Antal forelæsningstimer",null,"Udgift til forelæsningstimer ",{"$f":"B12*'Adm.ark satser'!C2","v":0},{"$f":"'Adm.ark satser'!G1","v":"2025-04-01"}]
["Antal diskussionstimer",null,"Udgift til diskussionstimer ",{"$f":"B13*'Adm.ark satser'!C3","v":0}]
["Antal medhjælper timer",null,"Udgift til medhjælpertimer",{"$f":"B14*'Adm.ark satser'!C4","v":0}]
[null,null,"Beløb i alt",{"$f":"SUM(D12+D13+D14)","v":0}]
[]
["Udfyldes automatisk, trækkes fra delkursuslederark"]
[]
["Speciale:",{"$f":"'Delkursusleder 1'!B6","v":"[vælg fra liste]"}]
[]
["Kursusnavn:",{"$f":"'Delkursusleder 1'!B8","v":"[vælg fra liste]"}]
[]
["Dato for første undervisningsdag DD-MM-ÅÅ:",{"$f":"+'Delkursusleder 1'!B23","v":"2025-11-01"},{"$f":"'Delkursusleder 1'!C23","v":""}]
[]
["Kursussted, by:",{"$f":"'Delkursusleder 1'!B12:D12","v":0}]
[]
["Dit honorar udbetales til NemKonto. Lønsedlen sendes til din e-boks. "]
["Ved CVR./SE-nr. SKAL der sendes e-faktura til EAN nr: 5798000362147 via sundhedsstyrelsens hjemmeside."]
[]
["Evt. bemærkninger"]

{"sheet":"Honorarlønnet 15","index":19,"n_rows":30,"n_cols":5,"rows_kept":30,"cut":false,"hidden":false,"merged":[[0,1,0,4],[1,2,1,4],[24,1,24,3],[30,0,33,4],[6,2,6,3],[20,1,20,3],[18,1,18,3],[8,1,8,3],[4,1,4,3]]}
[null,"Honorar"]
[null,null,"NB. Skemaet SKAL udfyldes elektronisk"]
["Udfyldes af underviser"]
[{"$f":"IFERROR(IF(LEN(B7)>10,\"CPR-nummer ikke gyldigt - du har mere end 10 tegn med. Husk ikke at inkludere bindestreg\",IF(LEN(B7)=0,\"\",IF(LEN(B7)<10,\"CPR-nummer ikke gyldigt - Du har indtastet for få tegn\",IF(0=MOD(LEFT(B7)*4+MID(B7,2,1)*3+MID(B7,3,1)*2+MID(B7,4,1)*7+MID(B7,5,1)*6+MID(B7,6,1)*5+(MID(B7,7,1)*4+MID(B7,8,1)*3)+MID(B7,9,1)*2+MID(B7,10,1),11),\"\",\"CPR-nummer ikke gyldigt - Tjek cifrene i dit CPR igennem igen\")))),\"CPR-nummer ikke gyldigt - Et af cifrene i dit CPR er ikke et tal\")","v":""}]
["Navn:"]
[]
["Cpr.nr.:",null,"Jeg sender en faktura"]
["Ingen bindestreg. CPR-nummer fremgår af formellinje under tastning, hvorefter det skjules."]
["E-mail"]
[]
["Udfyldes af underviser","Obligatorisk",null,"Udfyldes automatisk","Aktuel sats"]
["Antal forelæsningstimer",null,"Udgift til forelæsningstimer ",{"$f":"B12*'Adm.ark satser'!C2","v":0},{"$f":"'Adm.ark satser'!G1","v":"2025-04-01"}]
["Antal diskussionstimer",null,"Udgift til diskussionstimer ",{"$f":"B13*'Adm.ark satser'!C3","v":0}]
["Antal medhjælper timer",null,"Udgift til medhjælpertimer",{"$f":"B14*'Adm.ark satser'!C4","v":0}]
[null,null,"Beløb i alt",{"$f":"SUM(D12+D13+D14)","v":0}]
[]
["Udfyldes automatisk, trækkes fra delkursuslederark"]
[]
["Speciale:",{"$f":"'Delkursusleder 1'!B6","v":"[vælg fra liste]"}]
[]
["Kursusnavn:",{"$f":"'Delkursusleder 1'!B8","v":"[vælg fra liste]"}]
[]
["Dato for første undervisningsdag DD-MM-ÅÅ:",{"$f":"+'Delkursusleder 1'!B23","v":"2025-11-01"},{"$f":"'Delkursusleder 1'!C23","v":""}]
[]
["Kursussted, by:",{"$f":"'Delkursusleder 1'!B12:D12","v":0}]
[]
["Dit honorar udbetales til NemKonto. Lønsedlen sendes til din e-boks. "]
["Ved CVR./SE-nr. SKAL der sendes e-faktura til EAN nr: 5798000362147 via sundhedsstyrelsens hjemmeside."]
[]
["Evt. bemærkninger"]

{"sheet":"Sekretær","index":20,"n_rows":25,"n_cols":6,"rows_kept":25,"cut":false,"hidden":false,"merged":[[6,5,6,6],[0,1,0,3],[1,2,1,3],[25,0,28,3],[19,1,19,2],[6,1,6,3],[4,1,4,3],[8,1,8,3],[17,1,17,3],[15,1,15,3]]}
[null,"Honorar Sekretær"]
[null,null,"NB. Skemaet SKAL udfyldes elektronisk"]
["Udfyldes af sekretær"]
[{"$f":"IFERROR(IF(LEN(B7)>10,\"CPR-nummer ikke gyldigt - du har mere end 10 tegn med. Husk ikke at inkludere bindestreg\",IF(LEN(B7)=0,\"\",IF(LEN(B7)<10,\"CPR-nummer ikke gyldigt - Du har indtastet for få tegn\",IF(0=MOD(LEFT(B7)*4+MID(B7,2,1)*3+MID(B7,3,1)*2+MID(B7,4,1)*7+MID(B7,5,1)*6+MID(B7,6,1)*5+(MID(B7,7,1)*4+MID(B7,8,1)*3)+MID(B7,9,1)*2+MID(B7,10,1),11),\"\",\"CPR-nummer ikke gyldigt - Tjek cifrene i dit CPR igennem igen\")))),\"CPR-nummer ikke gyldigt - Et af cifrene i dit CPR er ikke et tal\")","v":""}]
["Navn:"]
[]
["Cpr.nr.: ",null,null,null,null,"Jeg sender en faktura"]
[null,"Ingen bindestreg. CPR-nummer er skjult."]
["E-mail"]
[]
["Honorar sekretær\n (tast her)",null,"Max beløb til deling mellem sekretær og hovedkursusleder",{"$f":"'Adm.ark satser'!K2","v":9000}]
[null,null,"Total beløb for sekretær og hovedkursusleder",{"$f":"A12+Hovedkursusleder!A12","v":0}]
[]
["Udfyldes automatisk, trækkes fra delkursuslederark"]
[]
["Speciale:",{"$f":"'Delkursusleder 1'!B6","v":"[vælg fra liste]"}]
[]
["Kursusnavn:",{"$f":"'Delkursusleder 1'!B8","v":"[vælg fra liste]"}]
[]
["Dato for første undervisningsdag DD-MM-ÅÅ:",{"$f":"+'Delkursusleder 1'!B23","v":"2025-11-01"},null,{"$f":"'Delkursusleder 1'!C23","v":""}]
[]
["Dit honorar udbetales til NemKonto. Lønsedlen sendes til din e-boks. "]
["Ved CVR./SE-nr. SKAL der sendes e-faktura til EAN nr: 5798000362147 via sundhedsstyrelsens hjemmeside."]
[]
["Evt. bemærkninger"]

{"sheet":"Samlingsark","index":21,"n_rows":24,"n_cols":14,"rows_kept":24,"cut":false,"hidden":false,"merged":[[0,0,0,13],[1,0,2,0],[1,1,2,1],[1,2,2,2],[1,3,2,3],[1,4,2,4],[1,5,2,5],[1,6,2,6],[1,7,2,7],[1,13,2,13]]}
["Udfyldes automatisk"]
["Rolle","Navn","CPR","Kursusnummer","Antal sekretær timer","Antal forelæsningstimer","Antal diskussionstimer","Antal medhjælpertimer","Delkursuslederhonrar","Administrationshonorar","Forelæsningstimer ","Diskususionstimer ","Medhjælpertimer","Beløb i alt"]
[null,null,null,null,null,null,null,null,"Udgiftstype 4","Udgiftstype 5","Udgiftstype 1","Udgiftstype 2","Udgiftstype 3"]
["Delkursusleder 1",{"$f":"'Delkursusleder 1'!B14:D14","v":0},{"$f":"'Delkursusleder 1'!B16","v":0},{"$f":"'Delkursusleder 1'!B10","v":"Kursusnummer findes automatisk efter du har indtastet speciale/kursusnavn"},"-",{"$f":"'Delkursusleder 1'!B29","v":0},{"$f":"'Delkursusleder 1'!B30","v":0},{"$f":"'Delkursusleder 1'!B31","v":0},{"$f":"'Delkursusleder 1'!A39","v":0},"-",{"$f":"'Delkursusleder 1'!D29","v":0},{"$f":"'Delkursusleder 1'!D30","v":0},{"$f":"'Delkursusleder 1'!D31","v":0},{"$f":"I4+K4+L4+M4","v":0}]
["Evt. delkursusleder 2",{"$f":"'(Evt. delkursusleder 2)'!B6:D6","v":0},{"$f":"'(Evt. delkursusleder 2)'!B8","v":0},{"$f":"'Delkursusleder 1'!$B$10","v":"Kursusnummer findes automatisk efter du har indtastet speciale/kursusnavn"},"-",{"$f":"'(Evt. delkursusleder 2)'!B34","v":0},{"$f":"'(Evt. delkursusleder 2)'!B35","v":0},{"$f":"'(Evt. delkursusleder 2)'!B36","v":0},{"$f":"+'(Evt. delkursusleder 2)'!A22","v":0},"-",{"$f":"'(Evt. delkursusleder 2)'!D34","v":0},{"$f":"'(Evt. delkursusleder 2)'!D35","v":0},{"$f":"'(Evt. delkursusleder 2)'!D36","v":0},{"$f":"I5+K5+L5+M5","v":0}]
["Hovedkursusleder",{"$f":"+Hovedkursusleder!B5:D5","v":0},{"$f":"+Hovedkursusleder!B7","v":0},{"$f":"'Delkursusleder 1'!$B$10","v":"Kursusnummer findes automatisk efter du har indtastet speciale/kursusnavn"},"-","-","-","-","-",{"$f":"+Hovedkursusleder!A12","v":0},"-","-","-",{"$f":"J6","v":0}]
["Sekretær",{"$f":"Sekretær!B5","v":0},{"$f":"+Sekretær!B7","v":0},{"$f":"'Delkursusleder 1'!$B$10","v":"Kursusnummer findes automatisk efter du har indtastet speciale/kursusnavn"},"-","-","-","-","-",{"$f":"+Sekretær!A12","v":0},"-","-","-",{"$f":"J7","v":0}]
["Honorarlønnet 1",{"$f":"'Honorarlønnet 1'!B5","v":0},{"$f":"+'Honorarlønnet 1'!$B$7","v":0},{"$f":"'Delkursusleder 1'!$B$10","v":"Kursusnummer findes automatisk efter du har indtastet speciale/kursusnavn"},"-",{"$f":"'Honorarlønnet 1'!B12","v":0},{"$f":"'Honorarlønnet 1'!B13","v":0},{"$f":"'Honorarlønnet 1'!B14","v":0},"-","-",{"$f":"'Honorarlønnet 1'!$D$12","v":0},{"$f":"'Honorarlønnet 1'!$D$13","v":0},{"$f":"'Honorarlønnet 1'!$D$14","v":0},{"$f":"K8+L8+M8","v":0}]
["Honorarlønnet 2",{"$f":"'Honorarlønnet 2'!B5","v":0},{"$f":"+'Honorarlønnet 2'!$B$7","v":0},{"$f":"'Delkursusleder 1'!$B$10","v":"Kursusnummer findes automatisk efter du har indtastet speciale/kursusnavn"},"-",{"$f":"+'Honorarlønnet 2'!$B12","v":0},{"$f":"+'Honorarlønnet 2'!$B13","v":0},{"$f":"+'Honorarlønnet 2'!$B14","v":0},"-","-",{"$f":"'Honorarlønnet 2'!$D$12","v":0},{"$f":"'Honorarlønnet 2'!$D$13","v":0},{"$f":"'Honorarlønnet 2'!$D$14","v":0},{"$f":"K9+L9+M9","v":0}]
["Honorarlønnet 3",{"$f":"'Honorarlønnet 3'!B5","v":0},{"$f":"+'Honorarlønnet 3'!$B$7","v":0},{"$f":"'Delkursusleder 1'!$B$10","v":"Kursusnummer findes automatisk efter du har indtastet speciale/kursusnavn"},"-",{"$f":"+'Honorarlønnet 3'!B12","v":0},{"$f":"+'Honorarlønnet 3'!$B$13","v":0},{"$f":"+'Honorarlønnet 3'!$B$14","v":0},"-","-",{"$f":"'Honorarlønnet 3'!$D$12","v":0},{"$f":"'Honorarlønnet 3'!$D$13","v":0},{"$f":"'Honorarlønnet 3'!$D$14","v":0},0]
["Honorarlønnet 4",{"$f":"'Honorarlønnet 4'!B5","v":0},{"$f":"+'Honorarlønnet 4'!$B$7","v":0},{"$f":"'Delkursusleder 1'!$B$10","v":"Kursusnummer findes automatisk efter du har indtastet speciale/kursusnavn"},"-",{"$f":"+'Honorarlønnet 4'!$B$12","v":0},{"$f":"+'Honorarlønnet 4'!$B$13","v":0},{"$f":"+'Honorarlønnet 4'!$B$14","v":0},"-","-",{"$f":"'Honorarlønnet 4'!$D$12","v":0},{"$f":"'Honorarlønnet 4'!$D$13","v":0},{"$f":"'Honorarlønnet 4'!$D$14","v":0},0]
["Honorarlønnet 5",{"$f":"'Honorarlønnet 5'!B5","v":0},{"$f":"+'Honorarlønnet 5'!$B$7","v":0},{"$f":"'Delkursusleder 1'!$B$10","v":"Kursusnummer findes automatisk efter du har indtastet speciale/kursusnavn"},"-",{"$f":"+'Honorarlønnet 5'!$B$12","v":0},{"$f":"+'Honorarlønnet 5'!$B$13","v":0},{"$f":"+'Honorarlønnet 5'!$B$14","v":0},"-","-",{"$f":"'Honorarlønnet 5'!$D$12","v":0},{"$f":"'Honorarlønnet 5'!$D$13","v":0},{"$f":"'Honorarlønnet 5'!$D$14","v":0},0]
["Honorarlønnet 6",{"$f":"'Honorarlønnet 6'!B5","v":0},{"$f":"+'Honorarlønnet 6'!$B$7","v":0},{"$f":"'Delkursusleder 1'!$B$10","v":"Kursusnummer findes automatisk efter du har indtastet speciale/kursusnavn"},"-",{"$f":"+'Honorarlønnet 6'!$B$12","v":0},{"$f":"+'Honorarlønnet 6'!$B$13","v":0},{"$f":"+'Honorarlønnet 6'!$B$14","v":0},"-","-",{"$f":"'Honorarlønnet 6'!$D$12","v":0},{"$f":"'Honorarlønnet 6'!$D$13","v":0},{"$f":"'Honorarlønnet 6'!$D$14","v":0},0]
["Honorarlønnet 7",{"$f":"'Honorarlønnet 7'!B5","v":0},{"$f":"+'Honorarlønnet 7'!$B$7","v":0},{"$f":"'Delkursusleder 1'!$B$10","v":"Kursusnummer findes automatisk efter du har indtastet speciale/kursusnavn"},"-",{"$f":"+'Honorarlønnet 7'!$B$12","v":0},{"$f":"+'Honorarlønnet 7'!$B$13","v":0},{"$f":"+'Honorarlønnet 7'!$B$14","v":0},"-","-",{"$f":"'Honorarlønnet 7'!$D$12","v":0},{"$f":"'Honorarlønnet 7'!$D$13","v":0},{"$f":"'Honorarlønnet 7'!$D$14","v":0},0]
["Honorarlønnet 8",{"$f":"'Honorarlønnet 8'!B5","v":0},{"$f":"+'Honorarlønnet 8'!$B$7","v":0},{"$f":"'Delkursusleder 1'!$B$10","v":"Kursusnummer findes automatisk efter du har indtastet speciale/kursusnavn"},"-",{"$f":"+'Honorarlønnet 8'!$B$12","v":0},{"$f":"+'Honorarlønnet 8'!$B$13","v":0},{"$f":"+'Honorarlønnet 8'!$B$14","v":0},"-","-",{"$f":"'Honorarlønnet 8'!$D$12","v":0},{"$f":"'Honorarlønnet 8'!$D$13","v":0},{"$f":"'Honorarlønnet 8'!$D$14","v":0},0]
["Honorarlønnet 9",{"$f":"'Honorarlønnet 9'!B5","v":0},{"$f":"+'Honorarlønnet 9'!$B$7","v":0},{"$f":"'Delkursusleder 1'!$B$10","v":"Kursusnummer findes automatisk efter du har indtastet speciale/kursusnavn"},"-",{"$f":"+'Honorarlønnet 9'!$B$12","v":0},{"$f":"+'Honorarlønnet 9'!$B$13","v":0},{"$f":"+'Honorarlønnet 9'!$B$14","v":0},"-","-",{"$f":"'Honorarlønnet 9'!$D$12","v":0},{"$f":"'Honorarlønnet 9'!$D$13","v":0},{"$f":"'Honorarlønnet 9'!$D$14","v":0},0]
["Honorarlønnet 10",{"$f":"'Honorarlønnet 10'!B5","v":0},{"$f":"+'Honorarlønnet 10'!$B$7","v":0},{"$f":"'Delkursusleder 1'!$B$10","v":"Kursusnummer findes automatisk efter du har indtastet speciale/kursusnavn"},"-",{"$f":"+'Honorarlønnet 10'!$B$12","v":0},{"$f":"+'Honorarlønnet 10'!$B$13","v":0},{"$f":"+'Honorarlønnet 10'!$B$14","v":0},"-","-",{"$f":"'Honorarlønnet 10'!$D$12","v":0},{"$f":"'Honorarlønnet 10'!$D$13","v":0},{"$f":"'Honorarlønnet 10'!$D$14","v":0},0]
["Honorarlønnet 11",{"$f":"'Honorarlønnet 11'!B5","v":0},{"$f":"+'Honorarlønnet 11'!$B$7","v":0},{"$f":"'Delkursusleder 1'!$B$10","v":"Kursusnummer findes automatisk efter du har indtastet speciale/kursusnavn"},"-",{"$f":"+'Honorarlønnet 11'!$B$12","v":0},{"$f":"+'Honorarlønnet 11'!$B$13","v":0},{"$f":"+'Honorarlønnet 11'!$B$14","v":0},"-","-",{"$f":"'Honorarlønnet 11'!$D$12","v":0},{"$f":"'Honorarlønnet 11'!$D$13","v":0},{"$f":"'Honorarlønnet 11'!$D$14","v":0},0]
["Honorarlønnet 12",{"$f":"'Honorarlønnet 12'!B5","v":0},{"$f":"+'Honorarlønnet 12'!$B$7","v":0},{"$f":"'Delkursusleder 1'!$B$10","v":"Kursusnummer findes automatisk efter du har indtastet speciale/kursusnavn"},"-",{"$f":"+'Honorarlønnet 12'!$B$12","v":0},{"$f":"+'Honorarlønnet 12'!$B$13","v":0},{"$f":"+'Honorarlønnet 12'!$B$14","v":0},"-","-",{"$f":"'Honorarlønnet 12'!$D$12","v":0},{"$f":"'Honorarlønnet 12'!$D$13","v":0},{"$f":"'Honorarlønnet 12'!$D$14","v":0},0]
["Honorarlønnet 13",{"$f":"'Honorarlønnet 13'!B5","v":0},{"$f":"+'Honorarlønnet 13'!$B$7","v":0},{"$f":"'Delkursusleder 1'!$B$10","v":"Kursusnummer findes automatisk efter du har indtastet speciale/kursusnavn"},"-",{"$f":"+'Honorarlønnet 13'!$B$12","v":0},{"$f":"+'Honorarlønnet 13'!$B$13","v":0},{"$f":"+'Honorarlønnet 13'!$B$14","v":0},"-","-",{"$f":"'Honorarlønnet 13'!$D$12","v":0},{"$f":"'Honorarlønnet 13'!$D$13","v":0},{"$f":"'Honorarlønnet 13'!$D$14","v":0},{"$f":"K20+L20+M20","v":0}]
["Honorarlønnet 14",{"$f":"'Honorarlønnet 14'!B5","v":0},{"$f":"+'Honorarlønnet 14'!$B$7","v":0},{"$f":"'Delkursusleder 1'!$B$10","v":"Kursusnummer findes automatisk efter du har indtastet speciale/kursusnavn"},"-",{"$f":"+'Honorarlønnet 14'!$B$12","v":0},{"$f":"+'Honorarlønnet 14'!$B$13","v":0},{"$f":"+'Honorarlønnet 14'!$B$14","v":0},"-","-",{"$f":"'Honorarlønnet 14'!$D$12","v":0},{"$f":"'Honorarlønnet 14'!$D$13","v":0},{"$f":"'Honorarlønnet 14'!$D$14","v":0},0]
["Honorarlønnet 15",{"$f":"'Honorarlønnet 15'!B5","v":0},{"$f":"+'Honorarlønnet 15'!$B$7","v":0},{"$f":"'Delkursusleder 1'!$B$10","v":"Kursusnummer findes automatisk efter du har indtastet speciale/kursusnavn"},"-",{"$f":"+'Honorarlønnet 15'!$B$12","v":0},{"$f":"+'Honorarlønnet 15'!$B$13","v":0},{"$f":"+'Honorarlønnet 15'!$B$14","v":0},"-","-",{"$f":"'Honorarlønnet 15'!$D$12","v":0},{"$f":"'Honorarlønnet 15'!$D$13","v":0},{"$f":"'Honorarlønnet 15'!$D$14","v":0},0]
["Total timer/beløb",null,null,null,"-",{"$f":"SUM(F4:F22)","v":0},{"$f":"SUM(G4:G22)","v":0},{"$f":"SUM(H4:H22)","v":0},{"$f":"SUM(I4:I5)","v":0},{"$f":"SUM(J6:J7)","v":0},{"$f":"SUM(K4:K22)","v":0},{"$f":"SUM(L4:L22)","v":0},{"$f":"SUM(M4:M22)","v":0},{"$f":"SUM(N4:N22)","v":0}]
[null,null,null,null,null,null,null,null,"Den nederste række i denne fane, 'skal kopieres med i mail til hovedkursusleder, når delkursusleder kvitterer for oplysningernes rigtighed. "]

{"sheet":"Hovedkursusleder","index":22,"n_rows":25,"n_cols":7,"rows_kept":25,"cut":false,"hidden":false,"merged":[[10,6,10,7],[0,1,0,4],[1,2,1,4],[19,1,19,2],[6,1,6,3],[4,1,4,3],[17,1,17,3],[15,1,15,3],[8,1,8,3],[19,3,19,5]]}
[null,"Honorar Hovedkursusleder"]
[null,null,"NB. Skemaet SKAL udfyldes elektronisk"]
["Udfyldes af hovedkursusleder"]
[{"$f":"IFERROR(IF(LEN(B7)>10,\"CPR-nummer ikke gyldigt - du har mere end 10 tegn med. Husk ikke at inkludere bindestreg\",IF(LEN(B7)=0,\"\",IF(LEN(B7)<10,\"CPR-nummer ikke gyldigt - Du har indtastet for få tegn\",IF(0=MOD(LEFT(B7)*4+MID(B7,2,1)*3+MID(B7,3,1)*2+MID(B7,4,1)*7+MID(B7,5,1)*6+MID(B7,6,1)*5+(MID(B7,7,1)*4+MID(B7,8,1)*3)+MID(B7,9,1)*2+MID(B7,10,1),11),\"\",\"CPR-nummer ikke gyldigt - Tjek cifrene i dit CPR igennem igen\")))),\"CPR-nummer ikke gyldigt - Et af cifrene i dit CPR er ikke et tal\")","v":""}]
["Navn:"]
[]
["Cpr.nr.: "]
[null,"Ingen bindestreg. CPR-nummer skjult"]
["E-mail"]
[]
["Honorar hovedkursusleder\n (tast her)",null,"Max beløb til deling mellem sekretær og hovedkursusleder",{"$f":"'Adm.ark satser'!K2","v":9000},null,null,"Jeg sender en faktura"]
[null,null,"Total beløb for sekretær og hovedkursusleder",{"$f":"A12+Sekretær!A12","v":0}]
[]
["Udfyldes automatisk, trækkes fra delkursuslederark"]
[]
["Speciale:",{"$f":"'Delkursusleder 1'!B6","v":"[vælg fra liste]"}]
[]
["Kursusnavn:",{"$f":"'Delkursusleder 1'!B8","v":"[vælg fra liste]"}]
[]
["Dato for første undervisningsdag DD-MM-ÅÅ:",{"$f":"'Delkursusleder 1'!B23","v":"2025-11-01"},null,{"$f":"'Delkursusleder 1'!C23","v":""}]
[]
["Dit honorar udbetales til NemKonto. Lønsedlen sendes til din e-boks. "]
["Ved CVR./SE-nr. SKAL der sendes e-faktura til EAN nr: 5798000362147 via sundhedsstyrelsens hjemmeside."]
[]
["Evt. bemærkninger"]

{"sheet":"SST, økonomi","index":23,"n_rows":74,"n_cols":10,"rows_kept":74,"cut":false,"hidden":false,"merged":[[0,0,0,1]]}
["Sundhedsstyrelsens økonomioverblik"]
[]
["Specialenavn:"]
[{"$f":"+'Delkursusleder 1'!B6","v":"[vælg fra liste]"}]
[]
["Kursusnavn","Kursus nummer"]
[{"$f":"+'Delkursusleder 1'!B8","v":"[vælg fra liste]"},{"$f":"+'Delkursusleder 1'!B10","v":"Kursusnummer findes automatisk efter du har indtastet speciale/kursusnavn"}]
[]
[]
["Dato/periode for undervisning:"]
[{"$f":"+'Delkursusleder 1'!B23","v":"2025-11-01"}]
[]
["Delkursusleder:","E-mail:"]
[{"$f":"+'Delkursusleder 1'!B14","v":0},{"$f":"'Delkursusleder 1'!B21:D21","v":0}]
[]
["Godkendelse foregår via email og sikker post - se vejledning"]
[]
["Rolle","Navn","Udgiftstype","Antal","Samlet beløb",null,"SST Opsamling","Udgiftstype","Antal timer er lagt","Undervisningsomkostning"]
["Delkursusleder 1 - adm",{"$f":"+'Delkursusleder 1'!B14","v":0},"Delkursuslederhonorar","Udfyldes ikke",{"$f":"'Delkursusleder 1'!A39","v":0},null,"Antal forelæsningstimer",{"$f":"+'Adm.ark satser'!D2","v":1},{"$f":"D23+D26+D29+D32+D35+D38+D41+D44+D47+D50+D53+D56+D59+D62+D65+D68+D71","v":0},0]
["Delkursusleder 2",{"$f":"'(Evt. delkursusleder 2)'!B6:D6","v":0},"Delkursuslederhonorar","Udfyldes ikke",{"$f":"'(Evt. delkursusleder 2)'!A22","v":0},null,"Antal diskussionstimer",{"$f":"+'Adm.ark satser'!D3","v":2},0,0]
["Sekretær",{"$f":"+Sekretær!B5","v":0},"Administrationshonorar","Udfyldes ikke",{"$f":"+Sekretær!A12","v":0},null,"Antal medhjælpertimer",{"$f":"+'Adm.ark satser'!D4","v":3},{"$f":"D25+D28+D31+D34+D37+D40+D43+D46+D49+D52+D55+D58+D61+D64+D67+D70+D73","v":0},0]
["Hovedkursusleder",{"$f":"+Hovedkursusleder!B5","v":0},"Administrationshonorar","Udfyldes ikke",{"$f":"+Hovedkursusleder!A12","v":0},null,"Delkursuslederhonorar",{"$f":"+'Adm.ark satser'!D5","v":4},0,{"$f":"E19+E20","v":0}]
["Delkursusleder 1 - evt. underviser",{"$f":"'Delkursusleder 1'!B14:D14","v":0},"Antal forlæsningstimer",{"$f":"'Delkursusleder 1'!B29","v":0},{"$f":"'Delkursusleder 1'!D29","v":0},null,"Administrationshonorar",5,0,{"$f":"E21+E22","v":0}]
["Delkursusleder 1 - evt. underviser",{"$f":"'Delkursusleder 1'!B14:D14","v":0},"Antal diskussionstimer",{"$f":"'Delkursusleder 1'!B30","v":0},{"$f":"'Delkursusleder 1'!D30","v":0},null,"I alt",null,{"$f":"SUM(I19:I23)","v":0},{"$f":"SUM(J19:J23)","v":0}]
["Delkursusleder 1 - evt. underviser",{"$f":"'Delkursusleder 1'!B14:D14","v":0},"Antal medhjælper timer",{"$f":"'Delkursusleder 1'!B31","v":0},{"$f":"'Delkursusleder 1'!D31","v":0}]
["Delkursusleder 2 - evt. underviser",{"$f":"'(Evt. delkursusleder 2)'!B6:D6","v":0},"Antal forlæsningstimer",{"$f":"'(Evt. delkursusleder 2)'!B34","v":0},{"$f":"'(Evt. delkursusleder 2)'!D34","v":0}]
["Delkursusleder 2 - evt. underviser",{"$f":"'(Evt. delkursusleder 2)'!B6:D6","v":0},"Antal diskussionstimer",{"$f":"'(Evt. delkursusleder 2)'!B35","v":0},{"$f":"'(Evt. delkursusleder 2)'!D35","v":0}]
["Delkursusleder 2 - evt. underviser",{"$f":"'(Evt. delkursusleder 2)'!B6:D6","v":0},"Antal medhjælper timer",{"$f":"'(Evt. delkursusleder 2)'!B36","v":0},{"$f":"'(Evt. delkursusleder 2)'!D36","v":0}]
["Honorarlønnet 1",{"$f":"'Honorarlønnet 1'!$B$5","v":0},"Antal forlæsningstimer",{"$f":"'Honorarlønnet 1'!$B$12","v":0},{"$f":"'Honorarlønnet 1'!$D$12","v":0}]
["Honorarlønnet 1",{"$f":"'Honorarlønnet 1'!$B$5","v":0},"Antal diskussionstimer",{"$f":"'Honorarlønnet 1'!$B$13","v":0},{"$f":"'Honorarlønnet 1'!$D$13","v":0}]
["Honorarlønnet 1",{"$f":"'Honorarlønnet 1'!$B$5","v":0},"Antal medhjælper timer",{"$f":"'Honorarlønnet 1'!$B$14","v":0},{"$f":"'Honorarlønnet 1'!$D$14","v":0}]
["Honorarlønnet 2",{"$f":"'Honorarlønnet 2'!B$5","v":0},"Antal forlæsningstimer",{"$f":"'Honorarlønnet 2'!$B$12","v":0},{"$f":"'Honorarlønnet 2'!$D$12","v":0}]
["Honorarlønnet 2",{"$f":"'Honorarlønnet 2'!$B$5","v":0},"Antal diskussionstimer",{"$f":"'Honorarlønnet 2'!$B$13","v":0},{"$f":"'Honorarlønnet 2'!$D$13","v":0}]
["Honorarlønnet 2",{"$f":"'Honorarlønnet 2'!$B$5","v":0},"Antal medhjælper timer",{"$f":"'Honorarlønnet 2'!$B$14","v":0},{"$f":"'Honorarlønnet 2'!$D$14","v":0}]
["Honorarlønnet 3",{"$f":"'Honorarlønnet 3'!$B$5","v":0},"Antal forlæsningstimer",{"$f":"'Honorarlønnet 3'!$B$12","v":0},{"$f":"'Honorarlønnet 3'!$D$12","v":0}]
["Honorarlønnet 3",{"$f":"'Honorarlønnet 3'!$B$5","v":0},"Antal diskussionstimer",{"$f":"'Honorarlønnet 3'!$B$13","v":0},{"$f":"'Honorarlønnet 3'!$D$13","v":0}]
["Honorarlønnet 3",{"$f":"'Honorarlønnet 3'!$B$5","v":0},"Antal medhjælper timer",{"$f":"'Honorarlønnet 3'!$B$14","v":0},{"$f":"'Honorarlønnet 3'!$D$14","v":0}]
["Honorarlønnet 4",{"$f":"'Honorarlønnet 4'!$B$5","v":0},"Antal forlæsningstimer",{"$f":"'Honorarlønnet 4'!$B$12","v":0},{"$f":"'Honorarlønnet 4'!$D$12","v":0}]
["Honorarlønnet 4",{"$f":"'Honorarlønnet 4'!$B$5","v":0},"Antal diskussionstimer",{"$f":"'Honorarlønnet 4'!$B$13","v":0},{"$f":"'Honorarlønnet 4'!$D$13","v":0}]
["Honorarlønnet 4",{"$f":"'Honorarlønnet 4'!$B$5","v":0},"Antal medhjælper timer",{"$f":"'Honorarlønnet 4'!$B$14","v":0},{"$f":"'Honorarlønnet 4'!$D$14","v":0}]
["Honorarlønnet 5",{"$f":"'Honorarlønnet 5'!$B$5","v":0},"Antal forlæsningstimer",{"$f":"'Honorarlønnet 5'!$B$12","v":0},{"$f":"'Honorarlønnet 5'!$D$12","v":0}]
["Honorarlønnet 5",{"$f":"'Honorarlønnet 5'!$B$5","v":0},"Antal diskussionstimer",{"$f":"'Honorarlønnet 5'!$B$13","v":0},{"$f":"'Honorarlønnet 5'!$D$13","v":0}]
["Honorarlønnet 5",{"$f":"'Honorarlønnet 5'!$B$5","v":0},"Antal medhjælper timer",{"$f":"'Honorarlønnet 5'!$B$14","v":0},{"$f":"'Honorarlønnet 5'!$D$14","v":0}]
["Honorarlønnet 6",{"$f":"'Honorarlønnet 6'!$B$5","v":0},"Antal forlæsningstimer",{"$f":"'Honorarlønnet 6'!$B$12","v":0},{"$f":"'Honorarlønnet 6'!$D$12","v":0}]
["Honorarlønnet 6",{"$f":"'Honorarlønnet 6'!$B$5","v":0},"Antal diskussionstimer",{"$f":"'Honorarlønnet 6'!$B$13","v":0},{"$f":"'Honorarlønnet 6'!$D$13","v":0}]
["Honorarlønnet 6",{"$f":"'Honorarlønnet 6'!$B$5","v":0},"Antal medhjælper timer",{"$f":"'Honorarlønnet 6'!$B$14","v":0},{"$f":"'Honorarlønnet 6'!$D$14","v":0}]
["Honorarlønnet 7",{"$f":"'Honorarlønnet 7'!$B$5","v":0},"Antal forlæsningstimer",{"$f":"'Honorarlønnet 7'!$B$12","v":0},{"$f":"'Honorarlønnet 7'!$D$12","v":0}]
["Honorarlønnet 7",{"$f":"'Honorarlønnet 7'!$B$5","v":0},"Antal diskussionstimer",{"$f":"'Honorarlønnet 7'!$B$13","v":0},{"$f":"'Honorarlønnet 7'!$D$13","v":0}]
["Honorarlønnet 7",{"$f":"'Honorarlønnet 7'!$B$5","v":0},"Antal medhjælper timer",{"$f":"'Honorarlønnet 7'!$B$14","v":0},{"$f":"'Honorarlønnet 7'!$D$14","v":0}]
["Honorarlønnet 8",{"$f":"'Honorarlønnet 8'!$B$5","v":0},"Antal forlæsningstimer",{"$f":"'Honorarlønnet 8'!$B$12","v":0},{"$f":"'Honorarlønnet 8'!$D$12","v":0}]
["Honorarlønnet 8",{"$f":"'Honorarlønnet 8'!$B$5","v":0},"Antal diskussionstimer",{"$f":"'Honorarlønnet 8'!$B$13","v":0},{"$f":"'Honorarlønnet 8'!$D$13","v":0}]
["Honorarlønnet 8",{"$f":"'Honorarlønnet 8'!$B$5","v":0},"Antal medhjælper timer",{"$f":"'Honorarlønnet 8'!$B$14","v":0},{"$f":"'Honorarlønnet 8'!$D$14","v":0}]
["Honorarlønnet 9",{"$f":"'Honorarlønnet 9'!$B$5","v":0},"Antal forlæsningstimer",{"$f":"'Honorarlønnet 9'!$B$12","v":0},{"$f":"'Honorarlønnet 9'!$D$12","v":0}]
["Honorarlønnet 9",{"$f":"'Honorarlønnet 9'!$B$5","v":0},"Antal diskussionstimer",{"$f":"'Honorarlønnet 9'!$B$13","v":0},{"$f":"'Honorarlønnet 9'!$D$13","v":0}]
["Honorarlønnet 9",{"$f":"'Honorarlønnet 9'!$B$5","v":0},"Antal medhjælper timer",{"$f":"'Honorarlønnet 9'!$B$14","v":0},{"$f":"'Honorarlønnet 9'!$D$14","v":0}]
["Honorarlønnet 10",{"$f":"'Honorarlønnet 10'!$B$5","v":0},"Antal forlæsningstimer",{"$f":"'Honorarlønnet 10'!$B$12","v":0},{"$f":"'Honorarlønnet 10'!$D$12","v":0}]
["Honorarlønnet 10",{"$f":"'Honorarlønnet 10'!$B$5","v":0},"Antal diskussionstimer",{"$f":"'Honorarlønnet 10'!$B$13","v":0},{"$f":"'Honorarlønnet 10'!$D$13","v":0}]
["Honorarlønnet 10",{"$f":"'Honorarlønnet 10'!$B$5","v":0},"Antal medhjælper timer",{"$f":"'Honorarlønnet 10'!$B$14","v":0},{"$f":"'Honorarlønnet 10'!$D$14","v":0}]
["Honorarlønnet 11",{"$f":"'Honorarlønnet 11'!$B$5","v":0},"Antal forlæsningstimer",{"$f":"'Honorarlønnet 11'!$B$12","v":0},{"$f":"'Honorarlønnet 11'!$D$12","v":0}]
["Honorarlønnet 11",{"$f":"'Honorarlønnet 11'!$B$5","v":0},"Antal diskussionstimer",{"$f":"'Honorarlønnet 11'!$B$13","v":0},{"$f":"'Honorarlønnet 11'!$D$13","v":0}]
["Honorarlønnet 11",{"$f":"'Honorarlønnet 11'!$B$5","v":0},"Antal medhjælper timer",{"$f":"'Honorarlønnet 11'!$B$14","v":0},{"$f":"'Honorarlønnet 11'!$D$14","v":0}]
["Honorarlønnet 12",{"$f":"'Honorarlønnet 12'!$B$5","v":0},"Antal forlæsningstimer",{"$f":"'Honorarlønnet 12'!$B$12","v":0},{"$f":"'Honorarlønnet 12'!$D$12","v":0}]
["Honorarlønnet 12",{"$f":"'Honorarlønnet 12'!$B$5","v":0},"Antal diskussionstimer",{"$f":"'Honorarlønnet 12'!$B$13","v":0},{"$f":"'Honorarlønnet 12'!$D$13","v":0}]
["Honorarlønnet 12",{"$f":"'Honorarlønnet 12'!$B$5","v":0},"Antal medhjælper timer",{"$f":"'Honorarlønnet 12'!$B$14","v":0},{"$f":"'Honorarlønnet 12'!$D$14","v":0}]
["Honorarlønnet 13",{"$f":"'Honorarlønnet 13'!$B$5","v":0},"Antal forlæsningstimer",{"$f":"'Honorarlønnet 13'!$B$12","v":0},{"$f":"'Honorarlønnet 13'!$D$12","v":0}]
["Honorarlønnet 13",{"$f":"'Honorarlønnet 13'!$B$5","v":0},"Antal diskussionstimer",{"$f":"'Honorarlønnet 13'!$B$13","v":0},{"$f":"'Honorarlønnet 13'!$D$13","v":0}]
["Honorarlønnet 13",{"$f":"'Honorarlønnet 13'!$B$5","v":0},"Antal medhjælper timer",{"$f":"'Honorarlønnet 13'!$B$14","v":0},{"$f":"'Honorarlønnet 13'!$D$14","v":0}]
["Honorarlønnet 14",{"$f":"'Honorarlønnet 14'!$B$5","v":0},"Antal forlæsningstimer",{"$f":"'Honorarlønnet 14'!$B$12","v":0},{"$f":"'Honorarlønnet 14'!$D$12","v":0}]
["Honorarlønnet 14",{"$f":"'Honorarlønnet 14'!$B$5","v":0},"Antal diskussionstimer",{"$f":"'Honorarlønnet 14'!$B$13","v":0},{"$f":"'Honorarlønnet 14'!$D$13","v":0}]
["Honorarlønnet 14",{"$f":"'Honorarlønnet 14'!$B$5","v":0},"Antal medhjælper timer",{"$f":"'Honorarlønnet 14'!$B$14","v":0},{"$f":"'Honorarlønnet 14'!$D$14","v":0}]
["Honorarlønnet 15",{"$f":"'Honorarlønnet 15'!$B$5","v":0},"Antal forlæsningstimer",{"$f":"'Honorarlønnet 15'!$B$12","v":0},{"$f":"'Honorarlønnet 15'!$D$12","v":0}]
["Honorarlønnet 15",{"$f":"'Honorarlønnet 15'!$B$5","v":0},"Antal diskussionstimer",{"$f":"'Honorarlønnet 15'!$B$13","v":0},{"$f":"'Honorarlønnet 15'!$D$13","v":0}]
["Honorarlønnet 15",{"$f":"'Honorarlønnet 15'!$B$5","v":0},"Antal medhjælper timer",{"$f":"'Honorarlønnet 15'!$B$14","v":0},{"$f":"'Honorarlønnet 15'!$D$14","v":0}]
["I alt",null,null,{"$f":"SUM(D23:D73)","v":0},{"$f":"SUM(E19:E73)","v":0}]

{"sheet":"Lønadm.","index":24,"n_rows":56,"n_cols":19,"rows_kept":56,"cut":false,"hidden":false,"merged":[]}
["CPR fejl?","Cpr.nr.*","Løbenr.","Dato*","Løndelsnr.*","Felt1*","Felt2","Felt3","Felt4","Kreditorkodenr.","Afvigende løndelstekst","Bogf.kreds+delregnskab (8 cifre)","Artskonto (4 cifre)","Segment 1","Segment 2","Segment 3","Segment 4","Segment 5","Segment 6"]
[{"$f":"IF(LEN('Delkursusleder 1'!$C$16)>0,\"Ja\",\"\")","v":""},{"$f":"IF('Delkursusleder 1'!$B$19=\"Ja\",\"Sender faktura\",'Delkursusleder 1'!$B$16)","v":0},null,{"$f":"+'Delkursusleder 1'!$B$23","v":"2025-11-01"},2510,{"$f":"Samlingsark!I4","v":0},null,1,null,null,{"$f":"'Delkursusleder 1'!$B$8","v":"[vælg fra liste]"},null,null,1,{"$f":"+Samlingsark!$D$4","v":"Kursusnummer findes automatisk efter du har indtastet speciale/kursusnavn"},{"$f":"IF(Samlingsark!I4>0.1,'Adm.ark satser'!$D$5,0)","v":0}]
[{"$f":"IF(LEN('Delkursusleder 1'!$C$16)>0,\"Ja\",\"\")","v":""},{"$f":"IF('Delkursusleder 1'!$B$19=\"Ja\",\"Sender faktura\",'Delkursusleder 1'!$B$16)","v":0},null,{"$f":"+'Delkursusleder 1'!$B$23","v":"2025-11-01"},2510,{"$f":"+Samlingsark!K4","v":0},null,1,null,null,{"$f":"'Delkursusleder 1'!$B$8","v":"[vælg fra liste]"},null,null,1,{"$f":"+Samlingsark!$D$4","v":"Kursusnummer findes automatisk efter du har indtastet speciale/kursusnavn"},{"$f":"IF(Samlingsark!K4>0.1,'Adm.ark satser'!$D$2,0)","v":0}]
[{"$f":"IF(LEN('Delkursusleder 1'!$C$16)>0,\"Ja\",\"\")","v":""},{"$f":"IF('Delkursusleder 1'!$B$19=\"Ja\",\"Sender faktura\",'Delkursusleder 1'!$B$16)","v":0},null,{"$f":"+'Delkursusleder 1'!$B$23","v":"2025-11-01"},2510,{"$f":"+Samlingsark!L4","v":0},null,1,null,null,{"$f":"'Delkursusleder 1'!$B$8","v":"[vælg fra liste]"},null,null,1,{"$f":"+Samlingsark!$D$4","v":"Kursusnummer findes automatisk efter du har indtastet speciale/kursusnavn"},{"$f":"IF(Samlingsark!L4>0.1,'Adm.ark satser'!$D$3,0)","v":0}]
[{"$f":"IF(LEN('Delkursusleder 1'!$C$16)>0,\"Ja\",\"\")","v":""},{"$f":"IF('Delkursusleder 1'!$B$19=\"Ja\",\"Sender faktura\",'Delkursusleder 1'!$B$16)","v":0},null,{"$f":"+'Delkursusleder 1'!$B$23","v":"2025-11-01"},2510,{"$f":"+Samlingsark!M4","v":0},null,1,null,null,{"$f":"'Delkursusleder 1'!$B$8","v":"[vælg fra liste]"},null,null,1,{"$f":"+Samlingsark!$D$4","v":"Kursusnummer findes automatisk efter du har indtastet speciale/kursusnavn"},{"$f":"IF(Samlingsark!M4>0.1,'Adm.ark satser'!$D$4,0)","v":0}]
[{"$f":"IF(LEN('(Evt. delkursusleder 2)'!$A$11)>0,\"Ja\",\"\")","v":""},{"$f":"IF('(Evt. delkursusleder 2)'!$E$8=\"Ja\",\"Sender faktura\",'(Evt. delkursusleder 2)'!$B$8)","v":0},null,{"$f":"+'Delkursusleder 1'!$B$23","v":"2025-11-01"},2510,{"$f":"Samlingsark!I5","v":0},null,1,null,null,{"$f":"'Delkursusleder 1'!$B$8","v":"[vælg fra liste]"},null,null,1,{"$f":"+Samlingsark!$D$4","v":"Kursusnummer findes automatisk efter du har indtastet speciale/kursusnavn"},{"$f":"IF(Samlingsark!I5>0.1,'Adm.ark satser'!$D$5,0)","v":0}]
[{"$f":"IF(LEN('(Evt. delkursusleder 2)'!$A$11)>0,\"Ja\",\"\")","v":""},{"$f":"IF('(Evt. delkursusleder 2)'!$E$8=\"Ja\",\"Sender faktura\",'(Evt. delkursusleder 2)'!$B$8)","v":0},null,{"$f":"+'Delkursusleder 1'!$B$23","v":"2025-11-01"},2510,{"$f":"Samlingsark!K5","v":0},null,1,null,null,{"$f":"'Delkursusleder 1'!$B$8","v":"[vælg fra liste]"},null,null,1,{"$f":"+Samlingsark!$D$4","v":"Kursusnummer findes automatisk efter du har indtastet speciale/kursusnavn"},{"$f":"IF(Samlingsark!K5>0.1,'Adm.ark satser'!$D$2,0)","v":0}]
[{"$f":"IF(LEN('(Evt. delkursusleder 2)'!$A$11)>0,\"Ja\",\"\")","v":""},{"$f":"IF('(Evt. delkursusleder 2)'!$E$8=\"Ja\",\"Sender faktura\",'(Evt. delkursusleder 2)'!$B$8)","v":0},null,{"$f":"+'Delkursusleder 1'!$B$23","v":"2025-11-01"},2510,{"$f":"Samlingsark!L5","v":0},null,1,null,null,{"$f":"'Delkursusleder 1'!$B$8","v":"[vælg fra liste]"},null,null,1,{"$f":"+Samlingsark!$D$4","v":"Kursusnummer findes automatisk efter du har indtastet speciale/kursusnavn"},{"$f":"IF(Samlingsark!L5>0.1,'Adm.ark satser'!$D$3,0)","v":0}]
[{"$f":"IF(LEN('(Evt. delkursusleder 2)'!$A$11)>0,\"Ja\",\"\")","v":""},{"$f":"IF('(Evt. delkursusleder 2)'!$E$8=\"Ja\",\"Sender faktura\",'(Evt. delkursusleder 2)'!$B$8)","v":0},null,{"$f":"+'Delkursusleder 1'!$B$23","v":"2025-11-01"},2510,{"$f":"Samlingsark!M5","v":0},null,1,null,null,{"$f":"'Delkursusleder 1'!$B$8","v":"[vælg fra liste]"},null,null,1,{"$f":"+Samlingsark!$D$4","v":"Kursusnummer findes automatisk efter du har indtastet speciale/kursusnavn"},{"$f":"IF(Samlingsark!M5>0.1,'Adm.ark satser'!$D$4,0)","v":0}]
[{"$f":"IF(LEN(Sekretær!$A$4)>0,\"Ja\",\"\")","v":""},{"$f":"IF(Sekretær!H7=\"Ja\",\"Sender faktura\",Sekretær!B7)","v":0},null,{"$f":"+'Delkursusleder 1'!$B$23","v":"2025-11-01"},2510,{"$f":"+Samlingsark!J7","v":0},null,1,null,null,{"$f":"'Delkursusleder 1'!$B$8","v":"[vælg fra liste]"},null,null,1,{"$f":"+Samlingsark!$D$4","v":"Kursusnummer findes automatisk efter du har indtastet speciale/kursusnavn"},{"$f":"IF(Samlingsark!J7>0.1,'Adm.ark satser'!$D$6,0)","v":0}]
[{"$f":"IF(LEN(Hovedkursusleder!$A$4)>0,\"Ja\",\"\")","v":""},{"$f":"IF(Hovedkursusleder!I11=\"Ja\",\"Sender faktura\",+Hovedkursusleder!B7)","v":0},null,{"$f":"+'Delkursusleder 1'!$B$23","v":"2025-11-01"},2510,{"$f":"+Samlingsark!J6","v":0},null,1,null,null,{"$f":"'Delkursusleder 1'!$B$8","v":"[vælg fra liste]"},null,null,1,{"$f":"+Samlingsark!$D$4","v":"Kursusnummer findes automatisk efter du har indtastet speciale/kursusnavn"},{"$f":"IF(Samlingsark!J6>0.1,'Adm.ark satser'!$D$6,0)","v":0}]
[{"$f":"IF(LEN('Honorarlønnet 1'!$A$4)>0,\"Ja\",\"\")","v":""},{"$f":"IF('Honorarlønnet 1'!$E$7=\"Ja\",\"Sender faktura\",+'Honorarlønnet 1'!$B$7)","v":0},null,{"$f":"+'Delkursusleder 1'!$B$23","v":"2025-11-01"},2510,{"$f":"+Samlingsark!K8","v":0},null,1,null,null,{"$f":"'Delkursusleder 1'!$B$8","v":"[vælg fra liste]"},null,null,1,{"$f":"+Samlingsark!$D$4","v":"Kursusnummer findes automatisk efter du har indtastet speciale/kursusnavn"},{"$f":"IF(Samlingsark!K8>0.1,'Adm.ark satser'!$D$2,0)","v":0}]
[{"$f":"IF(LEN('Honorarlønnet 1'!$A$4)>0,\"Ja\",\"\")","v":""},{"$f":"IF('Honorarlønnet 1'!$E$7=\"Ja\",\"Sender faktura\",+'Honorarlønnet 1'!$B$7)","v":0},null,{"$f":"+'Delkursusleder 1'!$B$23","v":"2025-11-01"},2510,{"$f":"+Samlingsark!L8","v":0},null,1,null,null,{"$f":"'Delkursusleder 1'!$B$8","v":"[vælg fra liste]"},null,null,1,{"$f":"+Samlingsark!$D$4","v":"Kursusnummer findes automatisk efter du har indtastet speciale/kursusnavn"},{"$f":"IF(Samlingsark!L8>0.1,'Adm.ark satser'!$D$3,0)","v":0}]
[{"$f":"IF(LEN('Honorarlønnet 1'!$A$4)>0,\"Ja\",\"\")","v":""},{"$f":"IF('Honorarlønnet 1'!$E$7=\"Ja\",\"Sender faktura\",+'Honorarlønnet 1'!$B$7)","v":0},null,{"$f":"+'Delkursusleder 1'!$B$23","v":"2025-11-01"},2510,{"$f":"+Samlingsark!M8","v":0},null,1,null,null,{"$f":"'Delkursusleder 1'!$B$8","v":"[vælg fra liste]"},null,null,1,{"$f":"+Samlingsark!$D$4","v":"Kursusnummer findes automatisk efter du har indtastet speciale/kursusnavn"},{"$f":"IF(Samlingsark!M8>0.1,'Adm.ark satser'!$D$4,0)","v":0}]
[{"$f":"IF(LEN('Honorarlønnet 2'!$A$4)>0,\"Ja\",\"\")","v":""},{"$f":"IF('Honorarlønnet 2'!$E$7=\"Ja\",\"Sender faktura\",+'Honorarlønnet 2'!$B$7)","v":0},null,{"$f":"+'Delkursusleder 1'!$B$23","v":"2025-11-01"},2510,{"$f":"+Samlingsark!K9","v":0},null,1,null,null,{"$f":"'Delkursusleder 1'!$B$8","v":"[vælg fra liste]"},null,null,1,{"$f":"+Samlingsark!$D$4","v":"Kursusnummer findes automatisk efter du har indtastet speciale/kursusnavn"},{"$f":"IF(Samlingsark!K9>0.1,'Adm.ark satser'!$D$2,0)","v":0}]
[{"$f":"IF(LEN('Honorarlønnet 2'!$A$4)>0,\"Ja\",\"\")","v":""},{"$f":"IF('Honorarlønnet 2'!$E$7=\"Ja\",\"Sender faktura\",+'Honorarlønnet 2'!$B$7)","v":0},null,{"$f":"+'Delkursusleder 1'!$B$23","v":"2025-11-01"},2510,{"$f":"+Samlingsark!L9","v":0},null,1,null,null,{"$f":"'Delkursusleder 1'!$B$8","v":"[vælg fra liste]"},null,null,1,{"$f":"+Samlingsark!$D$4","v":"Kursusnummer findes automatisk efter du har indtastet speciale/kursusnavn"},{"$f":"IF(Samlingsark!L9>0.1,'Adm.ark satser'!$D$3,0)","v":0}]
[{"$f":"IF(LEN('Honorarlønnet 2'!$A$4)>0,\"Ja\",\"\")","v":""},{"$f":"IF('Honorarlønnet 2'!$E$7=\"Ja\",\"Sender faktura\",+'Honorarlønnet 2'!$B$7)","v":0},null,{"$f":"+'Delkursusleder 1'!$B$23","v":"2025-11-01"},2510,{"$f":"+Samlingsark!M9","v":0},null,1,null,null,{"$f":"'Delkursusleder 1'!$B$8","v":"[vælg fra liste]"},null,null,1,{"$f":"+Samlingsark!$D$4","v":"Kursusnummer findes automatisk efter du har indtastet speciale/kursusnavn"},{"$f":"IF(Samlingsark!M9>0.1,'Adm.ark satser'!$D$4,0)","v":0}]
[{"$f":"IF(LEN('Honorarlønnet 3'!$A$4)>0,\"Ja\",\"\")","v":""},{"$f":"IF('Honorarlønnet 3'!$E$7=\"Ja\",\"Sender faktura\",+'Honorarlønnet 3'!$B$7)","v":0},null,{"$f":"+'Delkursusleder 1'!$B$23","v":"2025-11-01"},2510,{"$f":"+Samlingsark!K10","v":0},null,1,null,null,{"$f":"'Delkursusleder 1'!$B$8","v":"[vælg fra liste]"},null,null,1,{"$f":"+Samlingsark!$D$4","v":"Kursusnummer findes automatisk efter du har indtastet speciale/kursusnavn"},{"$f":"IF(Samlingsark!K10>0.1,'Adm.ark satser'!$D$2,0)","v":0}]
[{"$f":"IF(LEN('Honorarlønnet 3'!$A$4)>0,\"Ja\",\"\")","v":""},{"$f":"IF('Honorarlønnet 3'!$E$7=\"Ja\",\"Sender faktura\",+'Honorarlønnet 3'!$B$7)","v":0},null,{"$f":"+'Delkursusleder 1'!$B$23","v":"2025-11-01"},2510,{"$f":"+Samlingsark!L10","v":0},null,1,null,null,{"$f":"'Delkursusleder 1'!$B$8","v":"[vælg fra liste]"},null,null,1,{"$f":"+Samlingsark!$D$4","v":"Kursusnummer findes automatisk efter du har indtastet speciale/kursusnavn"},{"$f":"IF(Samlingsark!L10>0.1,'Adm.ark satser'!$D$3,0)","v":0}]
[{"$f":"IF(LEN('Honorarlønnet 3'!$A$4)>0,\"Ja\",\"\")","v":""},{"$f":"IF('Honorarlønnet 3'!$E$7=\"Ja\",\"Sender faktura\",+'Honorarlønnet 3'!$B$7)","v":0},null,{"$f":"+'Delkursusleder 1'!$B$23","v":"2025-11-01"},2510,{"$f":"+Samlingsark!M10","v":0},null,1,null,null,{"$f":"'Delkursusleder 1'!$B$8","v":"[vælg fra liste]"},null,null,1,{"$f":"+Samlingsark!$D$4","v":"Kursusnummer findes automatisk efter du har indtastet speciale/kursusnavn"},{"$f":"IF(Samlingsark!M10>0.1,'Adm.ark satser'!$D$4,0)","v":0}]
[{"$f":"IF(LEN('Honorarlønnet 4'!$A$4)>0,\"Ja\",\"\")","v":""},{"$f":"IF('Honorarlønnet 4'!$E$7=\"Ja\",\"Sender faktura\",+'Honorarlønnet 4'!$B$7)","v":0},null,{"$f":"+'Delkursusleder 1'!$B$23","v":"2025-11-01"},2510,{"$f":"+Samlingsark!K11","v":0},null,1,null,null,{"$f":"'Delkursusleder 1'!$B$8","v":"[vælg fra liste]"},null,null,1,{"$f":"+Samlingsark!$D$4","v":"Kursusnummer findes automatisk efter du har indtastet speciale/kursusnavn"},{"$f":"IF(Samlingsark!K11>0.1,'Adm.ark satser'!$D$2,0)","v":0}]
[{"$f":"IF(LEN('Honorarlønnet 4'!$A$4)>0,\"Ja\",\"\")","v":""},{"$f":"IF('Honorarlønnet 4'!$E$7=\"Ja\",\"Sender faktura\",+'Honorarlønnet 4'!$B$7)","v":0},null,{"$f":"+'Delkursusleder 1'!$B$23","v":"2025-11-01"},2510,{"$f":"+Samlingsark!L11","v":0},null,1,null,null,{"$f":"'Delkursusleder 1'!$B$8","v":"[vælg fra liste]"},null,null,1,{"$f":"+Samlingsark!$D$4","v":"Kursusnummer findes automatisk efter du har indtastet speciale/kursusnavn"},{"$f":"IF(Samlingsark!L11>0.1,'Adm.ark satser'!$D$3,0)","v":0}]
[{"$f":"IF(LEN('Honorarlønnet 4'!$A$4)>0,\"Ja\",\"\")","v":""},{"$f":"IF('Honorarlønnet 4'!$E$7=\"Ja\",\"Sender faktura\",+'Honorarlønnet 4'!$B$7)","v":0},null,{"$f":"+'Delkursusleder 1'!$B$23","v":"2025-11-01"},2510,{"$f":"+Samlingsark!M11","v":0},null,1,null,null,{"$f":"'Delkursusleder 1'!$B$8","v":"[vælg fra liste]"},null,null,1,{"$f":"+Samlingsark!$D$4","v":"Kursusnummer findes automatisk efter du har indtastet speciale/kursusnavn"},{"$f":"IF(Samlingsark!M11>0.1,'Adm.ark satser'!$D$4,0)","v":0}]
[{"$f":"IF(LEN('Honorarlønnet 5'!$A$4)>0,\"Ja\",\"\")","v":""},{"$f":"IF('Honorarlønnet 5'!$E$7=\"Ja\",\"Sender faktura\",+'Honorarlønnet 5'!$B$7)","v":0},null,{"$f":"+'Delkursusleder 1'!$B$23","v":"2025-11-01"},2510,{"$f":"+Samlingsark!K12","v":0},null,1,null,null,{"$f":"'Delkursusleder 1'!$B$8","v":"[vælg fra liste]"},null,null,1,{"$f":"+Samlingsark!$D$4","v":"Kursusnummer findes automatisk efter du har indtastet speciale/kursusnavn"},{"$f":"IF(Samlingsark!K12>0.1,'Adm.ark satser'!$D$2,0)","v":0}]
[{"$f":"IF(LEN('Honorarlønnet 5'!$A$4)>0,\"Ja\",\"\")","v":""},{"$f":"IF('Honorarlønnet 5'!$E$7=\"Ja\",\"Sender faktura\",+'Honorarlønnet 5'!$B$7)","v":0},null,{"$f":"+'Delkursusleder 1'!$B$23","v":"2025-11-01"},2510,{"$f":"+Samlingsark!L12","v":0},null,1,null,null,{"$f":"'Delkursusleder 1'!$B$8","v":"[vælg fra liste]"},null,null,1,{"$f":"+Samlingsark!$D$4","v":"Kursusnummer findes automatisk efter du har indtastet speciale/kursusnavn"},{"$f":"IF(Samlingsark!L12>0.1,'Adm.ark satser'!$D$3,0)","v":0}]
[{"$f":"IF(LEN('Honorarlønnet 5'!$A$4)>0,\"Ja\",\"\")","v":""},{"$f":"IF('Honorarlønnet 5'!$E$7=\"Ja\",\"Sender faktura\",+'Honorarlønnet 5'!$B$7)","v":0},null,{"$f":"+'Delkursusleder 1'!$B$23","v":"2025-11-01"},2510,{"$f":"+Samlingsark!M12","v":0},null,1,null,null,{"$f":"'Delkursusleder 1'!$B$8","v":"[vælg fra liste]"},null,null,1,{"$f":"+Samlingsark!$D$4","v":"Kursusnummer findes automatisk efter du har indtastet speciale/kursusnavn"},{"$f":"IF(Samlingsark!M12>0.1,'Adm.ark satser'!$D$4,0)","v":0}]
[{"$f":"IF(LEN('Honorarlønnet 6'!$A$4)>0,\"Ja\",\"\")","v":""},{"$f":"IF('Honorarlønnet 6'!$E$7=\"Ja\",\"Sender faktura\",+'Honorarlønnet 6'!$B$7)","v":0},null,{"$f":"+'Delkursusleder 1'!$B$23","v":"2025-11-01"},2510,{"$f":"+Samlingsark!K13","v":0},null,1,null,null,{"$f":"'Delkursusleder 1'!$B$8","v":"[vælg fra liste]"},null,null,1,{"$f":"+Samlingsark!$D$4","v":"Kursusnummer findes automatisk efter du har indtastet speciale/kursusnavn"},{"$f":"IF(Samlingsark!K13>0.1,'Adm.ark satser'!$D$2,0)","v":0}]
[{"$f":"IF(LEN('Honorarlønnet 6'!$A$4)>0,\"Ja\",\"\")","v":""},{"$f":"IF('Honorarlønnet 6'!$E$7=\"Ja\",\"Sender faktura\",+'Honorarlønnet 6'!$B$7)","v":0},null,{"$f":"+'Delkursusleder 1'!$B$23","v":"2025-11-01"},2510,{"$f":"+Samlingsark!L13","v":0},null,1,null,null,{"$f":"'Delkursusleder 1'!$B$8","v":"[vælg fra liste]"},null,null,1,{"$f":"+Samlingsark!$D$4","v":"Kursusnummer findes automatisk efter du har indtastet speciale/kursusnavn"},{"$f":"IF(Samlingsark!L13>0.1,'Adm.ark satser'!$D$3,0)","v":0}]
[{"$f":"IF(LEN('Honorarlønnet 6'!$A$4)>0,\"Ja\",\"\")","v":""},{"$f":"IF('Honorarlønnet 6'!$E$7=\"Ja\",\"Sender faktura\",+'Honorarlønnet 6'!$B$7)","v":0},null,{"$f":"+'Delkursusleder 1'!$B$23","v":"2025-11-01"},2510,{"$f":"+Samlingsark!M13","v":0},null,1,null,null,{"$f":"'Delkursusleder 1'!$B$8","v":"[vælg fra liste]"},null,null,1,{"$f":"+Samlingsark!$D$4","v":"Kursusnummer findes automatisk efter du har indtastet speciale/kursusnavn"},{"$f":"IF(Samlingsark!M13>0.1,'Adm.ark satser'!$D$4,0)","v":0}]
[{"$f":"IF(LEN('Honorarlønnet 7'!$A$4)>0,\"Ja\",\"\")","v":""},{"$f":"IF('Honorarlønnet 7'!$E$7=\"Ja\",\"Sender faktura\",+'Honorarlønnet 7'!$B$7)","v":0},null,{"$f":"+'Delkursusleder 1'!$B$23","v":"2025-11-01"},2510,{"$f":"+Samlingsark!K14","v":0},null,1,null,null,{"$f":"'Delkursusleder 1'!$B$8","v":"[vælg fra liste]"},null,null,1,{"$f":"+Samlingsark!$D$4","v":"Kursusnummer findes automatisk efter du har indtastet speciale/kursusnavn"},{"$f":"IF(Samlingsark!K14>0.1,'Adm.ark satser'!$D$2,0)","v":0}]
[{"$f":"IF(LEN('Honorarlønnet 7'!$A$4)>0,\"Ja\",\"\")","v":""},{"$f":"IF('Honorarlønnet 7'!$E$7=\"Ja\",\"Sender faktura\",+'Honorarlønnet 7'!$B$7)","v":0},null,{"$f":"+'Delkursusleder 1'!$B$23","v":"2025-11-01"},2510,{"$f":"+Samlingsark!L14","v":0},null,1,null,null,{"$f":"'Delkursusleder 1'!$B$8","v":"[vælg fra liste]"},null,null,1,{"$f":"+Samlingsark!$D$4","v":"Kursusnummer findes automatisk efter du har indtastet speciale/kursusnavn"},{"$f":"IF(Samlingsark!L14>0.1,'Adm.ark satser'!$D$3,0)","v":0}]
[{"$f":"IF(LEN('Honorarlønnet 7'!$A$4)>0,\"Ja\",\"\")","v":""},{"$f":"IF('Honorarlønnet 7'!$E$7=\"Ja\",\"Sender faktura\",+'Honorarlønnet 7'!$B$7)","v":0},null,{"$f":"+'Delkursusleder 1'!$B$23","v":"2025-11-01"},2510,{"$f":"+Samlingsark!M14","v":0},null,1,null,null,{"$f":"'Delkursusleder 1'!$B$8","v":"[vælg fra liste]"},null,null,1,{"$f":"+Samlingsark!$D$4","v":"Kursusnummer findes automatisk efter du har indtastet speciale/kursusnavn"},{"$f":"IF(Samlingsark!M14>0.1,'Adm.ark satser'!$D$4,0)","v":0}]
[{"$f":"IF(LEN('Honorarlønnet 8'!$A$4)>0,\"Ja\",\"\")","v":""},{"$f":"IF('Honorarlønnet 8'!$E$7=\"Ja\",\"Sender faktura\",+'Honorarlønnet 8'!$B$7)","v":0},null,{"$f":"+'Delkursusleder 1'!$B$23","v":"2025-11-01"},2510,{"$f":"+Samlingsark!K15","v":0},null,1,null,null,{"$f":"'Delkursusleder 1'!$B$8","v":"[vælg fra liste]"},null,null,1,{"$f":"+Samlingsark!$D$4","v":"Kursusnummer findes automatisk efter du har indtastet speciale/kursusnavn"},{"$f":"IF(Samlingsark!K15>0.1,'Adm.ark satser'!$D$2,0)","v":0}]
[{"$f":"IF(LEN('Honorarlønnet 8'!$A$4)>0,\"Ja\",\"\")","v":""},{"$f":"IF('Honorarlønnet 8'!$E$7=\"Ja\",\"Sender faktura\",+'Honorarlønnet 8'!$B$7)","v":0},null,{"$f":"+'Delkursusleder 1'!$B$23","v":"2025-11-01"},2510,{"$f":"+Samlingsark!L15","v":0},null,1,null,null,{"$f":"'Delkursusleder 1'!$B$8","v":"[vælg fra liste]"},null,null,1,{"$f":"+Samlingsark!$D$4","v":"Kursusnummer findes automatisk efter du har indtastet speciale/kursusnavn"},{"$f":"IF(Samlingsark!L15>0.1,'Adm.ark satser'!$D$3,0)","v":0}]
[{"$f":"IF(LEN('Honorarlønnet 8'!$A$4)>0,\"Ja\",\"\")","v":""},{"$f":"IF('Honorarlønnet 8'!$E$7=\"Ja\",\"Sender faktura\",+'Honorarlønnet 8'!$B$7)","v":0},null,{"$f":"+'Delkursusleder 1'!$B$23","v":"2025-11-01"},2510,{"$f":"+Samlingsark!M15","v":0},null,1,null,null,{"$f":"'Delkursusleder 1'!$B$8","v":"[vælg fra liste]"},null,null,1,{"$f":"+Samlingsark!$D$4","v":"Kursusnummer findes automatisk efter du har indtastet speciale/kursusnavn"},{"$f":"IF(Samlingsark!M15>0.1,'Adm.ark satser'!$D$4,0)","v":0}]
[{"$f":"IF(LEN('Honorarlønnet 9'!$A$4)>0,\"Ja\",\"\")","v":""},{"$f":"IF('Honorarlønnet 9'!$E$7=\"Ja\",\"Sender faktura\",+'Honorarlønnet 9'!$B$7)","v":0},null,{"$f":"+'Delkursusleder 1'!$B$23","v":"2025-11-01"},2510,{"$f":"+Samlingsark!K16","v":0},null,1,null,null,{"$f":"'Delkursusleder 1'!$B$8","v":"[vælg fra liste]"},null,null,1,{"$f":"+Samlingsark!$D$4","v":"Kursusnummer findes automatisk efter du har indtastet speciale/kursusnavn"},{"$f":"IF(Samlingsark!K16>0.1,'Adm.ark satser'!$D$2,0)","v":0}]
[{"$f":"IF(LEN('Honorarlønnet 9'!$A$4)>0,\"Ja\",\"\")","v":""},{"$f":"IF('Honorarlønnet 9'!$E$7=\"Ja\",\"Sender faktura\",+'Honorarlønnet 9'!$B$7)","v":0},null,{"$f":"+'Delkursusleder 1'!$B$23","v":"2025-11-01"},2510,{"$f":"+Samlingsark!L16","v":0},null,1,null,null,{"$f":"'Delkursusleder 1'!$B$8","v":"[vælg fra liste]"},null,null,1,{"$f":"+Samlingsark!$D$4","v":"Kursusnummer findes automatisk efter du har indtastet speciale/kursusnavn"},{"$f":"IF(Samlingsark!L16>0.1,'Adm.ark satser'!$D$3,0)","v":0}]
[{"$f":"IF(LEN('Honorarlønnet 9'!$A$4)>0,\"Ja\",\"\")","v":""},{"$f":"IF('Honorarlønnet 9'!$E$7=\"Ja\",\"Sender faktura\",+'Honorarlønnet 9'!$B$7)","v":0},null,{"$f":"+'Delkursusleder 1'!$B$23","v":"2025-11-01"},2510,{"$f":"+Samlingsark!M16","v":0},null,1,null,null,{"$f":"'Delkursusleder 1'!$B$8","v":"[vælg fra liste]"},null,null,1,{"$f":"+Samlingsark!$D$4","v":"Kursusnummer findes automatisk efter du har indtastet speciale/kursusnavn"},{"$f":"IF(Samlingsark!M16>0.1,'Adm.ark satser'!$D$4,0)","v":0}]
[{"$f":"IF(LEN('Honorarlønnet 10'!$A$4)>0,\"Ja\",\"\")","v":""},{"$f":"IF('Honorarlønnet 10'!$E$7=\"Ja\",\"Sender faktura\",+'Honorarlønnet 10'!$B$7)","v":0},null,{"$f":"+'Delkursusleder 1'!$B$23","v":"2025-11-01"},2510,{"$f":"+Samlingsark!K17","v":0},null,1,null,null,{"$f":"'Delkursusleder 1'!$B$8","v":"[vælg fra liste]"},null,null,1,{"$f":"+Samlingsark!$D$4","v":"Kursusnummer findes automatisk efter du har indtastet speciale/kursusnavn"},{"$f":"IF(Samlingsark!K17>0.1,'Adm.ark satser'!$D$2,0)","v":0}]
[{"$f":"IF(LEN('Honorarlønnet 10'!$A$4)>0,\"Ja\",\"\")","v":""},{"$f":"IF('Honorarlønnet 10'!$E$7=\"Ja\",\"Sender faktura\",+'Honorarlønnet 10'!$B$7)","v":0},null,{"$f":"+'Delkursusleder 1'!$B$23","v":"2025-11-01"},2510,{"$f":"+Samlingsark!L17","v":0},null,1,null,null,{"$f":"'Delkursusleder 1'!$B$8","v":"[vælg fra liste]"},null,null,1,{"$f":"+Samlingsark!$D$4","v":"Kursusnummer findes automatisk efter du har indtastet speciale/kursusnavn"},{"$f":"IF(Samlingsark!L17>0.1,'Adm.ark satser'!$D$3,0)","v":0}]
[{"$f":"IF(LEN('Honorarlønnet 10'!$A$4)>0,\"Ja\",\"\")","v":""},{"$f":"IF('Honorarlønnet 10'!$E$7=\"Ja\",\"Sender faktura\",+'Honorarlønnet 10'!$B$7)","v":0},null,{"$f":"+'Delkursusleder 1'!$B$23","v":"2025-11-01"},2510,{"$f":"+Samlingsark!M17","v":0},null,1,null,null,{"$f":"'Delkursusleder 1'!$B$8","v":"[vælg fra liste]"},null,null,1,{"$f":"+Samlingsark!$D$4","v":"Kursusnummer findes automatisk efter du har indtastet speciale/kursusnavn"},{"$f":"IF(Samlingsark!M17>0.1,'Adm.ark satser'!$D$4,0)","v":0}]
[{"$f":"IF(LEN('Honorarlønnet 11'!$A$4)>0,\"Ja\",\"\")","v":""},{"$f":"IF('Honorarlønnet 11'!$E$7=\"Ja\",\"Sender faktura\",+'Honorarlønnet 11'!$B$7)","v":0},null,{"$f":"+'Delkursusleder 1'!$B$23","v":"2025-11-01"},2510,{"$f":"+Samlingsark!K18","v":0},null,1,null,null,{"$f":"'Delkursusleder 1'!$B$8","v":"[vælg fra liste]"},null,null,1,{"$f":"+Samlingsark!$D$4","v":"Kursusnummer findes automatisk efter du har indtastet speciale/kursusnavn"},{"$f":"IF(Samlingsark!K18>0.1,'Adm.ark satser'!$D$2,0)","v":0}]
[{"$f":"IF(LEN('Honorarlønnet 11'!$A$4)>0,\"Ja\",\"\")","v":""},{"$f":"IF('Honorarlønnet 11'!$E$7=\"Ja\",\"Sender faktura\",+'Honorarlønnet 11'!$B$7)","v":0},null,{"$f":"+'Delkursusleder 1'!$B$23","v":"2025-11-01"},2510,{"$f":"+Samlingsark!L18","v":0},null,1,null,null,{"$f":"'Delkursusleder 1'!$B$8","v":"[vælg fra liste]"},null,null,1,{"$f":"+Samlingsark!$D$4","v":"Kursusnummer findes automatisk efter du har indtastet speciale/kursusnavn"},{"$f":"IF(Samlingsark!L18>0.1,'Adm.ark satser'!$D$3,0)","v":0}]
[{"$f":"IF(LEN('Honorarlønnet 11'!$A$4)>0,\"Ja\",\"\")","v":""},{"$f":"IF('Honorarlønnet 11'!$E$7=\"Ja\",\"Sender faktura\",+'Honorarlønnet 11'!$B$7)","v":0},null,{"$f":"+'Delkursusleder 1'!$B$23","v":"2025-11-01"},2510,{"$f":"+Samlingsark!M18","v":0},null,1,null,null,{"$f":"'Delkursusleder 1'!$B$8","v":"[vælg fra liste]"},null,null,1,{"$f":"+Samlingsark!$D$4","v":"Kursusnummer findes automatisk efter du har indtastet speciale/kursusnavn"},{"$f":"IF(Samlingsark!M18>0.1,'Adm.ark satser'!$D$4,0)","v":0}]
[{"$f":"IF(LEN('Honorarlønnet 12'!$A$4)>0,\"Ja\",\"\")","v":""},{"$f":"IF('Honorarlønnet 12'!$E$7=\"Ja\",\"Sender faktura\",+'Honorarlønnet 12'!$B$7)","v":0},null,{"$f":"+'Delkursusleder 1'!$B$23","v":"2025-11-01"},2510,{"$f":"+Samlingsark!K19","v":0},null,1,null,null,{"$f":"'Delkursusleder 1'!$B$8","v":"[vælg fra liste]"},null,null,1,{"$f":"+Samlingsark!$D$4","v":"Kursusnummer findes automatisk efter du har indtastet speciale/kursusnavn"},{"$f":"IF(Samlingsark!K19>0.1,'Adm.ark satser'!$D$2,0)","v":0}]
[{"$f":"IF(LEN('Honorarlønnet 12'!$A$4)>0,\"Ja\",\"\")","v":""},{"$f":"IF('Honorarlønnet 12'!$E$7=\"Ja\",\"Sender faktura\",+'Honorarlønnet 12'!$B$7)","v":0},null,{"$f":"+'Delkursusleder 1'!$B$23","v":"2025-11-01"},2510,{"$f":"+Samlingsark!L19","v":0},null,1,null,null,{"$f":"'Delkursusleder 1'!$B$8","v":"[vælg fra liste]"},null,null,1,{"$f":"+Samlingsark!$D$4","v":"Kursusnummer findes automatisk efter du har indtastet speciale/kursusnavn"},{"$f":"IF(Samlingsark!L19>0.1,'Adm.ark satser'!$D$3,0)","v":0}]
[{"$f":"IF(LEN('Honorarlønnet 12'!$A$4)>0,\"Ja\",\"\")","v":""},{"$f":"IF('Honorarlønnet 12'!$E$7=\"Ja\",\"Sender faktura\",+'Honorarlønnet 12'!$B$7)","v":0},null,{"$f":"+'Delkursusleder 1'!$B$23","v":"2025-11-01"},2510,{"$f":"+Samlingsark!M19","v":0},null,1,null,null,{"$f":"'Delkursusleder 1'!$B$8","v":"[vælg fra liste]"},null,null,1,{"$f":"+Samlingsark!$D$4","v":"Kursusnummer findes automatisk efter du har indtastet speciale/kursusnavn"},{"$f":"IF(Samlingsark!M19>0.1,'Adm.ark satser'!$D$4,0)","v":0}]
[{"$f":"IF(LEN('Honorarlønnet 13'!$A$4)>0,\"Ja\",\"\")","v":""},{"$f":"IF('Honorarlønnet 13'!$E$7=\"Ja\",\"Sender faktura\",+'Honorarlønnet 13'!$B$7)","v":0},null,{"$f":"+'Delkursusleder 1'!$B$23","v":"2025-11-01"},2510,{"$f":"+Samlingsark!K20","v":0},null,1,null,null,{"$f":"'Delkursusleder 1'!$B$8","v":"[vælg fra liste]"},null,null,1,{"$f":"+Samlingsark!$D$4","v":"Kursusnummer findes automatisk efter du har indtastet speciale/kursusnavn"},{"$f":"IF(Samlingsark!K20>0.1,'Adm.ark satser'!$D$2,0)","v":0}]
[{"$f":"IF(LEN('Honorarlønnet 13'!$A$4)>0,\"Ja\",\"\")","v":""},{"$f":"IF('Honorarlønnet 13'!$E$7=\"Ja\",\"Sender faktura\",+'Honorarlønnet 13'!$B$7)","v":0},null,{"$f":"+'Delkursusleder 1'!$B$23","v":"2025-11-01"},2510,{"$f":"+Samlingsark!L20","v":0},null,1,null,null,{"$f":"'Delkursusleder 1'!$B$8","v":"[vælg fra liste]"},null,null,1,{"$f":"+Samlingsark!$D$4","v":"Kursusnummer findes automatisk efter du har indtastet speciale/kursusnavn"},{"$f":"IF(Samlingsark!L20>0.1,'Adm.ark satser'!$D$3,0)","v":0}]
[{"$f":"IF(LEN('Honorarlønnet 13'!$A$4)>0,\"Ja\",\"\")","v":""},{"$f":"IF('Honorarlønnet 13'!$E$7=\"Ja\",\"Sender faktura\",+'Honorarlønnet 13'!$B$7)","v":0},null,{"$f":"+'Delkursusleder 1'!$B$23","v":"2025-11-01"},2510,{"$f":"+Samlingsark!M20","v":0},null,1,null,null,{"$f":"'Delkursusleder 1'!$B$8","v":"[vælg fra liste]"},null,null,1,{"$f":"+Samlingsark!$D$4","v":"Kursusnummer findes automatisk efter du har indtastet speciale/kursusnavn"},{"$f":"IF(Samlingsark!M20>0.1,'Adm.ark satser'!$D$4,0)","v":0}]
[{"$f":"IF(LEN('Honorarlønnet 14'!$A$4)>0,\"Ja\",\"\")","v":""},{"$f":"IF('Honorarlønnet 14'!$E$7=\"Ja\",\"Sender faktura\",+'Honorarlønnet 14'!$B$7)","v":0},null,{"$f":"+'Delkursusleder 1'!$B$23","v":"2025-11-01"},2510,{"$f":"+Samlingsark!K21","v":0},null,1,null,null,{"$f":"'Delkursusleder 1'!$B$8","v":"[vælg fra liste]"},null,null,1,{"$f":"+Samlingsark!$D$4","v":"Kursusnummer findes automatisk efter du har indtastet speciale/kursusnavn"},{"$f":"IF(Samlingsark!K21>0.1,'Adm.ark satser'!$D$2,0)","v":0}]
[{"$f":"IF(LEN('Honorarlønnet 14'!$A$4)>0,\"Ja\",\"\")","v":""},{"$f":"IF('Honorarlønnet 14'!$E$7=\"Ja\",\"Sender faktura\",+'Honorarlønnet 14'!$B$7)","v":0},null,{"$f":"+'Delkursusleder 1'!$B$23","v":"2025-11-01"},2510,{"$f":"+Samlingsark!L21","v":0},null,1,null,null,{"$f":"'Delkursusleder 1'!$B$8","v":"[vælg fra liste]"},null,null,1,{"$f":"+Samlingsark!$D$4","v":"Kursusnummer findes automatisk efter du har indtastet speciale/kursusnavn"},{"$f":"IF(Samlingsark!L21>0.1,'Adm.ark satser'!$D$3,0)","v":0}]
[{"$f":"IF(LEN('Honorarlønnet 14'!$A$4)>0,\"Ja\",\"\")","v":""},{"$f":"IF('Honorarlønnet 14'!$E$7=\"Ja\",\"Sender faktura\",+'Honorarlønnet 14'!$B$7)","v":0},null,{"$f":"+'Delkursusleder 1'!$B$23","v":"2025-11-01"},2510,{"$f":"+Samlingsark!M21","v":0},null,1,null,null,{"$f":"'Delkursusleder 1'!$B$8","v":"[vælg fra liste]"},null,null,1,{"$f":"+Samlingsark!$D$4","v":"Kursusnummer findes automatisk efter du har indtastet speciale/kursusnavn"},{"$f":"IF(Samlingsark!M21>0.1,'Adm.ark satser'!$D$4,0)","v":0}]
[{"$f":"IF(LEN('Honorarlønnet 15'!$A$4)>0,\"Ja\",\"\")","v":""},{"$f":"IF('Honorarlønnet 15'!$E$7=\"Ja\",\"Sender faktura\",+'Honorarlønnet 15'!$B$7)","v":0},null,{"$f":"+'Delkursusleder 1'!$B$23","v":"2025-11-01"},2510,{"$f":"+Samlingsark!K22","v":0},null,1,null,null,{"$f":"'Delkursusleder 1'!$B$8","v":"[vælg fra liste]"},null,null,1,{"$f":"+Samlingsark!$D$4","v":"Kursusnummer findes automatisk efter du har indtastet speciale/kursusnavn"},{"$f":"IF(Samlingsark!K22>0.1,'Adm.ark satser'!$D$2,0)","v":0}]
[{"$f":"IF(LEN('Honorarlønnet 15'!$A$4)>0,\"Ja\",\"\")","v":""},{"$f":"IF('Honorarlønnet 15'!$E$7=\"Ja\",\"Sender faktura\",+'Honorarlønnet 15'!$B$7)","v":0},null,{"$f":"+'Delkursusleder 1'!$B$23","v":"2025-11-01"},2510,{"$f":"+Samlingsark!L22","v":0},null,1,null,null,{"$f":"'Delkursusleder 1'!$B$8","v":"[vælg fra liste]"},null,null,1,{"$f":"+Samlingsark!$D$4","v":"Kursusnummer findes automatisk efter du har indtastet speciale/kursusnavn"},{"$f":"IF(Samlingsark!L22>0.1,'Adm.ark satser'!$D$3,0)","v":0}]
[{"$f":"IF(LEN('Honorarlønnet 15'!$A$4)>0,\"Ja\",\"\")","v":""},{"$f":"IF('Honorarlønnet 15'!$E$7=\"Ja\",\"Sender faktura\",+'Honorarlønnet 15'!$B$7)","v":0},null,{"$f":"+'Delkursusleder 1'!$B$23","v":"2025-11-01"},2510,{"$f":"+Samlingsark!M22","v":0},null,1,null,null,{"$f":"'Delkursusleder 1'!$B$8","v":"[vælg fra liste]"},null,null,1,{"$f":"+Samlingsark!$D$4","v":"Kursusnummer findes automatisk efter du har indtastet speciale/kursusnavn"},{"$f":"IF(Samlingsark!M22>0.1,'Adm.ark satser'!$D$4,0)","v":0}]

{"sheet":"Lønadm_backup","index":25,"n_rows":56,"n_cols":20,"rows_kept":56,"cut":false,"hidden":true,"merged":[]}
["CPR fejl?","Cpr.nr.*","Løbenr.","Dato*","Løndelsnr.*","Felt1*","Felt2","Felt3","Felt4","Kreditorkodenr.","Afvigende løndelstekst","Bogf.kreds+delregnskab (8 cifre)","Artskonto (4 cifre)","Segment 1","Segment 2","Segment 3","Segment 4","Segment 5","Segment 6","Navn"]
[{"$f":"IF(LEN('Delkursusleder 1'!$C$16)>0,\"Ja\",\"\")","v":""},{"$f":"IF('Delkursusleder 1'!$B$19=\"Ja\",\"Sender faktura\",'Delkursusleder 1'!$B$16)","v":0},null,{"$f":"+'Delkursusleder 1'!$B$23","v":"2025-11-01"},2510,{"$f":"Samlingsark!I4","v":0},null,1,null,null,{"$f":"'Delkursusleder 1'!$B$8","v":"[vælg fra liste]"},null,null,1,{"$f":"+Samlingsark!$D$4","v":"Kursusnummer findes automatisk efter du har indtastet speciale/kursusnavn"},{"$f":"IF(Samlingsark!I4>0.1,'Adm.ark satser'!$D$5,0)","v":0},null,null,null,"Delkursusleder 1"]
[{"$f":"IF(LEN('Delkursusleder 1'!$C$16)>0,\"Ja\",\"\")","v":""},{"$f":"IF('Delkursusleder 1'!$B$19=\"Ja\",\"Sender faktura\",'Delkursusleder 1'!$B$16)","v":0},null,{"$f":"+'Delkursusleder 1'!$B$23","v":"2025-11-01"},2510,{"$f":"+Samlingsark!K4","v":0},null,1,null,null,{"$f":"'Delkursusleder 1'!$B$8","v":"[vælg fra liste]"},null,null,1,{"$f":"+Samlingsark!$D$4","v":"Kursusnummer findes automatisk efter du har indtastet speciale/kursusnavn"},{"$f":"IF(Samlingsark!K4>0.1,'Adm.ark satser'!$D$2,0)","v":0},null,null,null,"Delkursusleder 1"]
[{"$f":"IF(LEN('Delkursusleder 1'!$C$16)>0,\"Ja\",\"\")","v":""},{"$f":"IF('Delkursusleder 1'!$B$19=\"Ja\",\"Sender faktura\",'Delkursusleder 1'!$B$16)","v":0},null,{"$f":"+'Delkursusleder 1'!$B$23","v":"2025-11-01"},2510,{"$f":"+Samlingsark!L4","v":0},null,1,null,null,{"$f":"'Delkursusleder 1'!$B$8","v":"[vælg fra liste]"},null,null,1,{"$f":"+Samlingsark!$D$4","v":"Kursusnummer findes automatisk efter du har indtastet speciale/kursusnavn"},{"$f":"IF(Samlingsark!L4>0.1,'Adm.ark satser'!$D$3,0)","v":0},null,null,null,"Delkursusleder 1"]
[{"$f":"IF(LEN('Delkursusleder 1'!$C$16)>0,\"Ja\",\"\")","v":""},{"$f":"IF('Delkursusleder 1'!$B$19=\"Ja\",\"Sender faktura\",'Delkursusleder 1'!$B$16)","v":0},null,{"$f":"+'Delkursusleder 1'!$B$23","v":"2025-11-01"},2510,{"$f":"+Samlingsark!M4","v":0},null,1,null,null,{"$f":"'Delkursusleder 1'!$B$8","v":"[vælg fra liste]"},null,null,1,{"$f":"+Samlingsark!$D$4","v":"Kursusnummer findes automatisk efter du har indtastet speciale/kursusnavn"},{"$f":"IF(Samlingsark!M4>0.1,'Adm.ark satser'!$D$4,0)","v":0},null,null,null,"Delkursusleder 1"]
[{"$f":"IF(LEN('(Evt. delkursusleder 2)'!$A$11)>0,\"Ja\",\"\")","v":""},{"$f":"IF('(Evt. delkursusleder 2)'!$E$8=\"Ja\",\"Sender faktura\",'(Evt. delkursusleder 2)'!$B$8)","v":0},null,{"$f":"+'Delkursusleder 1'!$B$23","v":"2025-11-01"},2510,{"$f":"Samlingsark!I5","v":0},null,1,null,null,{"$f":"'Delkursusleder 1'!$B$8","v":"[vælg fra liste]"},null,null,1,{"$f":"+Samlingsark!$D$4","v":"Kursusnummer findes automatisk efter du har indtastet speciale/kursusnavn"},{"$f":"IF(Samlingsark!I5>0.1,'Adm.ark satser'!$D$5,0)","v":0},null,null,null,"Evt. delkursusleder 2"]
[{"$f":"IF(LEN('(Evt. delkursusleder 2)'!$A$11)>0,\"Ja\",\"\")","v":""},{"$f":"IF('(Evt. delkursusleder 2)'!$E$8=\"Ja\",\"Sender faktura\",'(Evt. delkursusleder 2)'!$B$8)","v":0},null,{"$f":"+'Delkursusleder 1'!$B$23","v":"2025-11-01"},2510,{"$f":"Samlingsark!K5","v":0},null,1,null,null,{"$f":"'Delkursusleder 1'!$B$8","v":"[vælg fra liste]"},null,null,1,{"$f":"+Samlingsark!$D$4","v":"Kursusnummer findes automatisk efter du har indtastet speciale/kursusnavn"},{"$f":"IF(Samlingsark!K5>0.1,'Adm.ark satser'!$D$2,0)","v":0},null,null,null,"Evt. delkursusleder 2"]
[{"$f":"IF(LEN('(Evt. delkursusleder 2)'!$A$11)>0,\"Ja\",\"\")","v":""},{"$f":"IF('(Evt. delkursusleder 2)'!$E$8=\"Ja\",\"Sender faktura\",'(Evt. delkursusleder 2)'!$B$8)","v":0},null,{"$f":"+'Delkursusleder 1'!$B$23","v":"2025-11-01"},2510,{"$f":"Samlingsark!L5","v":0},null,1,null,null,{"$f":"'Delkursusleder 1'!$B$8","v":"[vælg fra liste]"},null,null,1,{"$f":"+Samlingsark!$D$4","v":"Kursusnummer findes automatisk efter du har indtastet speciale/kursusnavn"},{"$f":"IF(Samlingsark!L5>0.1,'Adm.ark satser'!$D$3,0)","v":0},null,null,null,"Evt. delkursusleder 2"]
[{"$f":"IF(LEN('(Evt. delkursusleder 2)'!$A$11)>0,\"Ja\",\"\")","v":""},{"$f":"IF('(Evt. delkursusleder 2)'!$E$8=\"Ja\",\"Sender faktura\",'(Evt. delkursusleder 2)'!$B$8)","v":0},null,{"$f":"+'Delkursusleder 1'!$B$23","v":"2025-11-01"},2510,{"$f":"Samlingsark!M5","v":0},null,1,null,null,{"$f":"'Delkursusleder 1'!$B$8","v":"[vælg fra liste]"},null,null,1,{"$f":"+Samlingsark!$D$4","v":"Kursusnummer findes automatisk efter du har indtastet speciale/kursusnavn"},{"$f":"IF(Samlingsark!M5>0.1,'Adm.ark satser'!$D$4,0)","v":0},null,null,null,"Evt. delkursusleder 2"]
[{"$f":"IF(LEN(Sekretær!$A$4)>0,\"Ja\",\"\")","v":""},{"$f":"IF(Sekretær!H7=\"Ja\",\"Sender faktura\",Sekretær!B7)","v":0},null,{"$f":"+'Delkursusleder 1'!$B$23","v":"2025-11-01"},2510,{"$f":"+Samlingsark!J7","v":0},null,1,null,null,{"$f":"'Delkursusleder 1'!$B$8","v":"[vælg fra liste]"},null,null,1,{"$f":"+Samlingsark!$D$4","v":"Kursusnummer findes automatisk efter du har indtastet speciale/kursusnavn"},{"$f":"IF(Samlingsark!J7>0.1,'Adm.ark satser'!$D$6,0)","v":0},null,null,null,"Sekretær"]
[{"$f":"IF(LEN(Hovedkursusleder!$A$4)>0,\"Ja\",\"\")","v":""},{"$f":"IF(Hovedkursusleder!I11=\"Ja\",\"Sender faktura\",+Hovedkursusleder!B7)","v":0},null,{"$f":"+'Delkursusleder 1'!$B$23","v":"2025-11-01"},2510,{"$f":"+Samlingsark!J6","v":0},null,1,null,null,{"$f":"'Delkursusleder 1'!$B$8","v":"[vælg fra liste]"},null,null,1,{"$f":"+Samlingsark!$D$4","v":"Kursusnummer findes automatisk efter du har indtastet speciale/kursusnavn"},{"$f":"IF(Samlingsark!J6>0.1,'Adm.ark satser'!$D$6,0)","v":0},null,null,null,"Hovedkursusleder"]
[{"$f":"IF(LEN('Honorarlønnet 1'!$A$4)>0,\"Ja\",\"\")","v":""},{"$f":"IF('Honorarlønnet 1'!$E$7=\"Ja\",\"Sender faktura\",+'Honorarlønnet 1'!$B$7)","v":0},null,{"$f":"+'Delkursusleder 1'!$B$23","v":"2025-11-01"},2510,{"$f":"+Samlingsark!K8","v":0},null,1,null,null,{"$f":"'Delkursusleder 1'!$B$8","v":"[vælg fra liste]"},null,null,1,{"$f":"+Samlingsark!$D$4","v":"Kursusnummer findes automatisk efter du har indtastet speciale/kursusnavn"},{"$f":"IF(Samlingsark!K8>0.1,'Adm.ark satser'!$D$2,0)","v":0},null,null,null,{"$f":"'Honorarlønnet 1'!$B$5","v":0}]
[{"$f":"IF(LEN('Honorarlønnet 1'!$A$4)>0,\"Ja\",\"\")","v":""},{"$f":"IF('Honorarlønnet 1'!$E$7=\"Ja\",\"Sender faktura\",+'Honorarlønnet 1'!$B$7)","v":0},null,{"$f":"+'Delkursusleder 1'!$B$23","v":"2025-11-01"},2510,{"$f":"+Samlingsark!L8","v":0},null,1,null,null,{"$f":"'Delkursusleder 1'!$B$8","v":"[vælg fra liste]"},null,null,1,{"$f":"+Samlingsark!$D$4","v":"Kursusnummer findes automatisk efter du har indtastet speciale/kursusnavn"},{"$f":"IF(Samlingsark!L8>0.1,'Adm.ark satser'!$D$3,0)","v":0},null,null,null,{"$f":"'Honorarlønnet 1'!$B$5","v":0}]
[{"$f":"IF(LEN('Honorarlønnet 1'!$A$4)>0,\"Ja\",\"\")","v":""},{"$f":"IF('Honorarlønnet 1'!$E$7=\"Ja\",\"Sender faktura\",+'Honorarlønnet 1'!$B$7)","v":0},null,{"$f":"+'Delkursusleder 1'!$B$23","v":"2025-11-01"},2510,{"$f":"+Samlingsark!M8","v":0},null,1,null,null,{"$f":"'Delkursusleder 1'!$B$8","v":"[vælg fra liste]"},null,null,1,{"$f":"+Samlingsark!$D$4","v":"Kursusnummer findes automatisk efter du har indtastet speciale/kursusnavn"},{"$f":"IF(Samlingsark!M8>0.1,'Adm.ark satser'!$D$4,0)","v":0},null,null,null,{"$f":"'Honorarlønnet 1'!$B$5","v":0}]
[{"$f":"IF(LEN('Honorarlønnet 2'!$A$4)>0,\"Ja\",\"\")","v":""},{"$f":"IF('Honorarlønnet 2'!$E$7=\"Ja\",\"Sender faktura\",+'Honorarlønnet 2'!$B$7)","v":0},null,{"$f":"+'Delkursusleder 1'!$B$23","v":"2025-11-01"},2510,{"$f":"+Samlingsark!K9","v":0},null,1,null,null,{"$f":"'Delkursusleder 1'!$B$8","v":"[vælg fra liste]"},null,null,1,{"$f":"+Samlingsark!$D$4","v":"Kursusnummer findes automatisk efter du har indtastet speciale/kursusnavn"},{"$f":"IF(Samlingsark!K9>0.1,'Adm.ark satser'!$D$2,0)","v":0},null,null,null,{"$f":"'Honorarlønnet 2'!$B$5","v":0}]
[{"$f":"IF(LEN('Honorarlønnet 2'!$A$4)>0,\"Ja\",\"\")","v":""},{"$f":"IF('Honorarlønnet 2'!$E$7=\"Ja\",\"Sender faktura\",+'Honorarlønnet 2'!$B$7)","v":0},null,{"$f":"+'Delkursusleder 1'!$B$23","v":"2025-11-01"},2510,{"$f":"+Samlingsark!L9","v":0},null,1,null,null,{"$f":"'Delkursusleder 1'!$B$8","v":"[vælg fra liste]"},null,null,1,{"$f":"+Samlingsark!$D$4","v":"Kursusnummer findes automatisk efter du har indtastet speciale/kursusnavn"},{"$f":"IF(Samlingsark!L9>0.1,'Adm.ark satser'!$D$3,0)","v":0},null,null,null,{"$f":"'Honorarlønnet 2'!$B$5","v":0}]
[{"$f":"IF(LEN('Honorarlønnet 2'!$A$4)>0,\"Ja\",\"\")","v":""},{"$f":"IF('Honorarlønnet 2'!$E$7=\"Ja\",\"Sender faktura\",+'Honorarlønnet 2'!$B$7)","v":0},null,{"$f":"+'Delkursusleder 1'!$B$23","v":"2025-11-01"},2510,{"$f":"+Samlingsark!M9","v":0},null,1,null,null,{"$f":"'Delkursusleder 1'!$B$8","v":"[vælg fra liste]"},null,null,1,{"$f":"+Samlingsark!$D$4","v":"Kursusnummer findes automatisk efter du har indtastet speciale/kursusnavn"},{"$f":"IF(Samlingsark!M9>0.1,'Adm.ark satser'!$D$4,0)","v":0},null,null,null,{"$f":"'Honorarlønnet 2'!$B$5","v":0}]
[{"$f":"IF(LEN('Honorarlønnet 3'!$A$4)>0,\"Ja\",\"\")","v":""},{"$f":"IF('Honorarlønnet 3'!$E$7=\"Ja\",\"Sender faktura\",+'Honorarlønnet 3'!$B$7)","v":0},null,{"$f":"+'Delkursusleder 1'!$B$23","v":"2025-11-01"},2510,{"$f":"+Samlingsark!K10","v":0},null,1,null,null,{"$f":"'Delkursusleder 1'!$B$8","v":"[vælg fra liste]"},null,null,1,{"$f":"+Samlingsark!$D$4","v":"Kursusnummer findes automatisk efter du har indtastet speciale/kursusnavn"},{"$f":"IF(Samlingsark!K10>0.1,'Adm.ark satser'!$D$2,0)","v":0},null,null,null,{"$f":"'Honorarlønnet 3'!$B$5","v":0}]
[{"$f":"IF(LEN('Honorarlønnet 3'!$A$4)>0,\"Ja\",\"\")","v":""},{"$f":"IF('Honorarlønnet 3'!$E$7=\"Ja\",\"Sender faktura\",+'Honorarlønnet 3'!$B$7)","v":0},null,{"$f":"+'Delkursusleder 1'!$B$23","v":"2025-11-01"},2510,{"$f":"+Samlingsark!L10","v":0},null,1,null,null,{"$f":"'Delkursusleder 1'!$B$8","v":"[vælg fra liste]"},null,null,1,{"$f":"+Samlingsark!$D$4","v":"Kursusnummer findes automatisk efter du har indtastet speciale/kursusnavn"},{"$f":"IF(Samlingsark!L10>0.1,'Adm.ark satser'!$D$3,0)","v":0},null,null,null,{"$f":"'Honorarlønnet 3'!$B$5","v":0}]
[{"$f":"IF(LEN('Honorarlønnet 3'!$A$4)>0,\"Ja\",\"\")","v":""},{"$f":"IF('Honorarlønnet 3'!$E$7=\"Ja\",\"Sender faktura\",+'Honorarlønnet 3'!$B$7)","v":0},null,{"$f":"+'Delkursusleder 1'!$B$23","v":"2025-11-01"},2510,{"$f":"+Samlingsark!M10","v":0},null,1,null,null,{"$f":"'Delkursusleder 1'!$B$8","v":"[vælg fra liste]"},null,null,1,{"$f":"+Samlingsark!$D$4","v":"Kursusnummer findes automatisk efter du har indtastet speciale/kursusnavn"},{"$f":"IF(Samlingsark!M10>0.1,'Adm.ark satser'!$D$4,0)","v":0},null,null,null,{"$f":"'Honorarlønnet 3'!$B$5","v":0}]
[{"$f":"IF(LEN('Honorarlønnet 4'!$A$4)>0,\"Ja\",\"\")","v":""},{"$f":"IF('Honorarlønnet 4'!$E$7=\"Ja\",\"Sender faktura\",+'Honorarlønnet 4'!$B$7)","v":0},null,{"$f":"+'Delkursusleder 1'!$B$23","v":"2025-11-01"},2510,{"$f":"+Samlingsark!K11","v":0},null,1,null,null,{"$f":"'Delkursusleder 1'!$B$8","v":"[vælg fra liste]"},null,null,1,{"$f":"+Samlingsark!$D$4","v":"Kursusnummer findes automatisk efter du har indtastet speciale/kursusnavn"},{"$f":"IF(Samlingsark!K11>0.1,'Adm.ark satser'!$D$2,0)","v":0},null,null,null,{"$f":"'Honorarlønnet 4'!$B$5","v":0}]
[{"$f":"IF(LEN('Honorarlønnet 4'!$A$4)>0,\"Ja\",\"\")","v":""},{"$f":"IF('Honorarlønnet 4'!$E$7=\"Ja\",\"Sender faktura\",+'Honorarlønnet 4'!$B$7)","v":0},null,{"$f":"+'Delkursusleder 1'!$B$23","v":"2025-11-01"},2510,{"$f":"+Samlingsark!L11","v":0},null,1,null,null,{"$f":"'Delkursusleder 1'!$B$8","v":"[vælg fra liste]"},null,null,1,{"$f":"+Samlingsark!$D$4","v":"Kursusnummer findes automatisk efter du har indtastet speciale/kursusnavn"},{"$f":"IF(Samlingsark!L11>0.1,'Adm.ark satser'!$D$3,0)","v":0},null,null,null,{"$f":"'Honorarlønnet 4'!$B$5","v":0}]
[{"$f":"IF(LEN('Honorarlønnet 4'!$A$4)>0,\"Ja\",\"\")","v":""},{"$f":"IF('Honorarlønnet 4'!$E$7=\"Ja\",\"Sender faktura\",+'Honorarlønnet 4'!$B$7)","v":0},null,{"$f":"+'Delkursusleder 1'!$B$23","v":"2025-11-01"},2510,{"$f":"+Samlingsark!M11","v":0},null,1,null,null,{"$f":"'Delkursusleder 1'!$B$8","v":"[vælg fra liste]"},null,null,1,{"$f":"+Samlingsark!$D$4","v":"Kursusnummer findes automatisk efter du har indtastet speciale/kursusnavn"},{"$f":"IF(Samlingsark!M11>0.1,'Adm.ark satser'!$D$4,0)","v":0},null,null,null,{"$f":"'Honorarlønnet 4'!$B$5","v":0}]
[{"$f":"IF(LEN('Honorarlønnet 5'!$A$4)>0,\"Ja\",\"\")","v":""},{"$f":"IF('Honorarlønnet 5'!$E$7=\"Ja\",\"Sender faktura\",+'Honorarlønnet 5'!$B$7)","v":0},null,{"$f":"+'Delkursusleder 1'!$B$23","v":"2025-11-01"},2510,{"$f":"+Samlingsark!K12","v":0},null,1,null,null,{"$f":"'Delkursusleder 1'!$B$8","v":"[vælg fra liste]"},null,null,1,{"$f":"+Samlingsark!$D$4","v":"Kursusnummer findes automatisk efter du har indtastet speciale/kursusnavn"},{"$f":"IF(Samlingsark!K12>0.1,'Adm.ark satser'!$D$2,0)","v":0},null,null,null,{"$f":"'Honorarlønnet 5'!$B$5","v":0}]
[{"$f":"IF(LEN('Honorarlønnet 5'!$A$4)>0,\"Ja\",\"\")","v":""},{"$f":"IF('Honorarlønnet 5'!$E$7=\"Ja\",\"Sender faktura\",+'Honorarlønnet 5'!$B$7)","v":0},null,{"$f":"+'Delkursusleder 1'!$B$23","v":"2025-11-01"},2510,{"$f":"+Samlingsark!L12","v":0},null,1,null,null,{"$f":"'Delkursusleder 1'!$B$8","v":"[vælg fra liste]"},null,null,1,{"$f":"+Samlingsark!$D$4","v":"Kursusnummer findes automatisk efter du har indtastet speciale/kursusnavn"},{"$f":"IF(Samlingsark!L12>0.1,'Adm.ark satser'!$D$3,0)","v":0},null,null,null,{"$f":"'Honorarlønnet 5'!$B$5","v":0}]
[{"$f":"IF(LEN('Honorarlønnet 5'!$A$4)>0,\"Ja\",\"\")","v":""},{"$f":"IF('Honorarlønnet 5'!$E$7=\"Ja\",\"Sender faktura\",+'Honorarlønnet 5'!$B$7)","v":0},null,{"$f":"+'Delkursusleder 1'!$B$23","v":"2025-11-01"},2510,{"$f":"+Samlingsark!M12","v":0},null,1,null,null,{"$f":"'Delkursusleder 1'!$B$8","v":"[vælg fra liste]"},null,null,1,{"$f":"+Samlingsark!$D$4","v":"Kursusnummer findes automatisk efter du har indtastet speciale/kursusnavn"},{"$f":"IF(Samlingsark!M12>0.1,'Adm.ark satser'!$D$4,0)","v":0},null,null,null,{"$f":"'Honorarlønnet 5'!$B$5","v":0}]
[{"$f":"IF(LEN('Honorarlønnet 6'!$A$4)>0,\"Ja\",\"\")","v":""},{"$f":"IF('Honorarlønnet 6'!$E$7=\"Ja\",\"Sender faktura\",+'Honorarlønnet 6'!$B$7)","v":0},null,{"$f":"+'Delkursusleder 1'!$B$23","v":"2025-11-01"},2510,{"$f":"+Samlingsark!K13","v":0},null,1,null,null,{"$f":"'Delkursusleder 1'!$B$8","v":"[vælg fra liste]"},null,null,1,{"$f":"+Samlingsark!$D$4","v":"Kursusnummer findes automatisk efter du har indtastet speciale/kursusnavn"},{"$f":"IF(Samlingsark!K13>0.1,'Adm.ark satser'!$D$2,0)","v":0},null,null,null,{"$f":"'Honorarlønnet 6'!$B$5","v":0}]
[{"$f":"IF(LEN('Honorarlønnet 6'!$A$4)>0,\"Ja\",\"\")","v":""},{"$f":"IF('Honorarlønnet 6'!$E$7=\"Ja\",\"Sender faktura\",+'Honorarlønnet 6'!$B$7)","v":0},null,{"$f":"+'Delkursusleder 1'!$B$23","v":"2025-11-01"},2510,{"$f":"+Samlingsark!L13","v":0},null,1,null,null,{"$f":"'Delkursusleder 1'!$B$8","v":"[vælg fra liste]"},null,null,1,{"$f":"+Samlingsark!$D$4","v":"Kursusnummer findes automatisk efter du har indtastet speciale/kursusnavn"},{"$f":"IF(Samlingsark!L13>0.1,'Adm.ark satser'!$D$3,0)","v":0},null,null,null,{"$f":"'Honorarlønnet 6'!$B$5","v":0}]
[{"$f":"IF(LEN('Honorarlønnet 6'!$A$4)>0,\"Ja\",\"\")","v":""},{"$f":"IF('Honorarlønnet 6'!$E$7=\"Ja\",\"Sender faktura\",+'Honorarlønnet 6'!$B$7)","v":0},null,{"$f":"+'Delkursusleder 1'!$B$23","v":"2025-11-01"},2510,{"$f":"+Samlingsark!M13","v":0},null,1,null,null,{"$f":"'Delkursusleder 1'!$B$8","v":"[vælg fra liste]"},null,null,1,{"$f":"+Samlingsark!$D$4","v":"Kursusnummer findes automatisk efter du har indtastet speciale/kursusnavn"},{"$f":"IF(Samlingsark!M13>0.1,'Adm.ark satser'!$D$4,0)","v":0},null,null,null,{"$f":"'Honorarlønnet 6'!$B$5","v":0}]
[{"$f":"IF(LEN('Honorarlønnet 7'!$A$4)>0,\"Ja\",\"\")","v":""},{"$f":"IF('Honorarlønnet 7'!$E$7=\"Ja\",\"Sender faktura\",+'Honorarlønnet 7'!$B$7)","v":0},null,{"$f":"+'Delkursusleder 1'!$B$23","v":"2025-11-01"},2510,{"$f":"+Samlingsark!K14","v":0},null,1,null,null,{"$f":"'Delkursusleder 1'!$B$8","v":"[vælg fra liste]"},null,null,1,{"$f":"+Samlingsark!$D$4","v":"Kursusnummer findes automatisk efter du har indtastet speciale/kursusnavn"},{"$f":"IF(Samlingsark!K14>0.1,'Adm.ark satser'!$D$2,0)","v":0},null,null,null,{"$f":"'Honorarlønnet 7'!$B$5","v":0}]
[{"$f":"IF(LEN('Honorarlønnet 7'!$A$4)>0,\"Ja\",\"\")","v":""},{"$f":"IF('Honorarlønnet 7'!$E$7=\"Ja\",\"Sender faktura\",+'Honorarlønnet 7'!$B$7)","v":0},null,{"$f":"+'Delkursusleder 1'!$B$23","v":"2025-11-01"},2510,{"$f":"+Samlingsark!L14","v":0},null,1,null,null,{"$f":"'Delkursusleder 1'!$B$8","v":"[vælg fra liste]"},null,null,1,{"$f":"+Samlingsark!$D$4","v":"Kursusnummer findes automatisk efter du har indtastet speciale/kursusnavn"},{"$f":"IF(Samlingsark!L14>0.1,'Adm.ark satser'!$D$3,0)","v":0},null,null,null,{"$f":"'Honorarlønnet 7'!$B$5","v":0}]
[{"$f":"IF(LEN('Honorarlønnet 7'!$A$4)>0,\"Ja\",\"\")","v":""},{"$f":"IF('Honorarlønnet 7'!$E$7=\"Ja\",\"Sender faktura\",+'Honorarlønnet 7'!$B$7)","v":0},null,{"$f":"+'Delkursusleder 1'!$B$23","v":"2025-11-01"},2510,{"$f":"+Samlingsark!M14","v":0},null,1,null,null,{"$f":"'Delkursusleder 1'!$B$8","v":"[vælg fra liste]"},null,null,1,{"$f":"+Samlingsark!$D$4","v":"Kursusnummer findes automatisk efter du har indtastet speciale/kursusnavn"},{"$f":"IF(Samlingsark!M14>0.1,'Adm.ark satser'!$D$4,0)","v":0},null,null,null,{"$f":"'Honorarlønnet 7'!$B$5","v":0}]
[{"$f":"IF(LEN('Honorarlønnet 8'!$A$4)>0,\"Ja\",\"\")","v":""},{"$f":"IF('Honorarlønnet 8'!$E$7=\"Ja\",\"Sender faktura\",+'Honorarlønnet 8'!$B$7)","v":0},null,{"$f":"+'Delkursusleder 1'!$B$23","v":"2025-11-01"},2510,{"$f":"+Samlingsark!K15","v":0},null,1,null,null,{"$f":"'Delkursusleder 1'!$B$8","v":"[vælg fra liste]"},null,null,1,{"$f":"+Samlingsark!$D$4","v":"Kursusnummer findes automatisk efter du har indtastet speciale/kursusnavn"},{"$f":"IF(Samlingsark!K15>0.1,'Adm.ark satser'!$D$2,0)","v":0},null,null,null,{"$f":"'Honorarlønnet 8'!$B$5","v":0}]
[{"$f":"IF(LEN('Honorarlønnet 8'!$A$4)>0,\"Ja\",\"\")","v":""},{"$f":"IF('Honorarlønnet 8'!$E$7=\"Ja\",\"Sender faktura\",+'Honorarlønnet 8'!$B$7)","v":0},null,{"$f":"+'Delkursusleder 1'!$B$23","v":"2025-11-01"},2510,{"$f":"+Samlingsark!L15","v":0},null,1,null,null,{"$f":"'Delkursusleder 1'!$B$8","v":"[vælg fra liste]"},null,null,1,{"$f":"+Samlingsark!$D$4","v":"Kursusnummer findes automatisk efter du har indtastet speciale/kursusnavn"},{"$f":"IF(Samlingsark!L15>0.1,'Adm.ark satser'!$D$3,0)","v":0},null,null,null,{"$f":"'Honorarlønnet 8'!$B$5","v":0}]
[{"$f":"IF(LEN('Honorarlønnet 8'!$A$4)>0,\"Ja\",\"\")","v":""},{"$f":"IF('Honorarlønnet 8'!$E$7=\"Ja\",\"Sender faktura\",+'Honorarlønnet 8'!$B$7)","v":0},null,{"$f":"+'Delkursusleder 1'!$B$23","v":"2025-11-01"},2510,{"$f":"+Samlingsark!M15","v":0},null,1,null,null,{"$f":"'Delkursusleder 1'!$B$8","v":"[vælg fra liste]"},null,null,1,{"$f":"+Samlingsark!$D$4","v":"Kursusnummer findes automatisk efter du har indtastet speciale/kursusnavn"},{"$f":"IF(Samlingsark!M15>0.1,'Adm.ark satser'!$D$4,0)","v":0},null,null,null,{"$f":"'Honorarlønnet 8'!$B$5","v":0}]
[{"$f":"IF(LEN('Honorarlønnet 9'!$A$4)>0,\"Ja\",\"\")","v":""},{"$f":"IF('Honorarlønnet 9'!$E$7=\"Ja\",\"Sender faktura\",+'Honorarlønnet 9'!$B$7)","v":0},null,{"$f":"+'Delkursusleder 1'!$B$23","v":"2025-11-01"},2510,{"$f":"+Samlingsark!K16","v":0},null,1,null,null,{"$f":"'Delkursusleder 1'!$B$8","v":"[vælg fra liste]"},null,null,1,{"$f":"+Samlingsark!$D$4","v":"Kursusnummer findes automatisk efter du har indtastet speciale/kursusnavn"},{"$f":"IF(Samlingsark!K16>0.1,'Adm.ark satser'!$D$2,0)","v":0},null,null,null,{"$f":"'Honorarlønnet 9'!$B$5","v":0}]
[{"$f":"IF(LEN('Honorarlønnet 9'!$A$4)>0,\"Ja\",\"\")","v":""},{"$f":"IF('Honorarlønnet 9'!$E$7=\"Ja\",\"Sender faktura\",+'Honorarlønnet 9'!$B$7)","v":0},null,{"$f":"+'Delkursusleder 1'!$B$23","v":"2025-11-01"},2510,{"$f":"+Samlingsark!L16","v":0},null,1,null,null,{"$f":"'Delkursusleder 1'!$B$8","v":"[vælg fra liste]"},null,null,1,{"$f":"+Samlingsark!$D$4","v":"Kursusnummer findes automatisk efter du har indtastet speciale/kursusnavn"},{"$f":"IF(Samlingsark!L16>0.1,'Adm.ark satser'!$D$3,0)","v":0},null,null,null,{"$f":"'Honorarlønnet 9'!$B$5","v":0}]
[{"$f":"IF(LEN('Honorarlønnet 9'!$A$4)>0,\"Ja\",\"\")","v":""},{"$f":"IF('Honorarlønnet 9'!$E$7=\"Ja\",\"Sender faktura\",+'Honorarlønnet 9'!$B$7)","v":0},null,{"$f":"+'Delkursusleder 1'!$B$23","v":"2025-11-01"},2510,{"$f":"+Samlingsark!M16","v":0},null,1,null,null,{"$f":"'Delkursusleder 1'!$B$8","v":"[vælg fra liste]"},null,null,1,{"$f":"+Samlingsark!$D$4","v":"Kursusnummer findes automatisk efter du har indtastet speciale/kursusnavn"},{"$f":"IF(Samlingsark!M16>0.1,'Adm.ark satser'!$D$4,0)","v":0},null,null,null,{"$f":"'Honorarlønnet 9'!$B$5","v":0}]
[{"$f":"IF(LEN('Honorarlønnet 10'!$A$4)>0,\"Ja\",\"\")","v":""},{"$f":"IF('Honorarlønnet 10'!$E$7=\"Ja\",\"Sender faktura\",+'Honorarlønnet 10'!$B$7)","v":0},null,{"$f":"+'Delkursusleder 1'!$B$23","v":"2025-11-01"},2510,{"$f":"+Samlingsark!K17","v":0},null,1,null,null,{"$f":"'Delkursusleder 1'!$B$8","v":"[vælg fra liste]"},null,null,1,{"$f":"+Samlingsark!$D$4","v":"Kursusnummer findes automatisk efter du har indtastet speciale/kursusnavn"},{"$f":"IF(Samlingsark!K17>0.1,'Adm.ark satser'!$D$2,0)","v":0},null,null,null,{"$f":"'Honorarlønnet 10'!$B$5","v":0}]
[{"$f":"IF(LEN('Honorarlønnet 10'!$A$4)>0,\"Ja\",\"\")","v":""},{"$f":"IF('Honorarlønnet 10'!$E$7=\"Ja\",\"Sender faktura\",+'Honorarlønnet 10'!$B$7)","v":0},null,{"$f":"+'Delkursusleder 1'!$B$23","v":"2025-11-01"},2510,{"$f":"+Samlingsark!L17","v":0},null,1,null,null,{"$f":"'Delkursusleder 1'!$B$8","v":"[vælg fra liste]"},null,null,1,{"$f":"+Samlingsark!$D$4","v":"Kursusnummer findes automatisk efter du har indtastet speciale/kursusnavn"},{"$f":"IF(Samlingsark!L17>0.1,'Adm.ark satser'!$D$3,0)","v":0},null,null,null,{"$f":"'Honorarlønnet 10'!$B$5","v":0}]
[{"$f":"IF(LEN('Honorarlønnet 10'!$A$4)>0,\"Ja\",\"\")","v":""},{"$f":"IF('Honorarlønnet 10'!$E$7=\"Ja\",\"Sender faktura\",+'Honorarlønnet 10'!$B$7)","v":0},null,{"$f":"+'Delkursusleder 1'!$B$23","v":"2025-11-01"},2510,{"$f":"+Samlingsark!M17","v":0},null,1,null,null,{"$f":"'Delkursusleder 1'!$B$8","v":"[vælg fra liste]"},null,null,1,{"$f":"+Samlingsark!$D$4","v":"Kursusnummer findes automatisk efter du har indtastet speciale/kursusnavn"},{"$f":"IF(Samlingsark!M17>0.1,'Adm.ark satser'!$D$4,0)","v":0},null,null,null,{"$f":"'Honorarlønnet 10'!$B$5","v":0}]
[{"$f":"IF(LEN('Honorarlønnet 11'!$A$4)>0,\"Ja\",\"\")","v":""},{"$f":"IF('Honorarlønnet 11'!$E$7=\"Ja\",\"Sender faktura\",+'Honorarlønnet 11'!$B$7)","v":0},null,{"$f":"+'Delkursusleder 1'!$B$23","v":"2025-11-01"},2510,{"$f":"+Samlingsark!K18","v":0},null,1,null,null,{"$f":"'Delkursusleder 1'!$B$8","v":"[vælg fra liste]"},null,null,1,{"$f":"+Samlingsark!$D$4","v":"Kursusnummer findes automatisk efter du har indtastet speciale/kursusnavn"},{"$f":"IF(Samlingsark!K18>0.1,'Adm.ark satser'!$D$2,0)","v":0},null,null,null,{"$f":"'Honorarlønnet 11'!$B$5","v":0}]
[{"$f":"IF(LEN('Honorarlønnet 11'!$A$4)>0,\"Ja\",\"\")","v":""},{"$f":"IF('Honorarlønnet 11'!$E$7=\"Ja\",\"Sender faktura\",+'Honorarlønnet 11'!$B$7)","v":0},null,{"$f":"+'Delkursusleder 1'!$B$23","v":"2025-11-01"},2510,{"$f":"+Samlingsark!L18","v":0},null,1,null,null,{"$f":"'Delkursusleder 1'!$B$8","v":"[vælg fra liste]"},null,null,1,{"$f":"+Samlingsark!$D$4","v":"Kursusnummer findes automatisk efter du har indtastet speciale/kursusnavn"},{"$f":"IF(Samlingsark!L18>0.1,'Adm.ark satser'!$D$3,0)","v":0},null,null,null,{"$f":"'Honorarlønnet 11'!$B$5","v":0}]
[{"$f":"IF(LEN('Honorarlønnet 11'!$A$4)>0,\"Ja\",\"\")","v":""},{"$f":"IF('Honorarlønnet 11'!$E$7=\"Ja\",\"Sender faktura\",+'Honorarlønnet 11'!$B$7)","v":0},null,{"$f":"+'Delkursusleder 1'!$B$23","v":"2025-11-01"},2510,{"$f":"+Samlingsark!M18","v":0},null,1,null,null,{"$f":"'Delkursusleder 1'!$B$8","v":"[vælg fra liste]"},null,null,1,{"$f":"+Samlingsark!$D$4","v":"Kursusnummer findes automatisk efter du har indtastet speciale/kursusnavn"},{"$f":"IF(Samlingsark!M18>0.1,'Adm.ark satser'!$D$4,0)","v":0},null,null,null,{"$f":"'Honorarlønnet 11'!$B$5","v":0}]
[{"$f":"IF(LEN('Honorarlønnet 12'!$A$4)>0,\"Ja\",\"\")","v":""},{"$f":"IF('Honorarlønnet 12'!$E$7=\"Ja\",\"Sender faktura\",+'Honorarlønnet 12'!$B$7)","v":0},null,{"$f":"+'Delkursusleder 1'!$B$23","v":"2025-11-01"},2510,{"$f":"+Samlingsark!K19","v":0},null,1,null,null,{"$f":"'Delkursusleder 1'!$B$8","v":"[vælg fra liste]"},null,null,1,{"$f":"+Samlingsark!$D$4","v":"Kursusnummer findes automatisk efter du har indtastet speciale/kursusnavn"},{"$f":"IF(Samlingsark!K19>0.1,'Adm.ark satser'!$D$2,0)","v":0},null,null,null,{"$f":"'Honorarlønnet 12'!$B$5","v":0}]
[{"$f":"IF(LEN('Honorarlønnet 12'!$A$4)>0,\"Ja\",\"\")","v":""},{"$f":"IF('Honorarlønnet 12'!$E$7=\"Ja\",\"Sender faktura\",+'Honorarlønnet 12'!$B$7)","v":0},null,{"$f":"+'Delkursusleder 1'!$B$23","v":"2025-11-01"},2510,{"$f":"+Samlingsark!L19","v":0},null,1,null,null,{"$f":"'Delkursusleder 1'!$B$8","v":"[vælg fra liste]"},null,null,1,{"$f":"+Samlingsark!$D$4","v":"Kursusnummer findes automatisk efter du har indtastet speciale/kursusnavn"},{"$f":"IF(Samlingsark!L19>0.1,'Adm.ark satser'!$D$3,0)","v":0},null,null,null,{"$f":"'Honorarlønnet 12'!$B$5","v":0}]
[{"$f":"IF(LEN('Honorarlønnet 12'!$A$4)>0,\"Ja\",\"\")","v":""},{"$f":"IF('Honorarlønnet 12'!$E$7=\"Ja\",\"Sender faktura\",+'Honorarlønnet 12'!$B$7)","v":0},null,{"$f":"+'Delkursusleder 1'!$B$23","v":"2025-11-01"},2510,{"$f":"+Samlingsark!M19","v":0},null,1,null,null,{"$f":"'Delkursusleder 1'!$B$8","v":"[vælg fra liste]"},null,null,1,{"$f":"+Samlingsark!$D$4","v":"Kursusnummer findes automatisk efter du har indtastet speciale/kursusnavn"},{"$f":"IF(Samlingsark!M19>0.1,'Adm.ark satser'!$D$4,0)","v":0},null,null,null,{"$f":"'Honorarlønnet 12'!$B$5","v":0}]
[{"$f":"IF(LEN('Honorarlønnet 13'!$A$4)>0,\"Ja\",\"\")","v":""},{"$f":"IF('Honorarlønnet 13'!$E$7=\"Ja\",\"Sender faktura\",+'Honorarlønnet 13'!$B$7)","v":0},null,{"$f":"+'Delkursusleder 1'!$B$23","v":"2025-11-01"},2510,{"$f":"+Samlingsark!K20","v":0},null,1,null,null,{"$f":"'Delkursusleder 1'!$B$8","v":"[vælg fra liste]"},null,null,1,{"$f":"+Samlingsark!$D$4","v":"Kursusnummer findes automatisk efter du har indtastet speciale/kursusnavn"},{"$f":"IF(Samlingsark!K20>0.1,'Adm.ark satser'!$D$2,0)","v":0},null,null,null,{"$f":"'Honorarlønnet 13'!$B$5","v":0}]
[{"$f":"IF(LEN('Honorarlønnet 13'!$A$4)>0,\"Ja\",\"\")","v":""},{"$f":"IF('Honorarlønnet 13'!$E$7=\"Ja\",\"Sender faktura\",+'Honorarlønnet 13'!$B$7)","v":0},null,{"$f":"+'Delkursusleder 1'!$B$23","v":"2025-11-01"},2510,{"$f":"+Samlingsark!L20","v":0},null,1,null,null,{"$f":"'Delkursusleder 1'!$B$8","v":"[vælg fra liste]"},null,null,1,{"$f":"+Samlingsark!$D$4","v":"Kursusnummer findes automatisk efter du har indtastet speciale/kursusnavn"},{"$f":"IF(Samlingsark!L20>0.1,'Adm.ark satser'!$D$3,0)","v":0},null,null,null,{"$f":"'Honorarlønnet 13'!$B$5","v":0}]
[{"$f":"IF(LEN('Honorarlønnet 13'!$A$4)>0,\"Ja\",\"\")","v":""},{"$f":"IF('Honorarlønnet 13'!$E$7=\"Ja\",\"Sender faktura\",+'Honorarlønnet 13'!$B$7)","v":0},null,{"$f":"+'Delkursusleder 1'!$B$23","v":"2025-11-01"},2510,{"$f":"+Samlingsark!M20","v":0},null,1,null,null,{"$f":"'Delkursusleder 1'!$B$8","v":"[vælg fra liste]"},null,null,1,{"$f":"+Samlingsark!$D$4","v":"Kursusnummer findes automatisk efter du har indtastet speciale/kursusnavn"},{"$f":"IF(Samlingsark!M20>0.1,'Adm.ark satser'!$D$4,0)","v":0},null,null,null,{"$f":"'Honorarlønnet 13'!$B$5","v":0}]
[{"$f":"IF(LEN('Honorarlønnet 14'!$A$4)>0,\"Ja\",\"\")","v":""},{"$f":"IF('Honorarlønnet 14'!$E$7=\"Ja\",\"Sender faktura\",+'Honorarlønnet 14'!$B$7)","v":0},null,{"$f":"+'Delkursusleder 1'!$B$23","v":"2025-11-01"},2510,{"$f":"+Samlingsark!K21","v":0},null,1,null,null,{"$f":"'Delkursusleder 1'!$B$8","v":"[vælg fra liste]"},null,null,1,{"$f":"+Samlingsark!$D$4","v":"Kursusnummer findes automatisk efter du har indtastet speciale/kursusnavn"},{"$f":"IF(Samlingsark!K21>0.1,'Adm.ark satser'!$D$2,0)","v":0},null,null,null,{"$f":"'Honorarlønnet 14'!$B$5","v":0}]
[{"$f":"IF(LEN('Honorarlønnet 14'!$A$4)>0,\"Ja\",\"\")","v":""},{"$f":"IF('Honorarlønnet 14'!$E$7=\"Ja\",\"Sender faktura\",+'Honorarlønnet 14'!$B$7)","v":0},null,{"$f":"+'Delkursusleder 1'!$B$23","v":"2025-11-01"},2510,{"$f":"+Samlingsark!L21","v":0},null,1,null,null,{"$f":"'Delkursusleder 1'!$B$8","v":"[vælg fra liste]"},null,null,1,{"$f":"+Samlingsark!$D$4","v":"Kursusnummer findes automatisk efter du har indtastet speciale/kursusnavn"},{"$f":"IF(Samlingsark!L21>0.1,'Adm.ark satser'!$D$3,0)","v":0},null,null,null,{"$f":"'Honorarlønnet 14'!$B$5","v":0}]
[{"$f":"IF(LEN('Honorarlønnet 14'!$A$4)>0,\"Ja\",\"\")","v":""},{"$f":"IF('Honorarlønnet 14'!$E$7=\"Ja\",\"Sender faktura\",+'Honorarlønnet 14'!$B$7)","v":0},null,{"$f":"+'Delkursusleder 1'!$B$23","v":"2025-11-01"},2510,{"$f":"+Samlingsark!M21","v":0},null,1,null,null,{"$f":"'Delkursusleder 1'!$B$8","v":"[vælg fra liste]"},null,null,1,{"$f":"+Samlingsark!$D$4","v":"Kursusnummer findes automatisk efter du har indtastet speciale/kursusnavn"},{"$f":"IF(Samlingsark!M21>0.1,'Adm.ark satser'!$D$4,0)","v":0},null,null,null,{"$f":"'Honorarlønnet 14'!$B$5","v":0}]
[{"$f":"IF(LEN('Honorarlønnet 15'!$A$4)>0,\"Ja\",\"\")","v":""},{"$f":"IF('Honorarlønnet 15'!$E$7=\"Ja\",\"Sender faktura\",+'Honorarlønnet 15'!$B$7)","v":0},null,{"$f":"+'Delkursusleder 1'!$B$23","v":"2025-11-01"},2510,{"$f":"+Samlingsark!K22","v":0},null,1,null,null,{"$f":"'Delkursusleder 1'!$B$8","v":"[vælg fra liste]"},null,null,1,{"$f":"+Samlingsark!$D$4","v":"Kursusnummer findes automatisk efter du har indtastet speciale/kursusnavn"},{"$f":"IF(Samlingsark!K22>0.1,'Adm.ark satser'!$D$2,0)","v":0},null,null,null,{"$f":"'Honorarlønnet 15'!$B$5","v":0}]
[{"$f":"IF(LEN('Honorarlønnet 15'!$A$4)>0,\"Ja\",\"\")","v":""},{"$f":"IF('Honorarlønnet 15'!$E$7=\"Ja\",\"Sender faktura\",+'Honorarlønnet 15'!$B$7)","v":0},null,{"$f":"+'Delkursusleder 1'!$B$23","v":"2025-11-01"},2510,{"$f":"+Samlingsark!L22","v":0},null,1,null,null,{"$f":"'Delkursusleder 1'!$B$8","v":"[vælg fra liste]"},null,null,1,{"$f":"+Samlingsark!$D$4","v":"Kursusnummer findes automatisk efter du har indtastet speciale/kursusnavn"},{"$f":"IF(Samlingsark!L22>0.1,'Adm.ark satser'!$D$3,0)","v":0},null,null,null,{"$f":"'Honorarlønnet 15'!$B$5","v":0}]
[{"$f":"IF(LEN('Honorarlønnet 15'!$A$4)>0,\"Ja\",\"\")","v":""},{"$f":"IF('Honorarlønnet 15'!$E$7=\"Ja\",\"Sender faktura\",+'Honorarlønnet 15'!$B$7)","v":0},null,{"$f":"+'Delkursusleder 1'!$B$23","v":"2025-11-01"},2510,{"$f":"+Samlingsark!M22","v":0},null,1,null,null,{"$f":"'Delkursusleder 1'!$B$8","v":"[vælg fra liste]"},null,null,1,{"$f":"+Samlingsark!$D$4","v":"Kursusnummer findes automatisk efter du har indtastet speciale/kursusnavn"},{"$f":"IF(Samlingsark!M22>0.1,'Adm.ark satser'!$D$4,0)","v":0},null,null,null,{"$f":"'Honorarlønnet 15'!$B$5","v":0}]

{"sheet":"Adm.ark satser","index":26,"n_rows":8,"n_cols":13,"rows_kept":8,"cut":false,"hidden":false,"merged":[[0,0,0,1]]}
["Satser (marts 12-niv.)",null,"Satser (aktuelt niv.) ","Udgiftstype",null,"Regulerings-procent","2025-04-01",null,"Satser okt. '97 niv.",null,"Max beløb til deling sekretær og hovedkursusleder",null,"Sender faktura"]
["Forelæsningstimer",1570.98,{"$f":"+B2*$G$2","v":1962.35196348},1,null,null,1.249126,null,1198.6199999999999,null,{"$f":"+C6","v":9000},null,"Ja"]
["Diskussionstimer",392.74,{"$f":"+B3*$G$2","v":490.58174523999998},2,null,null,null,null,299.64999999999998,null,null,null,"Nej"]
["Medhjælpertimer",259.89999999999998,324.64784739999999,3,null,null,null,null,197.78]
["Delkursuslederhonorar",8000,{"$f":"+B5","v":8000},4,null,null,null,null,8000,"*Bemærk fast beløb, reguleres ikke"]
["Administrationshonorar",9000,{"$f":"+B6","v":9000},5,null,null,null,null,9000,"*Bemærk fast beløb, reguleres ikke"]
["Hovedkursusledertime",275.92,{"$f":"+B7*$G$2","v":344.65884592000003},5,null,null,null,null,"Ukendt"]
["Sekretærtimer",160.80000000000001,{"$f":"+B8*$G$2","v":200.85946079999999},5,null,null,null,null,"Ukendt"]